Organisation Code,Organisation Label,Effective Date,Organisational Unit,Service Division Label,Category Internal Name,Purpose,Detailed Expenditure Code,Payment Date,Transaction Number,Irrecoverable VAT Amount,Amount,Capital Or Revenue,Benificiary Name,Procurement Card
Http://opendatacommunities.org/id/metropolitan-district-council/leeds,Leeds City Council,31/05/2016,Environment & Housing,Leeds Building Services,Supplies and Services,Operational Materials,205,13-May-16,1605-00001,0,27.42,R,A & A Electrical Distributors Ltd,No
Http://opendatacommunities.org/id/metropolitan-district-council/leeds,Leeds City Council,31/05/2016,Public Health,Public Health,Supplies and Services,Publication And Promotion,267,20-May-16,1605-00002,0,400,R,A + C Mealing,No
Http://opendatacommunities.org/id/metropolitan-district-council/leeds,Leeds City Council,31/05/2016,City Development,Libraries  Arts & Heritage,Supplies and Services,Operational Furniture And Equipment,203,18-May-16,1605-00003,0,2249.33,R,A C Entertainment Technologies Ltd,No
Http://opendatacommunities.org/id/metropolitan-district-council/leeds,Leeds City Council,31/05/2016,City Development,Libraries  Arts & Heritage,Supplies and Services,Operational Furniture And Equipment,203,18-May-16,1605-00004,0,559.07,R,A C Entertainment Technologies Ltd,No
Http://opendatacommunities.org/id/metropolitan-district-council/leeds,Leeds City Council,31/05/2016,City Development,Libraries  Arts & Heritage,Supplies and Services,Operational Furniture And Equipment,203,18-May-16,1605-00005,0,928.8,R,A C Entertainment Technologies Ltd,No
Http://opendatacommunities.org/id/metropolitan-district-council/leeds,Leeds City Council,31/05/2016,City Development,Libraries  Arts & Heritage,Supplies and Services,Operational Furniture And Equipment,203,19-May-16,1605-00006,0,8391.49,R,A C Entertainment Technologies Ltd,No
Http://opendatacommunities.org/id/metropolitan-district-council/leeds,Leeds City Council,31/05/2016,Environment & Housing,Housing Leeds Service,Capital,Other Costs,7,12-May-16,1605-00007,0,41.99,C,REDACTED PERSONAL DATA,No
Http://opendatacommunities.org/id/metropolitan-district-council/leeds,Leeds City Council,31/05/2016,Environment & Housing,Housing Leeds Service,Capital,Other Costs,7,26-May-16,1605-00008,0,41.99,C,REDACTED PERSONAL DATA,No
Http://opendatacommunities.org/id/metropolitan-district-council/leeds,Leeds City Council,31/05/2016,City Development,Libraries  Arts & Heritage,Supplies and Services,Other Hired And Contracted Services,265,20-May-16,1605-00009,0,357.5,R,A J Bell,No
Http://opendatacommunities.org/id/metropolitan-district-council/leeds,Leeds City Council,31/05/2016,Childrens Services,Safeguarding Targeted & Specialist,Third Party Payments,Rents (non supported),552,03-May-16,1605-00010,0,360,R,A J Blackwell,No
Http://opendatacommunities.org/id/metropolitan-district-council/leeds,Leeds City Council,31/05/2016,Childrens Services,Safeguarding Targeted & Specialist,Transfer Payments,Leaving Care Allowances,634,03-May-16,1605-00011,0,360,R,A J Blackwell,No
Http://opendatacommunities.org/id/metropolitan-district-council/leeds,Leeds City Council,31/05/2016,City Development,Libraries  Arts & Heritage,Supplies and Services,Other Hired And Contracted Services,265,06-May-16,1605-00012,0,375,R,REDACTED COMMERCIAL CONFIDENTIALITY,No
Http://opendatacommunities.org/id/metropolitan-district-council/leeds,Leeds City Council,31/05/2016,Environment & Housing,Leeds Building Services,Supplies and Services,Operational Materials,205,11-May-16,1605-00013,0,15.34,R,A J H  Pump Supply & Repair Ltd,No
Http://opendatacommunities.org/id/metropolitan-district-council/leeds,Leeds City Council,31/05/2016,Environment & Housing,Leeds Building Services,Supplies and Services,Operational Materials,205,11-May-16,1605-00014,0,75,R,A J H  Pump Supply & Repair Ltd,No
Http://opendatacommunities.org/id/metropolitan-district-council/leeds,Leeds City Council,31/05/2016,Environment & Housing,Leeds Building Services,Supplies and Services,Operational Materials,205,19-May-16,1605-00015,0,360,R,A J H  Pump Supply & Repair Ltd,No
Http://opendatacommunities.org/id/metropolitan-district-council/leeds,Leeds City Council,31/05/2016,Environment & Housing,Leeds Building Services,Supplies and Services,Operational Materials,205,19-May-16,1605-00016,0,77.75,R,A J H  Pump Supply & Repair Ltd,No
Http://opendatacommunities.org/id/metropolitan-district-council/leeds,Leeds City Council,31/05/2016,Environment & Housing,Leeds Building Services,Supplies and Services,Operational Materials,205,19-May-16,1605-00017,0,567.75,R,A J H  Pump Supply & Repair Ltd,No
Http://opendatacommunities.org/id/metropolitan-district-council/leeds,Leeds City Council,31/05/2016,Environment & Housing,Leeds Building Services,Supplies and Services,Operational Materials,205,19-May-16,1605-00018,0,21.75,R,A J H  Pump Supply & Repair Ltd,No
Http://opendatacommunities.org/id/metropolitan-district-council/leeds,Leeds City Council,31/05/2016,Environment & Housing,Leeds Building Services,Supplies and Services,Operational Materials,205,19-May-16,1605-00019,0,135,R,A J H  Pump Supply & Repair Ltd,No
Http://opendatacommunities.org/id/metropolitan-district-council/leeds,Leeds City Council,31/05/2016,Environment & Housing,Leeds Building Services,Supplies and Services,Operational Materials,205,19-May-16,1605-00020,0,85.53,R,A J H  Pump Supply & Repair Ltd,No
Http://opendatacommunities.org/id/metropolitan-district-council/leeds,Leeds City Council,31/05/2016,Environment & Housing,Leeds Building Services,Supplies and Services,Operational Materials,205,19-May-16,1605-00021,0,105,R,A J H  Pump Supply & Repair Ltd,No
Http://opendatacommunities.org/id/metropolitan-district-council/leeds,Leeds City Council,31/05/2016,Environment & Housing,Leeds Building Services,Supplies and Services,Operational Materials,205,19-May-16,1605-00022,0,124.75,R,A J H  Pump Supply & Repair Ltd,No
Http://opendatacommunities.org/id/metropolitan-district-council/leeds,Leeds City Council,31/05/2016,Environment & Housing,Leeds Building Services,Supplies and Services,Operational Materials,205,19-May-16,1605-00023,0,110.5,R,A J H  Pump Supply & Repair Ltd,No
Http://opendatacommunities.org/id/metropolitan-district-council/leeds,Leeds City Council,31/05/2016,Environment & Housing,Leeds Building Services,Supplies and Services,Operational Materials,205,19-May-16,1605-00024,0,17.9,R,A J H  Pump Supply & Repair Ltd,No
Http://opendatacommunities.org/id/metropolitan-district-council/leeds,Leeds City Council,31/05/2016,Environment & Housing,Leeds Building Services,Supplies and Services,Operational Materials,205,19-May-16,1605-00025,0,845,R,A J H  Pump Supply & Repair Ltd,No
Http://opendatacommunities.org/id/metropolitan-district-council/leeds,Leeds City Council,31/05/2016,Environment & Housing,Leeds Building Services,Supplies and Services,Operational Materials,205,19-May-16,1605-00026,0,12.85,R,A J H  Pump Supply & Repair Ltd,No
Http://opendatacommunities.org/id/metropolitan-district-council/leeds,Leeds City Council,31/05/2016,Environment & Housing,Leeds Building Services,Supplies and Services,Other Hired And Contracted Services,265,19-May-16,1605-00027,0,227,R,A J H  Pump Supply & Repair Ltd,No
Http://opendatacommunities.org/id/metropolitan-district-council/leeds,Leeds City Council,31/05/2016,Environment & Housing,Leeds Building Services,Supplies and Services,Operational Materials,205,20-May-16,1605-00028,0,16.17,R,A J H  Pump Supply & Repair Ltd,No
Http://opendatacommunities.org/id/metropolitan-district-council/leeds,Leeds City Council,31/05/2016,Environment & Housing,Leeds Building Services,Supplies and Services,Operational Materials,205,20-May-16,1605-00029,0,33.85,R,A J H  Pump Supply & Repair Ltd,No
Http://opendatacommunities.org/id/metropolitan-district-council/leeds,Leeds City Council,31/05/2016,Environment & Housing,Leeds Building Services,Supplies and Services,Operational Materials,205,20-May-16,1605-00030,0,138,R,A J H  Pump Supply & Repair Ltd,No
Http://opendatacommunities.org/id/metropolitan-district-council/leeds,Leeds City Council,31/05/2016,Environment & Housing,Leeds Building Services,Supplies and Services,Operational Materials,205,20-May-16,1605-00031,0,228.72,R,A J H  Pump Supply & Repair Ltd,No
Http://opendatacommunities.org/id/metropolitan-district-council/leeds,Leeds City Council,31/05/2016,Environment & Housing,Leeds Building Services,Supplies and Services,Operational Materials,205,20-May-16,1605-00032,0,15.69,R,A J H  Pump Supply & Repair Ltd,No
Http://opendatacommunities.org/id/metropolitan-district-council/leeds,Leeds City Council,31/05/2016,Environment & Housing,Leeds Building Services,Supplies and Services,Operational Materials,205,20-May-16,1605-00033,0,15.9,R,A J H  Pump Supply & Repair Ltd,No
Http://opendatacommunities.org/id/metropolitan-district-council/leeds,Leeds City Council,31/05/2016,Environment & Housing,Leeds Building Services,Supplies and Services,Operational Materials,205,20-May-16,1605-00034,0,36.61,R,A J H  Pump Supply & Repair Ltd,No
Http://opendatacommunities.org/id/metropolitan-district-council/leeds,Leeds City Council,31/05/2016,Environment & Housing,Leeds Building Services,Supplies and Services,Operational Materials,205,20-May-16,1605-00035,0,209.62,R,A J H  Pump Supply & Repair Ltd,No
Http://opendatacommunities.org/id/metropolitan-district-council/leeds,Leeds City Council,31/05/2016,Environment & Housing,Leeds Building Services,Supplies and Services,Operational Materials,205,20-May-16,1605-00036,0,88.74,R,A J H  Pump Supply & Repair Ltd,No
Http://opendatacommunities.org/id/metropolitan-district-council/leeds,Leeds City Council,31/05/2016,Environment & Housing,Leeds Building Services,Supplies and Services,Operational Materials,205,20-May-16,1605-00037,0,159.5,R,A J H  Pump Supply & Repair Ltd,No
Http://opendatacommunities.org/id/metropolitan-district-council/leeds,Leeds City Council,31/05/2016,Environment & Housing,Leeds Building Services,Supplies and Services,Operational Materials,205,20-May-16,1605-00038,0,45,R,A J H  Pump Supply & Repair Ltd,No
Http://opendatacommunities.org/id/metropolitan-district-council/leeds,Leeds City Council,31/05/2016,Environment & Housing,Leeds Building Services,Supplies and Services,Operational Materials,205,20-May-16,1605-00039,0,55.57,R,A J H  Pump Supply & Repair Ltd,No
Http://opendatacommunities.org/id/metropolitan-district-council/leeds,Leeds City Council,31/05/2016,Environment & Housing,Leeds Building Services,Supplies and Services,Operational Materials,205,20-May-16,1605-00040,0,137,R,A J H  Pump Supply & Repair Ltd,No
Http://opendatacommunities.org/id/metropolitan-district-council/leeds,Leeds City Council,31/05/2016,Environment & Housing,Leeds Building Services,Supplies and Services,Operational Materials,205,20-May-16,1605-00041,0,147.85,R,A J H  Pump Supply & Repair Ltd,No
Http://opendatacommunities.org/id/metropolitan-district-council/leeds,Leeds City Council,31/05/2016,Environment & Housing,Leeds Building Services,Supplies and Services,Operational Materials,205,20-May-16,1605-00042,0,340,R,A J H  Pump Supply & Repair Ltd,No
Http://opendatacommunities.org/id/metropolitan-district-council/leeds,Leeds City Council,31/05/2016,Environment & Housing,Leeds Building Services,Supplies and Services,Operational Materials,205,20-May-16,1605-00043,0,68.8,R,A J H  Pump Supply & Repair Ltd,No
Http://opendatacommunities.org/id/metropolitan-district-council/leeds,Leeds City Council,31/05/2016,Environment & Housing,Leeds Building Services,Supplies and Services,Operational Materials,205,20-May-16,1605-00044,0,232.07,R,A J H  Pump Supply & Repair Ltd,No
Http://opendatacommunities.org/id/metropolitan-district-council/leeds,Leeds City Council,31/05/2016,Environment & Housing,Leeds Building Services,Supplies and Services,Operational Materials,205,20-May-16,1605-00045,0,53.36,R,A J H  Pump Supply & Repair Ltd,No
Http://opendatacommunities.org/id/metropolitan-district-council/leeds,Leeds City Council,31/05/2016,Environment & Housing,Leeds Building Services,Supplies and Services,Operational Materials,205,20-May-16,1605-00046,0,94.05,R,A J H  Pump Supply & Repair Ltd,No
Http://opendatacommunities.org/id/metropolitan-district-council/leeds,Leeds City Council,31/05/2016,Environment & Housing,Leeds Building Services,Supplies and Services,Operational Materials,205,20-May-16,1605-00047,0,84.25,R,A J H  Pump Supply & Repair Ltd,No
Http://opendatacommunities.org/id/metropolitan-district-council/leeds,Leeds City Council,31/05/2016,Environment & Housing,Leeds Building Services,Supplies and Services,Operational Materials,205,20-May-16,1605-00048,0,137.38,R,A J H  Pump Supply & Repair Ltd,No
Http://opendatacommunities.org/id/metropolitan-district-council/leeds,Leeds City Council,31/05/2016,Environment & Housing,Leeds Building Services,Supplies and Services,Operational Materials,205,20-May-16,1605-00049,0,48.9,R,A J H  Pump Supply & Repair Ltd,No
Http://opendatacommunities.org/id/metropolitan-district-council/leeds,Leeds City Council,31/05/2016,Environment & Housing,Leeds Building Services,Supplies and Services,Operational Materials,205,20-May-16,1605-00050,0,17.95,R,A J H  Pump Supply & Repair Ltd,No
Http://opendatacommunities.org/id/metropolitan-district-council/leeds,Leeds City Council,31/05/2016,Environment & Housing,Leeds Building Services,Supplies and Services,Operational Materials,205,20-May-16,1605-00051,0,109,R,A J H  Pump Supply & Repair Ltd,No
Http://opendatacommunities.org/id/metropolitan-district-council/leeds,Leeds City Council,31/05/2016,Environment & Housing,Leeds Building Services,Supplies and Services,Operational Materials,205,20-May-16,1605-00052,0,164.03,R,A J H  Pump Supply & Repair Ltd,No
Http://opendatacommunities.org/id/metropolitan-district-council/leeds,Leeds City Council,31/05/2016,Environment & Housing,Leeds Building Services,Supplies and Services,Operational Materials,205,20-May-16,1605-00053,0,239.62,R,A J H  Pump Supply & Repair Ltd,No
Http://opendatacommunities.org/id/metropolitan-district-council/leeds,Leeds City Council,31/05/2016,Environment & Housing,Leeds Building Services,Supplies and Services,Operational Materials,205,20-May-16,1605-00054,0,56.8,R,A J H  Pump Supply & Repair Ltd,No
Http://opendatacommunities.org/id/metropolitan-district-council/leeds,Leeds City Council,31/05/2016,Environment & Housing,Leeds Building Services,Supplies and Services,Operational Materials,205,20-May-16,1605-00055,0,998,R,A J H  Pump Supply & Repair Ltd,No
Http://opendatacommunities.org/id/metropolitan-district-council/leeds,Leeds City Council,31/05/2016,Environment & Housing,Leeds Building Services,Supplies and Services,Operational Materials,205,27-May-16,1605-00056,0,537,R,A J H  Pump Supply & Repair Ltd,No
Http://opendatacommunities.org/id/metropolitan-district-council/leeds,Leeds City Council,31/05/2016,Environment & Housing,Parks and Countryside,Supplies and Services,Resaleable Materials,204,17-May-16,1605-00057,0,160,R,A J Promotions,No
Http://opendatacommunities.org/id/metropolitan-district-council/leeds,Leeds City Council,31/05/2016,City Development,Libraries  Arts & Heritage,Supplies and Services,Resaleable Materials,204,20-May-16,1605-00058,0,14.4,R,A J Promotions,No
Http://opendatacommunities.org/id/metropolitan-district-council/leeds,Leeds City Council,31/05/2016,Environment & Housing,Parks and Countryside,Supplies and Services,Resaleable Materials,204,24-May-16,1605-00059,0,399.2,R,A J Promotions,No
Http://opendatacommunities.org/id/metropolitan-district-council/leeds,Leeds City Council,31/05/2016,City Development,Libraries  Arts & Heritage,Supplies and Services,Resaleable Materials,204,27-May-16,1605-00060,0,258,R,A J Promotions,No
Http://opendatacommunities.org/id/metropolitan-district-council/leeds,Leeds City Council,31/05/2016,Childrens Services,Partnership Development & Leadership,Employees,Training & Development,70,10-May-16,1605-00061,0,75,R,A Little Something Extra Ltd,No
Http://opendatacommunities.org/id/metropolitan-district-council/leeds,Leeds City Council,31/05/2016,Citizens and Communities,Customer Access,Supplies and Services,Other Hired And Contracted Services,265,04-May-16,1605-00062,0,930.15,R,A Mohammed,No
Http://opendatacommunities.org/id/metropolitan-district-council/leeds,Leeds City Council,31/05/2016,Citizens and Communities,Customer Access,Supplies and Services,Other Hired And Contracted Services,265,05-May-16,1605-00063,0,309,R,A Mohammed,No
Http://opendatacommunities.org/id/metropolitan-district-council/leeds,Leeds City Council,31/05/2016,Citizens and Communities,Customer Access,Supplies and Services,Other Hired And Contracted Services,265,05-May-16,1605-00064,0,45,R,A Musalam,No
Http://opendatacommunities.org/id/metropolitan-district-council/leeds,Leeds City Council,31/05/2016,Citizens and Communities,Customer Access,Supplies and Services,Other Hired And Contracted Services,265,04-May-16,1605-00065,0,450.75,R,A Namaki,No
Http://opendatacommunities.org/id/metropolitan-district-council/leeds,Leeds City Council,31/05/2016,Environment & Housing,Housing Leeds Service,Capital,Other Costs,7,12-May-16,1605-00066,0,380,C,REDACTED PERSONAL DATA,No
Http://opendatacommunities.org/id/metropolitan-district-council/leeds,Leeds City Council,31/05/2016,Environment & Housing,Statutory Housing,Transport,Public Transport Expenses,310,12-May-16,1605-00067,0,105,R,REDACTED PERSONAL DATA,No
Http://opendatacommunities.org/id/metropolitan-district-council/leeds,Leeds City Council,31/05/2016,Citizens and Communities,Customer Access,Supplies and Services,Other Hired And Contracted Services,265,04-May-16,1605-00068,0,115,R,A Sheikholeslami,No
Http://opendatacommunities.org/id/metropolitan-district-council/leeds,Leeds City Council,31/05/2016,Citizens and Communities,Customer Access,Supplies and Services,Other Hired And Contracted Services,265,04-May-16,1605-00069,0,1503.3,R,A Sheikholeslami,No
Http://opendatacommunities.org/id/metropolitan-district-council/leeds,Leeds City Council,31/05/2016,Civic Enterprise Leeds,Business Support Centre,Supplies and Services,Other Hired And Contracted Services,265,03-May-16,1605-00070,0,46.25,R,A Star Couriers Ltd,No
Http://opendatacommunities.org/id/metropolitan-district-council/leeds,Leeds City Council,31/05/2016,Civic Enterprise Leeds,Business Support Centre,Supplies and Services,Other Hired And Contracted Services,265,25-May-16,1605-00071,0,46.25,R,A Star Couriers Ltd,No
Http://opendatacommunities.org/id/metropolitan-district-council/leeds,Leeds City Council,31/05/2016,Environment & Housing,Housing Leeds Service,Capital,Other Costs,7,12-May-16,1605-00072,0,330,C,REDACTED PERSONAL DATA,No
Http://opendatacommunities.org/id/metropolitan-district-council/leeds,Leeds City Council,31/05/2016,Environment & Housing,Housing Leeds Service,Capital,Other Costs,7,12-May-16,1605-00073,0,330,C,REDACTED PERSONAL DATA,No
Http://opendatacommunities.org/id/metropolitan-district-council/leeds,Leeds City Council,31/05/2016,Citizens and Communities,Customer Access,Supplies and Services,Other Hired And Contracted Services,265,04-May-16,1605-00074,0,20.52,R,A Zeir,No
Http://opendatacommunities.org/id/metropolitan-district-council/leeds,Leeds City Council,31/05/2016,Environment & Housing,Environmental Health,Capital,Other Costs,7,12-May-16,1605-00075,0,4776,C,A.T Roofing,No
Http://opendatacommunities.org/id/metropolitan-district-council/leeds,Leeds City Council,31/05/2016,Childrens Services,Safeguarding Targeted & Specialist,Third Party Payments,Section 17,551,26-May-16,1605-00076,0,1060,R,Aa Properties,No
Http://opendatacommunities.org/id/metropolitan-district-council/leeds,Leeds City Council,31/05/2016,Public Health,Public Health,Third Party Payments,Public Health Commissioned Services,526,24-May-16,1605-00077,0,64.96,R,Aaa Healthcare Ltd,No
Http://opendatacommunities.org/id/metropolitan-district-council/leeds,Leeds City Council as Accountable Body,31/05/2016,Social Services Pooled Budgets,Leeds Community Equip Store Pooled Budgt,Supplies and Services,Other Equipment,203,20-May-16,1605-00078,0,1800,R,Aat (Gb) Ltd,No
Http://opendatacommunities.org/id/metropolitan-district-council/leeds,Leeds City Council,31/05/2016,Childrens Services,Safeguarding Targeted & Specialist,Support Services,Legal Disbursements,411,05-May-16,1605-00079,0,19.89,R,Abacus Express Limited,No
Http://opendatacommunities.org/id/metropolitan-district-council/leeds,Leeds City Council,31/05/2016,City Development,Planning & Sustainable Development,Supplies and Services,Other Hired And Contracted Services,265,05-May-16,1605-00080,0,14.51,R,Abacus Express Limited,No
Http://opendatacommunities.org/id/metropolitan-district-council/leeds,Leeds City Council,31/05/2016,City Development,Planning & Sustainable Development,Supplies and Services,Other Hired And Contracted Services,265,05-May-16,1605-00081,0,14.51,R,Abacus Express Limited,No
Http://opendatacommunities.org/id/metropolitan-district-council/leeds,Leeds City Council,31/05/2016,Childrens Services,Safeguarding Targeted & Specialist,Support Services,Legal Disbursements,411,20-May-16,1605-00082,0,26.77,R,Abacus Express Limited,No
Http://opendatacommunities.org/id/metropolitan-district-council/leeds,Leeds City Council,31/05/2016,Childrens Services,Safeguarding Targeted & Specialist,Support Services,Legal Disbursements,411,20-May-16,1605-00083,0,31.02,R,Abacus Express Limited,No
Http://opendatacommunities.org/id/metropolitan-district-council/leeds,Leeds City Council,31/05/2016,Childrens Services,Safeguarding Targeted & Specialist,Support Services,Legal Disbursements,411,20-May-16,1605-00084,0,37.63,R,Abacus Express Limited,No
Http://opendatacommunities.org/id/metropolitan-district-council/leeds,Leeds City Council,31/05/2016,Childrens Services,Safeguarding Targeted & Specialist,Support Services,Legal Disbursements,411,20-May-16,1605-00085,0,31.02,R,Abacus Express Limited,No
Http://opendatacommunities.org/id/metropolitan-district-council/leeds,Leeds City Council,31/05/2016,Childrens Services,Safeguarding Targeted & Specialist,Support Services,Legal Disbursements,411,20-May-16,1605-00086,0,31.02,R,Abacus Express Limited,No
Http://opendatacommunities.org/id/metropolitan-district-council/leeds,Leeds City Council,31/05/2016,Childrens Services,Safeguarding Targeted & Specialist,Support Services,Legal Disbursements,411,20-May-16,1605-00087,0,26.77,R,Abacus Express Limited,No
Http://opendatacommunities.org/id/metropolitan-district-council/leeds,Leeds City Council,31/05/2016,Childrens Services,Safeguarding Targeted & Specialist,Support Services,Legal Disbursements,411,26-May-16,1605-00088,0,15.59,R,Abacus Express Limited,No
Http://opendatacommunities.org/id/metropolitan-district-council/leeds,Leeds City Council,31/05/2016,Childrens Services,Safeguarding Targeted & Specialist  ,Third Party Payments,Contact,548,12-Apr-16,1605-00089,0,8.4,R,Abbey House Museum,Yes
Http://opendatacommunities.org/id/metropolitan-district-council/leeds,Leeds City Council,31/05/2016,Environment & Housing,Environmental Action (South),Supplies and Services,Other Hired And Contracted Services,265,06-May-16,1605-00090,0,27.22,R,Abbey House Veterinary Hospital,No
Http://opendatacommunities.org/id/metropolitan-district-council/leeds,Leeds City Council,31/05/2016,Environment & Housing,Environmental Action (South),Supplies and Services,Other Hired And Contracted Services,265,06-May-16,1605-00091,0,83.34,R,Abbey House Veterinary Hospital,No
Http://opendatacommunities.org/id/metropolitan-district-council/leeds,Leeds City Council,31/05/2016,Environment & Housing,Environmental Action (South),Supplies and Services,Bought In Professional Services,277,23-May-16,1605-00092,0,53.71,R,Abbey House Veterinary Hospital,No
Http://opendatacommunities.org/id/metropolitan-district-council/leeds,Leeds City Council,31/05/2016,Environment & Housing,Environmental Health,Supplies and Services,Bought In Professional Services,277,23-May-16,1605-00093,0,22.24,R,Abbey House Veterinary Hospital,No
Http://opendatacommunities.org/id/metropolitan-district-council/leeds,Leeds City Council,31/05/2016,Citizens and Communities,Customer Access,Supplies and Services,Other Hired And Contracted Services,265,04-May-16,1605-00094,0,50,R,Abdur Rahman Khan,No
Http://opendatacommunities.org/id/metropolitan-district-council/leeds,Leeds City Council,31/05/2016,Adult Social Care,Services For Older People - 65 And Over,Third Party Payments,Nursing Home,570,04-May-16,1605-00095,0,40590.06,R,Aberford Hall,No
Http://opendatacommunities.org/id/metropolitan-district-council/leeds,Leeds City Council,31/05/2016,Adult Social Care,Services For Older People - 65 And Over,Third Party Payments,Nursing Care Dementia,574,04-May-16,1605-00096,0,1385.2,R,Aberford Hall,No
Http://opendatacommunities.org/id/metropolitan-district-council/leeds,Leeds City Council,31/05/2016,Adult Social Care,Services For Older People - 65 And Over,Third Party Payments,Residential,580,04-May-16,1605-00097,0,5825.64,R,Aberford Hall,No
Http://opendatacommunities.org/id/metropolitan-district-council/leeds,Leeds City Council,31/05/2016,Adult Social Care,Services For Older People - 65 And Over,Third Party Payments,Nursing Home,570,31-May-16,1605-00098,0,41378.3,R,Aberford Hall,No
Http://opendatacommunities.org/id/metropolitan-district-council/leeds,Leeds City Council,31/05/2016,Adult Social Care,Services For Older People - 65 And Over,Third Party Payments,Nursing Care Dementia,574,31-May-16,1605-00099,0,1385.2,R,Aberford Hall,No
Http://opendatacommunities.org/id/metropolitan-district-council/leeds,Leeds City Council,31/05/2016,Adult Social Care,Services For Older People - 65 And Over,Third Party Payments,Residential,580,31-May-16,1605-00100,0,5825.64,R,Aberford Hall,No
Http://opendatacommunities.org/id/metropolitan-district-council/leeds,Leeds City Council,31/05/2016,Citizens and Communities,Elections  Licensing and Registration,Premises,Rents,141,19-May-16,1605-00101,0,400,R,Aberford Village Hall,No
Http://opendatacommunities.org/id/metropolitan-district-council/leeds,Leeds City Council,31/05/2016,Environment & Housing,Leeds Building Services,Supplies and Services,Operational Materials,205,04-May-16,1605-00102,0,450,R,Abi Garage Doors Ltd,No
Http://opendatacommunities.org/id/metropolitan-district-council/leeds,Leeds City Council,31/05/2016,Environment & Housing,Leeds Building Services,Supplies and Services,Operational Materials,205,04-May-16,1605-00103,0,225,R,Abi Garage Doors Ltd,No
Http://opendatacommunities.org/id/metropolitan-district-council/leeds,Leeds City Council,31/05/2016,Environment & Housing,Leeds Building Services,Supplies and Services,Operational Materials,205,06-May-16,1605-00104,0,225,R,Abi Garage Doors Ltd,No
Http://opendatacommunities.org/id/metropolitan-district-council/leeds,Leeds City Council,31/05/2016,Environment & Housing,Leeds Building Services,Supplies and Services,Operational Materials,205,06-May-16,1605-00105,0,225,R,Abi Garage Doors Ltd,No
Http://opendatacommunities.org/id/metropolitan-district-council/leeds,Leeds City Council,31/05/2016,Environment & Housing,Leeds Building Services,Supplies and Services,Operational Materials,205,25-May-16,1605-00106,0,225,R,Abi Garage Doors Ltd,No
Http://opendatacommunities.org/id/metropolitan-district-council/leeds,Leeds City Council,31/05/2016,Citizens and Communities,Elections  Licensing and Registration,Income,Admissions  Booking Fees & Ticket Sales,933,26-May-16,1605-00107,0,50,R,REDACTED PERSONAL DATA,No
Http://opendatacommunities.org/id/metropolitan-district-council/leeds,Leeds City Council,31/05/2016,City Development,Recreation  ,Supplies and Services,Operational Furniture And Equipment,203,19-Apr-16,1605-00108,0,91.62,R,Aca Sports Ltd,Yes
Http://opendatacommunities.org/id/metropolitan-district-council/leeds,Leeds City Council,31/05/2016,Childrens Services,Safeguarding Targeted & Specialist,Employees,Agency Staff,8,16-May-16,1605-00109,0,1071.1,R,Academic Appointments Ltd,No
Http://opendatacommunities.org/id/metropolitan-district-council/leeds,Leeds City Council,31/05/2016,Childrens Services,Safeguarding Targeted & Specialist,Employees,Agency Staff,8,19-May-16,1605-00110,0,1071.1,R,Academic Appointments Ltd,No
Http://opendatacommunities.org/id/metropolitan-district-council/leeds,Leeds City Council,31/05/2016,Childrens Services,Safeguarding Targeted & Specialist,Employees,Agency Staff,8,25-May-16,1605-00111,0,883.73,R,Academic Appointments Ltd,No
Http://opendatacommunities.org/id/metropolitan-district-council/leeds,Leeds City Council,31/05/2016,Childrens Services,Safeguarding Targeted & Specialist,Employees,Agency Staff,8,31-May-16,1605-00112,0,376.1,R,Academic Appointments Ltd,No
Http://opendatacommunities.org/id/metropolitan-district-council/leeds,Leeds City Council,31/05/2016,Environment & Housing,Community Safety,Transport,Hire Of Movable Plant & Machinery,315,06-May-16,1605-00113,0,1350.71,R,Access Hire Nationwide Ltd,No
Http://opendatacommunities.org/id/metropolitan-district-council/leeds,Leeds City Council,31/05/2016,Central & Corporate,Technology,Supplies and Services,Software - Expenditure,80,27-May-16,1605-00114,0,5600,R,Access Intelligence Media And,No
Http://opendatacommunities.org/id/metropolitan-district-council/leeds,Leeds City Council,31/05/2016,Environment & Housing,Parks And Countryside  ,Supplies and Services,Operational Materials,205,12-Apr-16,1605-00115,0,284.4,R,Access Locksmiths,Yes
Http://opendatacommunities.org/id/metropolitan-district-council/leeds,Leeds City Council,31/05/2016,Strategic Landlord,Housing Management,Premises,General Maintenance,104,06-May-16,1605-00116,0,207.4,R,Access Locksmiths (Leeds) Limited,No
Http://opendatacommunities.org/id/metropolitan-district-council/leeds,Leeds City Council,31/05/2016,Strategic Landlord,Property and Contracts,Premises,General Maintenance,104,06-May-16,1605-00117,0,22.2,R,Access Locksmiths (Leeds) Limited,No
Http://opendatacommunities.org/id/metropolitan-district-council/leeds,Leeds City Council,31/05/2016,Civic Enterprise Leeds,Commercial Services,Supplies and Services,Operational Materials,205,10-May-16,1605-00118,0,37,R,Access Locksmiths (Leeds) Limited,No
Http://opendatacommunities.org/id/metropolitan-district-council/leeds,Leeds City Council,31/05/2016,Environment & Housing,Leeds Building Services,Supplies and Services,Operational Materials,205,10-May-16,1605-00119,0,15.7,R,Access Locksmiths (Leeds) Limited,No
Http://opendatacommunities.org/id/metropolitan-district-council/leeds,Leeds City Council,31/05/2016,Environment & Housing,Leeds Building Services,Supplies and Services,Operational Materials,205,10-May-16,1605-00120,0,98.24,R,Access Locksmiths (Leeds) Limited,No
Http://opendatacommunities.org/id/metropolitan-district-council/leeds,Leeds City Council,31/05/2016,Strategic Landlord,Housing Management,Supplies and Services,Operational Furniture And Equipment,203,20-May-16,1605-00121,0,31.11,R,Access Locksmiths (Leeds) Limited,No
Http://opendatacommunities.org/id/metropolitan-district-council/leeds,Leeds City Council,31/05/2016,Strategic Landlord,Housing Management,Premises,General Maintenance,104,20-May-16,1605-00122,0,207.4,R,Access Locksmiths (Leeds) Limited,No
Http://opendatacommunities.org/id/metropolitan-district-council/leeds,Leeds City Council,31/05/2016,Strategic Landlord,Housing Management,Premises,General Maintenance,104,20-May-16,1605-00123,0,103.7,R,Access Locksmiths (Leeds) Limited,No
Http://opendatacommunities.org/id/metropolitan-district-council/leeds,Leeds City Council,31/05/2016,Strategic Landlord,Housing Management,Premises,General Maintenance,104,20-May-16,1605-00124,0,207.4,R,Access Locksmiths (Leeds) Limited,No
Http://opendatacommunities.org/id/metropolitan-district-council/leeds,Leeds City Council,31/05/2016,Environment & Housing,Leeds Building Services,Supplies and Services,Operational Materials,205,20-May-16,1605-00125,0,83.88,R,Access Locksmiths (Leeds) Limited,No
Http://opendatacommunities.org/id/metropolitan-district-council/leeds,Leeds City Council,31/05/2016,Environment & Housing,Leeds Building Services,Supplies and Services,Operational Materials,205,20-May-16,1605-00126,0,3.24,R,Access Locksmiths (Leeds) Limited,No
Http://opendatacommunities.org/id/metropolitan-district-council/leeds,Leeds City Council,31/05/2016,Environment & Housing,Leeds Building Services,Supplies and Services,Operational Materials,205,20-May-16,1605-00127,0,4.5,R,Access Locksmiths (Leeds) Limited,No
Http://opendatacommunities.org/id/metropolitan-district-council/leeds,Leeds City Council,31/05/2016,Environment & Housing,Leeds Building Services,Supplies and Services,Operational Materials,205,20-May-16,1605-00128,0,16.83,R,Access Locksmiths (Leeds) Limited,No
Http://opendatacommunities.org/id/metropolitan-district-council/leeds,Leeds City Council,31/05/2016,Environment & Housing,Leeds Building Services,Supplies and Services,Operational Materials,205,20-May-16,1605-00129,0,74.75,R,Access Locksmiths (Leeds) Limited,No
Http://opendatacommunities.org/id/metropolitan-district-council/leeds,Leeds City Council,31/05/2016,Environment & Housing,Leeds Building Services,Supplies and Services,Operational Materials,205,20-May-16,1605-00130,0,32.4,R,Access Locksmiths (Leeds) Limited,No
Http://opendatacommunities.org/id/metropolitan-district-council/leeds,Leeds City Council,31/05/2016,Environment & Housing,Leeds Building Services,Supplies and Services,Operational Materials,205,20-May-16,1605-00131,0,31.11,R,Access Locksmiths (Leeds) Limited,No
Http://opendatacommunities.org/id/metropolitan-district-council/leeds,Leeds City Council,31/05/2016,Environment & Housing,Leeds Building Services,Supplies and Services,Operational Materials,205,20-May-16,1605-00132,0,7.88,R,Access Locksmiths (Leeds) Limited,No
Http://opendatacommunities.org/id/metropolitan-district-council/leeds,Leeds City Council,31/05/2016,Environment & Housing,Leeds Building Services,Supplies and Services,Operational Materials,205,20-May-16,1605-00133,0,15,R,Access Locksmiths (Leeds) Limited,No
Http://opendatacommunities.org/id/metropolitan-district-council/leeds,Leeds City Council,31/05/2016,Civic Enterprise Leeds,Commercial Services,Supplies and Services,Operational Furniture And Equipment,203,20-May-16,1605-00134,0,74,R,Access Locksmiths (Leeds) Limited,No
Http://opendatacommunities.org/id/metropolitan-district-council/leeds,Leeds City Council,31/05/2016,Environment & Housing,Leeds Building Services,Supplies and Services,Operational Materials,205,20-May-16,1605-00135,0,53.25,R,Access Locksmiths (Leeds) Limited,No
Http://opendatacommunities.org/id/metropolitan-district-council/leeds,Leeds City Council,31/05/2016,Strategic Landlord,Property and Contracts,Premises,General Maintenance,104,27-May-16,1605-00136,0,498.15,R,Access Locksmiths (Leeds) Limited,No
Http://opendatacommunities.org/id/metropolitan-district-council/leeds,Leeds City Council,31/05/2016,Environment & Housing,Leeds Building Services,Supplies and Services,Operational Materials,205,27-May-16,1605-00137,0,17.67,R,Access Locksmiths (Leeds) Limited,No
Http://opendatacommunities.org/id/metropolitan-district-council/leeds,Leeds City Council,31/05/2016,Environment & Housing,Leeds Building Services,Supplies and Services,Operational Materials,205,27-May-16,1605-00138,0,13.9,R,Access Locksmiths (Leeds) Limited,No
Http://opendatacommunities.org/id/metropolitan-district-council/leeds,Leeds City Council,31/05/2016,Environment & Housing,Leeds Building Services,Supplies and Services,Operational Materials,205,27-May-16,1605-00139,0,18.52,R,Access Locksmiths (Leeds) Limited,No
Http://opendatacommunities.org/id/metropolitan-district-council/leeds,Leeds City Council,31/05/2016,Environment & Housing,Leeds Building Services,Supplies and Services,Operational Materials,205,27-May-16,1605-00140,0,12,R,Access Locksmiths (Leeds) Limited,No
Http://opendatacommunities.org/id/metropolitan-district-council/leeds,Leeds City Council,31/05/2016,Environment & Housing,Leeds Building Services,Supplies and Services,Operational Materials,205,27-May-16,1605-00141,0,9.95,R,Access Locksmiths (Leeds) Limited,No
Http://opendatacommunities.org/id/metropolitan-district-council/leeds,Leeds City Council,31/05/2016,Environment & Housing,Leeds Building Services,Supplies and Services,Operational Materials,205,27-May-16,1605-00142,0,83.88,R,Access Locksmiths (Leeds) Limited,No
Http://opendatacommunities.org/id/metropolitan-district-council/leeds,Leeds City Council,31/05/2016,Environment & Housing,Leeds Building Services,Supplies and Services,Operational Materials,205,27-May-16,1605-00143,0,70.15,R,Access Locksmiths (Leeds) Limited,No
Http://opendatacommunities.org/id/metropolitan-district-council/leeds,Leeds City Council,31/05/2016,Childrens Services,Safeguarding Targeted & Specialist,Supplies and Services,Computer Software & Equipment,214,25-May-16,1605-00144,0,500,R,Access Moving Image Ltd,No
Http://opendatacommunities.org/id/metropolitan-district-council/leeds,Leeds City Council,31/05/2016,Environment & Housing,Leeds Building Services,Supplies and Services,Operational Materials,205,05-May-16,1605-00145,0,50,R,Access Opening Systems Limited,No
Http://opendatacommunities.org/id/metropolitan-district-council/leeds,Leeds City Council,31/05/2016,Environment & Housing,Leeds Building Services,Supplies and Services,Operational Materials,205,05-May-16,1605-00146,0,135,R,Access Opening Systems Limited,No
Http://opendatacommunities.org/id/metropolitan-district-council/leeds,Leeds City Council,31/05/2016,Environment & Housing,Leeds Building Services,Supplies and Services,Operational Materials,205,05-May-16,1605-00147,0,585,R,Access Opening Systems Limited,No
Http://opendatacommunities.org/id/metropolitan-district-council/leeds,Leeds City Council,31/05/2016,Environment & Housing,Leeds Building Services,Supplies and Services,Operational Materials,205,12-May-16,1605-00148,0,135,R,Access Opening Systems Limited,No
Http://opendatacommunities.org/id/metropolitan-district-council/leeds,Leeds City Council,31/05/2016,Environment & Housing,Leeds Building Services,Supplies and Services,Operational Materials,205,16-May-16,1605-00149,0,247.5,R,Access Opening Systems Limited,No
Http://opendatacommunities.org/id/metropolitan-district-council/leeds,Leeds City Council,31/05/2016,Environment & Housing,Leeds Building Services,Supplies and Services,Operational Materials,205,16-May-16,1605-00150,0,75,R,Access Opening Systems Limited,No
Http://opendatacommunities.org/id/metropolitan-district-council/leeds,Leeds City Council,31/05/2016,Environment & Housing,Leeds Building Services,Supplies and Services,Operational Materials,205,16-May-16,1605-00151,0,117.65,R,Access Opening Systems Limited,No
Http://opendatacommunities.org/id/metropolitan-district-council/leeds,Leeds City Council,31/05/2016,Environment & Housing,Leeds Building Services,Supplies and Services,Operational Materials,205,16-May-16,1605-00152,0,270,R,Access Opening Systems Limited,No
Http://opendatacommunities.org/id/metropolitan-district-council/leeds,Leeds City Council,31/05/2016,Environment & Housing,Leeds Building Services,Supplies and Services,Other Hired And Contracted Services,265,18-May-16,1605-00153,0,2048.23,R,Access Opening Systems Limited,No
Http://opendatacommunities.org/id/metropolitan-district-council/leeds,Leeds City Council,31/05/2016,Environment & Housing,Leeds Building Services,Supplies and Services,Other Hired And Contracted Services,265,19-May-16,1605-00154,0,530,R,Access Opening Systems Limited,No
Http://opendatacommunities.org/id/metropolitan-district-council/leeds,Leeds City Council,31/05/2016,Environment & Housing,Leeds Building Services,Supplies and Services,Other Hired And Contracted Services,265,19-May-16,1605-00155,0,274.5,R,Access Opening Systems Limited,No
Http://opendatacommunities.org/id/metropolitan-district-council/leeds,Leeds City Council,31/05/2016,Environment & Housing,Leeds Building Services,Supplies and Services,Other Hired And Contracted Services,265,19-May-16,1605-00156,0,85,R,Access Opening Systems Limited,No
Http://opendatacommunities.org/id/metropolitan-district-council/leeds,Leeds City Council,31/05/2016,Environment & Housing,Leeds Building Services,Supplies and Services,Other Hired And Contracted Services,265,19-May-16,1605-00157,0,85,R,Access Opening Systems Limited,No
Http://opendatacommunities.org/id/metropolitan-district-council/leeds,Leeds City Council,31/05/2016,Environment & Housing,Leeds Building Services,Supplies and Services,Other Hired And Contracted Services,265,19-May-16,1605-00158,0,85,R,Access Opening Systems Limited,No
Http://opendatacommunities.org/id/metropolitan-district-council/leeds,Leeds City Council,31/05/2016,Environment & Housing,Leeds Building Services,Supplies and Services,Other Hired And Contracted Services,265,19-May-16,1605-00159,0,118.5,R,Access Opening Systems Limited,No
Http://opendatacommunities.org/id/metropolitan-district-council/leeds,Leeds City Council,31/05/2016,Environment & Housing,Leeds Building Services,Supplies and Services,Other Hired And Contracted Services,265,19-May-16,1605-00160,0,170,R,Access Opening Systems Limited,No
Http://opendatacommunities.org/id/metropolitan-district-council/leeds,Leeds City Council,31/05/2016,Environment & Housing,Leeds Building Services,Supplies and Services,Other Hired And Contracted Services,265,19-May-16,1605-00161,0,1850.24,R,Access Opening Systems Limited,No
Http://opendatacommunities.org/id/metropolitan-district-council/leeds,Leeds City Council,31/05/2016,Environment & Housing,Leeds Building Services,Supplies and Services,Other Hired And Contracted Services,265,19-May-16,1605-00162,0,852.32,R,Access Opening Systems Limited,No
Http://opendatacommunities.org/id/metropolitan-district-council/leeds,Leeds City Council,31/05/2016,Environment & Housing,Leeds Building Services,Supplies and Services,Other Hired And Contracted Services,265,19-May-16,1605-00163,0,85,R,Access Opening Systems Limited,No
Http://opendatacommunities.org/id/metropolitan-district-council/leeds,Leeds City Council,31/05/2016,Environment & Housing,Leeds Building Services,Supplies and Services,Other Hired And Contracted Services,265,19-May-16,1605-00164,0,91.25,R,Access Opening Systems Limited,No
Http://opendatacommunities.org/id/metropolitan-district-council/leeds,Leeds City Council,31/05/2016,Environment & Housing,Leeds Building Services,Supplies and Services,Other Hired And Contracted Services,265,19-May-16,1605-00165,0,350,R,Access Opening Systems Limited,No
Http://opendatacommunities.org/id/metropolitan-district-council/leeds,Leeds City Council,31/05/2016,Environment & Housing,Leeds Building Services,Supplies and Services,Other Hired And Contracted Services,265,19-May-16,1605-00166,0,91.25,R,Access Opening Systems Limited,No
Http://opendatacommunities.org/id/metropolitan-district-council/leeds,Leeds City Council,31/05/2016,Environment & Housing,Leeds Building Services,Supplies and Services,Other Hired And Contracted Services,265,19-May-16,1605-00167,0,85,R,Access Opening Systems Limited,No
Http://opendatacommunities.org/id/metropolitan-district-council/leeds,Leeds City Council,31/05/2016,Environment & Housing,Leeds Building Services,Supplies and Services,Other Hired And Contracted Services,265,19-May-16,1605-00168,0,562.75,R,Access Opening Systems Limited,No
Http://opendatacommunities.org/id/metropolitan-district-council/leeds,Leeds City Council,31/05/2016,Environment & Housing,Leeds Building Services,Supplies and Services,Other Hired And Contracted Services,265,19-May-16,1605-00169,0,91.25,R,Access Opening Systems Limited,No
Http://opendatacommunities.org/id/metropolitan-district-council/leeds,Leeds City Council,31/05/2016,Environment & Housing,Leeds Building Services,Supplies and Services,Other Hired And Contracted Services,265,19-May-16,1605-00170,0,1965.23,R,Access Opening Systems Limited,No
Http://opendatacommunities.org/id/metropolitan-district-council/leeds,Leeds City Council,31/05/2016,Environment & Housing,Leeds Building Services,Supplies and Services,Other Hired And Contracted Services,265,19-May-16,1605-00171,0,1615,R,Access Opening Systems Limited,No
Http://opendatacommunities.org/id/metropolitan-district-council/leeds,Leeds City Council,31/05/2016,Environment & Housing,Leeds Building Services,Supplies and Services,Other Hired And Contracted Services,265,19-May-16,1605-00172,0,986.5,R,Access Opening Systems Limited,No
Http://opendatacommunities.org/id/metropolitan-district-council/leeds,Leeds City Council,31/05/2016,Environment & Housing,Leeds Building Services,Supplies and Services,Other Hired And Contracted Services,265,19-May-16,1605-00173,0,751.5,R,Access Opening Systems Limited,No
Http://opendatacommunities.org/id/metropolitan-district-council/leeds,Leeds City Council,31/05/2016,Environment & Housing,Leeds Building Services,Supplies and Services,Operational Materials,205,20-May-16,1605-00174,0,80,R,Access Opening Systems Limited,No
Http://opendatacommunities.org/id/metropolitan-district-council/leeds,Leeds City Council,31/05/2016,Environment & Housing,Leeds Building Services,Supplies and Services,Other Hired And Contracted Services,265,25-May-16,1605-00175,0,91.25,R,Access Opening Systems Limited,No
Http://opendatacommunities.org/id/metropolitan-district-council/leeds,Leeds City Council,31/05/2016,Environment & Housing,Leeds Building Services,Supplies and Services,Operational Materials,205,27-May-16,1605-00176,0,47,R,Access Opening Systems Limited,No
Http://opendatacommunities.org/id/metropolitan-district-council/leeds,Leeds City Council,31/05/2016,Environment & Housing,Leeds Building Services,Supplies and Services,Operational Materials,205,27-May-16,1605-00177,0,115.5,R,Access Opening Systems Limited,No
Http://opendatacommunities.org/id/metropolitan-district-council/leeds,Leeds City Council,31/05/2016,Environment & Housing,Leeds Building Services,Supplies and Services,Operational Materials,205,27-May-16,1605-00178,0,295,R,Access Opening Systems Limited,No
Http://opendatacommunities.org/id/metropolitan-district-council/leeds,Leeds City Council,31/05/2016,Environment & Housing,Leeds Building Services,Supplies and Services,Operational Materials,205,31-May-16,1605-00179,0,175,R,Access Opening Systems Limited,No
Http://opendatacommunities.org/id/metropolitan-district-council/leeds,Leeds City Council,31/05/2016,Insurance,Insurance,Supplies and Services,Insurance Claims,248,03-May-16,1605-00180,0,9000,R,Accident Advice Solicitors,No
Http://opendatacommunities.org/id/metropolitan-district-council/leeds,Leeds City Council,31/05/2016,Insurance,Insurance,Supplies and Services,Insurance Claims,248,12-May-16,1605-00181,0,3989.6,R,Accountant General Of The Senior Courts,No
Http://opendatacommunities.org/id/metropolitan-district-council/leeds,Leeds City Council,31/05/2016,Insurance,Insurance,Supplies and Services,Insurance Claims,248,24-May-16,1605-00182,0,3000,R,Accountant General Of The Senior Courts,No
Http://opendatacommunities.org/id/metropolitan-district-council/leeds,Leeds City Council,31/05/2016,Civic Enterprise Leeds,Commercial Services,Transport,Private Hire,360,18-May-16,1605-00183,0,222.2,R,Ace Cars,No
Http://opendatacommunities.org/id/metropolitan-district-council/leeds,Leeds City Council,31/05/2016,Civic Enterprise Leeds,Commercial Services,Transport,Private Hire,360,18-May-16,1605-00184,0,242.4,R,Ace Cars,No
Http://opendatacommunities.org/id/metropolitan-district-council/leeds,Leeds City Council,31/05/2016,Civic Enterprise Leeds,Commercial Services,Transport,Private Hire,360,18-May-16,1605-00185,0,262.6,R,Ace Cars,No
Http://opendatacommunities.org/id/metropolitan-district-council/leeds,Leeds City Council,31/05/2016,Civic Enterprise Leeds,Commercial Services,Transport,Private Hire,360,18-May-16,1605-00186,0,181.8,R,Ace Cars,No
Http://opendatacommunities.org/id/metropolitan-district-council/leeds,Leeds City Council,31/05/2016,City Development,Libraries  Arts & Heritage,Transport,Hire Of Movable Plant & Machinery,315,05-May-16,1605-00187,0,335.5,R,Ace Container Services Limited,No
Http://opendatacommunities.org/id/metropolitan-district-council/leeds,Leeds City Council,31/05/2016,City Development,Recreation,Supplies and Services,Other Hired And Contracted Services,265,11-May-16,1605-00188,0,135,R,Ace Container Services Limited,No
Http://opendatacommunities.org/id/metropolitan-district-council/leeds,Leeds City Council,31/05/2016,City Development,Recreation,Transport,External Hire -Occasional,304,27-May-16,1605-00189,0,128.65,R,Ace Container Services Limited,No
Http://opendatacommunities.org/id/metropolitan-district-council/leeds,Leeds City Council,31/05/2016,City Development,Libraries  Arts & Heritage,Transport,Hire Of Movable Plant & Machinery,315,27-May-16,1605-00190,0,46.5,R,Ace Container Services Limited,No
Http://opendatacommunities.org/id/metropolitan-district-council/leeds,Leeds City Council,31/05/2016,City Development,Asset Management Services,Supplies and Services,Other Hired And Contracted Services,265,20-May-16,1605-00191,0,250,R,REDACTED PERSONAL DATA,No
Http://opendatacommunities.org/id/metropolitan-district-council/leeds,Leeds City Council,31/05/2016,Childrens Services,Safeguarding Targeted & Specialist,Third Party Payments,SEN Placements,566,06-May-16,1605-00192,0,16332,R,Ackworth School,No
Http://opendatacommunities.org/id/metropolitan-district-council/leeds,Leeds City Council,31/05/2016,Childrens Services,Safeguarding Targeted & Specialist,Third Party Payments,SEN Placements,566,06-May-16,1605-00193,0,16371.3,R,Ackworth School,No
Http://opendatacommunities.org/id/metropolitan-district-council/leeds,Leeds City Council,31/05/2016,Childrens Services,Safeguarding Targeted & Specialist,Third Party Payments,SEN Placements,566,06-May-16,1605-00194,0,16342,R,Ackworth School,No
Http://opendatacommunities.org/id/metropolitan-district-council/leeds,Leeds City Council,31/05/2016,Childrens Services,Safeguarding Targeted & Specialist,Third Party Payments,SEN Placements,566,06-May-16,1605-00195,0,16332,R,Ackworth School,No
Http://opendatacommunities.org/id/metropolitan-district-council/leeds,Leeds City Council,31/05/2016,Childrens Services,Safeguarding Targeted & Specialist,Third Party Payments,SEN Placements,566,06-May-16,1605-00196,0,16332,R,Ackworth School,No
Http://opendatacommunities.org/id/metropolitan-district-council/leeds,Leeds City Council,31/05/2016,Childrens Services,Safeguarding Targeted & Specialist,Third Party Payments,SEN Placements,566,26-May-16,1605-00197,0,24132,R,Ackworth School,No
Http://opendatacommunities.org/id/metropolitan-district-council/leeds,Leeds City Council,31/05/2016,Environment & Housing,Leeds Building Services,Supplies and Services,Other Hired And Contracted Services,265,12-May-16,1605-00198,0,933,R,Acme Facilities Group Ltd,No
Http://opendatacommunities.org/id/metropolitan-district-council/leeds,Leeds City Council,31/05/2016,Childrens Services,Safeguarding Targeted & Specialist,Third Party Payments,Independent Fostering Agencies,509,19-May-16,1605-00199,0,5014.2,R,Acorn House (Fostering Services) Ltd,No
Http://opendatacommunities.org/id/metropolitan-district-council/leeds,Leeds City Council,31/05/2016,City Development,Libraries  Arts & Heritage,Supplies and Services,Other Hired And Contracted Services,265,05-May-16,1605-00200,0,1741,R,Acorn Scaffolding (Yorkshire) Ltd,No
Http://opendatacommunities.org/id/metropolitan-district-council/leeds,Leeds City Council,31/05/2016,City Development,Libraries  Arts & Heritage,Supplies and Services,Other Hired And Contracted Services,265,27-May-16,1605-00201,0,149,R,Acorn Scaffolding (Yorkshire) Ltd,No
Http://opendatacommunities.org/id/metropolitan-district-council/leeds,Leeds City Council,31/05/2016,Adult Social Care,Other Adult Services,Third Party Payments,Residential - Drugs & Alcohol,583,10-May-16,1605-00202,0,2435.71,R,Acorn Treatment & Housing,No
Http://opendatacommunities.org/id/metropolitan-district-council/leeds,Leeds City Council,31/05/2016,Adult Social Care,Other Adult Services,Third Party Payments,Residential - Drugs & Alcohol,583,10-May-16,1605-00203,0,1492.86,R,Acorn Treatment & Housing,No
Http://opendatacommunities.org/id/metropolitan-district-council/leeds,Leeds City Council,31/05/2016,Adult Social Care,Other Adult Services,Third Party Payments,Residential - Drugs & Alcohol,583,10-May-16,1605-00204,0,2278.57,R,Acorn Treatment & Housing,No
Http://opendatacommunities.org/id/metropolitan-district-council/leeds,Leeds City Council,31/05/2016,Adult Social Care,Other Adult Services,Third Party Payments,Residential - Drugs & Alcohol,583,10-May-16,1605-00205,0,2200,R,Acorn Treatment & Housing,No
Http://opendatacommunities.org/id/metropolitan-district-council/leeds,Leeds City Council,31/05/2016,Adult Social Care,Other Adult Services,Third Party Payments,Residential - Drugs & Alcohol,583,20-May-16,1605-00206,0,1964.29,R,Acorn Treatment & Housing,No
Http://opendatacommunities.org/id/metropolitan-district-council/leeds,Leeds City Council,31/05/2016,Adult Social Care,Other Adult Services,Third Party Payments,Residential - Drugs & Alcohol,583,25-May-16,1605-00207,0,2435.71,R,Acorn Treatment & Housing,No
Http://opendatacommunities.org/id/metropolitan-district-council/leeds,Leeds City Council,31/05/2016,Adult Social Care,Services For Older People Under 65 P/Dis,Third Party Payments,Nursing Home,570,04-May-16,1605-00208,0,4811.84,R,Acre Green,No
Http://opendatacommunities.org/id/metropolitan-district-council/leeds,Leeds City Council,31/05/2016,Adult Social Care,Services For Older People - 65 And Over,Third Party Payments,Nursing Home,570,04-May-16,1605-00209,0,19637.85,R,Acre Green,No
Http://opendatacommunities.org/id/metropolitan-district-council/leeds,Leeds City Council,31/05/2016,Adult Social Care,Services For Older People Under 65 P/Dis,Third Party Payments,Nursing Care Dementia,574,04-May-16,1605-00210,0,1006.48,R,Acre Green,No
Http://opendatacommunities.org/id/metropolitan-district-council/leeds,Leeds City Council,31/05/2016,Adult Social Care,Services For Older People Under 65 P/Dis,Third Party Payments,Residential,580,04-May-16,1605-00211,0,2075.7,R,Acre Green,No
Http://opendatacommunities.org/id/metropolitan-district-council/leeds,Leeds City Council,31/05/2016,Adult Social Care,Services For Older People - 65 And Over,Third Party Payments,Residential,580,04-May-16,1605-00212,0,20737.08,R,Acre Green,No
Http://opendatacommunities.org/id/metropolitan-district-council/leeds,Leeds City Council,31/05/2016,Adult Social Care,Services For Adults Under 65 Mental/Dis,Third Party Payments,Residential,580,04-May-16,1605-00213,0,1351.2,R,Acre Green,No
Http://opendatacommunities.org/id/metropolitan-district-council/leeds,Leeds City Council,31/05/2016,Adult Social Care,Services For Older People Under 65 P/Dis,Third Party Payments,Nursing Home,570,31-May-16,1605-00214,0,4811.84,R,Acre Green,No
Http://opendatacommunities.org/id/metropolitan-district-council/leeds,Leeds City Council,31/05/2016,Adult Social Care,Services For Older People - 65 And Over,Third Party Payments,Nursing Home,570,31-May-16,1605-00215,0,2706.65,R,Acre Green,No
Http://opendatacommunities.org/id/metropolitan-district-council/leeds,Leeds City Council,31/05/2016,Adult Social Care,Services For Older People Under 65 P/Dis,Third Party Payments,Nursing Care Dementia,574,31-May-16,1605-00216,0,1006.48,R,Acre Green,No
Http://opendatacommunities.org/id/metropolitan-district-council/leeds,Leeds City Council,31/05/2016,Adult Social Care,Services For Older People Under 65 P/Dis,Third Party Payments,Residential,580,31-May-16,1605-00217,0,2452.8,R,Acre Green,No
Http://opendatacommunities.org/id/metropolitan-district-council/leeds,Leeds City Council,31/05/2016,Adult Social Care,Services For Older People - 65 And Over,Third Party Payments,Residential,580,31-May-16,1605-00218,0,12309.45,R,Acre Green,No
Http://opendatacommunities.org/id/metropolitan-district-council/leeds,Leeds City Council,31/05/2016,Adult Social Care,Services For Adults Under 65 Mental/Dis,Third Party Payments,Residential,580,31-May-16,1605-00219,0,1351.2,R,Acre Green,No
Http://opendatacommunities.org/id/metropolitan-district-council/leeds,Leeds City Council,31/05/2016,Environment & Housing,Leeds Building Services,Supplies and Services,Operational Materials,205,13-May-16,1605-00220,0,2007.6,R,Actavo Uk Limited,No
Http://opendatacommunities.org/id/metropolitan-district-council/leeds,Leeds City Council,31/05/2016,Environment & Housing,Leeds Building Services,Supplies and Services,Operational Materials,205,13-May-16,1605-00221,0,87.5,R,Actavo Uk Limited,No
Http://opendatacommunities.org/id/metropolitan-district-council/leeds,Leeds City Council,31/05/2016,Environment & Housing,Leeds Building Services,Supplies and Services,Operational Furniture And Equipment,203,20-May-16,1605-00222,0,49.2,R,Actavo Uk Limited,No
Http://opendatacommunities.org/id/metropolitan-district-council/leeds,Leeds City Council,31/05/2016,Adult Social Care,Services For Adults Under 65 Mental/Dis,Third Party Payments,Fees - Level 4,520,06-May-16,1605-00223,0,2100,R,Action First Recruitment Ltd,No
Http://opendatacommunities.org/id/metropolitan-district-council/leeds,Leeds City Council,31/05/2016,Adult Social Care,Services For Adults Under 65 Mental/Dis,Third Party Payments,Fees - Level 4,520,06-May-16,1605-00224,0,1050,R,Action First Recruitment Ltd,No
Http://opendatacommunities.org/id/metropolitan-district-council/leeds,Leeds City Council,31/05/2016,Adult Social Care,Services For Adults Under 65 Mental/Dis,Third Party Payments,Fees - Level 4,520,06-May-16,1605-00225,0,1050,R,Action First Recruitment Ltd,No
Http://opendatacommunities.org/id/metropolitan-district-council/leeds,Leeds City Council,31/05/2016,Adult Social Care,Services For Adults Under 65 Mental/Dis,Third Party Payments,Fees - Level 4,520,06-May-16,1605-00226,0,350,R,Action First Recruitment Ltd,No
Http://opendatacommunities.org/id/metropolitan-district-council/leeds,Leeds City Council,31/05/2016,Adult Social Care,Services For Adults Under 65 Mental/Dis,Third Party Payments,Fees - Level 4,520,06-May-16,1605-00227,0,350,R,Action First Recruitment Ltd,No
Http://opendatacommunities.org/id/metropolitan-district-council/leeds,Leeds City Council,31/05/2016,Adult Social Care,Services For Adults Under 65 Mental/Dis,Third Party Payments,Fees - Level 4,520,06-May-16,1605-00228,0,350,R,Action First Recruitment Ltd,No
Http://opendatacommunities.org/id/metropolitan-district-council/leeds,Leeds City Council,31/05/2016,Adult Social Care,Services For Adults Under 65 Mental/Dis,Third Party Payments,Fees - Level 4,520,06-May-16,1605-00229,0,350,R,Action First Recruitment Ltd,No
Http://opendatacommunities.org/id/metropolitan-district-council/leeds,Leeds City Council,31/05/2016,Adult Social Care,Services For Adults Under 65 Mental/Dis,Third Party Payments,Fees - Level 4,520,06-May-16,1605-00230,0,350,R,Action First Recruitment Ltd,No
Http://opendatacommunities.org/id/metropolitan-district-council/leeds,Leeds City Council,31/05/2016,Adult Social Care,Services For Adults Under 65 Mental/Dis,Third Party Payments,Fees - Level 4,520,06-May-16,1605-00231,0,1750,R,Action First Recruitment Ltd,No
Http://opendatacommunities.org/id/metropolitan-district-council/leeds,Leeds City Council,31/05/2016,Adult Social Care,Services For Adults Under 65 Mental/Dis,Third Party Payments,Fees - Level 4,520,20-May-16,1605-00232,0,350,R,Action First Recruitment Ltd,No
Http://opendatacommunities.org/id/metropolitan-district-council/leeds,Leeds City Council,31/05/2016,Adult Social Care,Services For Adults Under 65 Mental/Dis,Third Party Payments,Fees - Level 4,520,20-May-16,1605-00233,0,700,R,Action First Recruitment Ltd,No
Http://opendatacommunities.org/id/metropolitan-district-council/leeds,Leeds City Council,31/05/2016,Adult Social Care,Services For Adults Under 65 Mental/Dis,Third Party Payments,Fees - Level 4,520,20-May-16,1605-00234,0,1400,R,Action First Recruitment Ltd,No
Http://opendatacommunities.org/id/metropolitan-district-council/leeds,Leeds City Council,31/05/2016,Adult Social Care,Services For Adults Under 65 Mental/Dis,Third Party Payments,Fees - Level 4,520,20-May-16,1605-00235,0,2450,R,Action First Recruitment Ltd,No
Http://opendatacommunities.org/id/metropolitan-district-council/leeds,Leeds City Council,31/05/2016,Adult Social Care,Services For Adults Under 65 Mental/Dis,Third Party Payments,Fees - Level 4,520,20-May-16,1605-00236,0,3500,R,Action First Recruitment Ltd,No
Http://opendatacommunities.org/id/metropolitan-district-council/leeds,Leeds City Council,31/05/2016,Adult Social Care,Services For Adults Under 65 Mental/Dis,Third Party Payments,Fees - Level 4,520,20-May-16,1605-00237,0,1750,R,Action First Recruitment Ltd,No
Http://opendatacommunities.org/id/metropolitan-district-council/leeds,Leeds City Council,31/05/2016,Adult Social Care,Services For Adults Under 65 Mental/Dis,Third Party Payments,Fees - Level 4,520,20-May-16,1605-00238,0,350,R,Action First Recruitment Ltd,No
Http://opendatacommunities.org/id/metropolitan-district-council/leeds,Leeds City Council,31/05/2016,Adult Social Care,Services For Adults Under 65 Mental/Dis,Third Party Payments,Fees - Level 4,520,20-May-16,1605-00239,0,700,R,Action First Recruitment Ltd,No
Http://opendatacommunities.org/id/metropolitan-district-council/leeds,Leeds City Council,31/05/2016,Adult Social Care,Services For Adults Under 65 Mental/Dis,Third Party Payments,Fees - Level 4,520,20-May-16,1605-00240,0,1050,R,Action First Recruitment Ltd,No
Http://opendatacommunities.org/id/metropolitan-district-council/leeds,Leeds City Council,31/05/2016,Adult Social Care,Services For Adults Under 65 Mental/Dis,Third Party Payments,Fees - Level 4,520,20-May-16,1605-00241,0,350,R,Action First Recruitment Ltd,No
Http://opendatacommunities.org/id/metropolitan-district-council/leeds,Leeds City Council,31/05/2016,Adult Social Care,Services For Adults Under 65 Mental/Dis,Third Party Payments,Fees - Level 4,520,20-May-16,1605-00242,0,350,R,Action First Recruitment Ltd,No
Http://opendatacommunities.org/id/metropolitan-district-council/leeds,Leeds City Council,31/05/2016,Adult Social Care,Services For Adults Under 65 Mental/Dis,Third Party Payments,Fees - Level 4,520,20-May-16,1605-00243,0,350,R,Action First Recruitment Ltd,No
Http://opendatacommunities.org/id/metropolitan-district-council/leeds,Leeds City Council,31/05/2016,Adult Social Care,Services For Adults Under 65 Mental/Dis,Third Party Payments,Fees - Level 4,520,20-May-16,1605-00244,0,350,R,Action First Recruitment Ltd,No
Http://opendatacommunities.org/id/metropolitan-district-council/leeds,Leeds City Council,31/05/2016,Adult Social Care,Services For Adults Under 65 Mental/Dis,Third Party Payments,Fees - Level 4,520,27-May-16,1605-00245,0,350,R,Action First Recruitment Ltd,No
Http://opendatacommunities.org/id/metropolitan-district-council/leeds,Leeds City Council,31/05/2016,Adult Social Care,Services For Adults Under 65 Mental/Dis,Third Party Payments,Fees - Level 4,520,27-May-16,1605-00246,0,700,R,Action First Recruitment Ltd,No
Http://opendatacommunities.org/id/metropolitan-district-council/leeds,Leeds City Council,31/05/2016,Adult Social Care,Services For Adults Under 65 Mental/Dis,Third Party Payments,Fees - Level 4,520,27-May-16,1605-00247,0,1750,R,Action First Recruitment Ltd,No
Http://opendatacommunities.org/id/metropolitan-district-council/leeds,Leeds City Council,31/05/2016,Adult Social Care,Services For Adults Under 65 Mental/Dis,Third Party Payments,Fees - Level 4,520,27-May-16,1605-00248,0,1750,R,Action First Recruitment Ltd,No
Http://opendatacommunities.org/id/metropolitan-district-council/leeds,Leeds City Council,31/05/2016,Adult Social Care,Services For Adults Under 65 Mental/Dis,Third Party Payments,Fees - Level 4,520,27-May-16,1605-00249,0,1750,R,Action First Recruitment Ltd,No
Http://opendatacommunities.org/id/metropolitan-district-council/leeds,Leeds City Council,31/05/2016,Adult Social Care,Services For Adults Under 65 Mental/Dis,Third Party Payments,Fees - Level 4,520,27-May-16,1605-00250,0,1400,R,Action First Recruitment Ltd,No
Http://opendatacommunities.org/id/metropolitan-district-council/leeds,Leeds City Council,31/05/2016,Adult Social Care,Services For Adults Under 65 Mental/Dis,Third Party Payments,Fees - Level 4,520,27-May-16,1605-00251,0,3500,R,Action First Recruitment Ltd,No
Http://opendatacommunities.org/id/metropolitan-district-council/leeds,Leeds City Council,31/05/2016,Adult Social Care,Services For Adults Under 65 Mental/Dis,Third Party Payments,Fees - Level 4,520,27-May-16,1605-00252,0,2100,R,Action First Recruitment Ltd,No
Http://opendatacommunities.org/id/metropolitan-district-council/leeds,Leeds City Council,31/05/2016,Adult Social Care,Services For Adults Under 65 Mental/Dis,Third Party Payments,Fees - Level 4,520,27-May-16,1605-00253,0,350,R,Action First Recruitment Ltd,No
Http://opendatacommunities.org/id/metropolitan-district-council/leeds,Leeds City Council,31/05/2016,Adult Social Care,Services For Adults Under 65 Mental/Dis,Third Party Payments,Fees - Level 4,520,27-May-16,1605-00254,0,350,R,Action First Recruitment Ltd,No
Http://opendatacommunities.org/id/metropolitan-district-council/leeds,Leeds City Council,31/05/2016,Childrens Services,Safeguarding Targeted & Specialist,Third Party Payments,Interagency Adoptions,559,06-May-16,1605-00255,0,1875,R,Action For Children,No
Http://opendatacommunities.org/id/metropolitan-district-council/leeds,Leeds City Council,31/05/2016,Childrens Services,Safeguarding Targeted & Specialist,Third Party Payments,Independent Fostering Agencies,509,25-May-16,1605-00256,0,4622.4,R,Action For Children,No
Http://opendatacommunities.org/id/metropolitan-district-council/leeds,Leeds City Council,31/05/2016,Childrens Services,Safeguarding Targeted & Specialist,Third Party Payments,Independent Fostering Agencies,509,25-May-16,1605-00257,0,4997.1,R,Action For Children,No
Http://opendatacommunities.org/id/metropolitan-district-council/leeds,Leeds City Council,31/05/2016,Childrens Services,Safeguarding Targeted & Specialist,Third Party Payments,Independent Fostering Agencies,509,25-May-16,1605-00258,0,4622.4,R,Action For Children,No
Http://opendatacommunities.org/id/metropolitan-district-council/leeds,Leeds City Council,31/05/2016,Childrens Services,Safeguarding Targeted & Specialist,Third Party Payments,Independent Fostering Agencies,509,25-May-16,1605-00259,0,4997.1,R,Action For Children,No
Http://opendatacommunities.org/id/metropolitan-district-council/leeds,Leeds City Council as Accountable Body,31/05/2016,Social Services Pooled Budgets,Leeds Community Equip Store Pooled Budgt,Supplies and Services,Other Equipment,203,20-May-16,1605-00260,0,34.99,R,Active Mobility Centre Ltd,No
Http://opendatacommunities.org/id/metropolitan-district-council/leeds,Leeds City Council,31/05/2016,Environment & Housing,Parks and Countryside,Supplies and Services,Resaleable Materials,204,04-May-16,1605-00261,0,159,R,Acushnet Europe Limited,No
Http://opendatacommunities.org/id/metropolitan-district-council/leeds,Leeds City Council,31/05/2016,Environment & Housing,Parks and Countryside,Supplies and Services,Resaleable Materials,204,27-May-16,1605-00262,0,243,R,Acushnet Europe Limited,No
Http://opendatacommunities.org/id/metropolitan-district-council/leeds,Leeds City Council as Accountable Body,31/05/2016,Social Services Pooled Budgets,Leeds Community Equip Store Pooled Budgt,Support Services,Training & Development,423,13-May-16,1605-00263,0,1250,R,Acute Sales Limited,No
Http://opendatacommunities.org/id/metropolitan-district-council/leeds,Leeds City Council,31/05/2016,Civic Enterprise Leeds,Business Support Centre,Supplies and Services,Other Hired And Contracted Services,265,11-May-16,1605-00264,0,75.14,R,Ad3 Envelope Printers Limited,No
Http://opendatacommunities.org/id/metropolitan-district-council/leeds,Leeds City Council,31/05/2016,Civic Enterprise Leeds,Business Support Centre,Supplies and Services,Other Hired And Contracted Services,265,11-May-16,1605-00265,0,67.38,R,Ad3 Envelope Printers Limited,No
Http://opendatacommunities.org/id/metropolitan-district-council/leeds,Leeds City Council,31/05/2016,Civic Enterprise Leeds,Business Support Centre,Supplies and Services,Operational Materials,205,18-May-16,1605-00266,0,645,R,Ad3 Envelope Printers Limited,No
Http://opendatacommunities.org/id/metropolitan-district-council/leeds,Leeds City Council,31/05/2016,Civic Enterprise Leeds,Business Support Centre,Supplies and Services,Other Hired And Contracted Services,265,18-May-16,1605-00267,0,88.8,R,Ad3 Envelope Printers Limited,No
Http://opendatacommunities.org/id/metropolitan-district-council/leeds,Leeds City Council,31/05/2016,Civic Enterprise Leeds,Business Support Centre,Supplies and Services,Other Hired And Contracted Services,265,20-May-16,1605-00268,0,90.2,R,Ad3 Envelope Printers Limited,No
Http://opendatacommunities.org/id/metropolitan-district-council/leeds,Leeds City Council,31/05/2016,Civic Enterprise Leeds,Business Support Centre,Supplies and Services,Other Hired And Contracted Services,265,20-May-16,1605-00269,0,56.87,R,Ad3 Envelope Printers Limited,No
Http://opendatacommunities.org/id/metropolitan-district-council/leeds,Leeds City Council,31/05/2016,Adult Social Care,Social Services Support Services,Support Services,Legal Disbursements,411,13-May-16,1605-00270,0,87.5,R,Adam Fullwood,No
Http://opendatacommunities.org/id/metropolitan-district-council/leeds,Leeds City Council,31/05/2016,Childrens Services,Safeguarding Targeted & Specialist,Transfer Payments,Leaving Care Allowances,634,13-May-16,1605-00271,0,50,R,REDACTED PERSONAL DATA,No
Http://opendatacommunities.org/id/metropolitan-district-council/leeds,Leeds City Council,31/05/2016,Adult Social Care,Services For Older People - 65 And Over,Third Party Payments,Nursing Home,570,04-May-16,1605-00272,0,2120,R,Adbolton Hall,No
Http://opendatacommunities.org/id/metropolitan-district-council/leeds,Leeds City Council,31/05/2016,Adult Social Care,Services For Older People - 65 And Over,Third Party Payments,Nursing Home,570,31-May-16,1605-00273,0,2120,R,Adbolton Hall,No
Http://opendatacommunities.org/id/metropolitan-district-council/leeds,Leeds City Council,31/05/2016,Environment & Housing,Parks and Countryside,Supplies and Services,Other Hired And Contracted Services,265,26-May-16,1605-00274,0,7532,R,Addlestone & Partners,No
Http://opendatacommunities.org/id/metropolitan-district-council/leeds,Leeds City Council,31/05/2016,Central & Corporate,Technology  ,Employees,Agency Staff,8,31-Mar-16,1605-00275,0,2300,R,Adecco Alfred Marks,Yes
Http://opendatacommunities.org/id/metropolitan-district-council/leeds,Leeds City Council,31/05/2016,Central & Corporate,Technology  ,Employees,Agency Staff,8,07-Apr-16,1605-00276,0,5980,R,Adecco Alfred Marks,Yes
Http://opendatacommunities.org/id/metropolitan-district-council/leeds,Leeds City Council,31/05/2016,Central & Corporate,Technology  ,Employees,Agency Staff,8,21-Apr-16,1605-00277,0,2300,R,Adecco Alfred Marks,Yes
Http://opendatacommunities.org/id/metropolitan-district-council/leeds,Leeds City Council,31/05/2016,Citizens and Communities,Elections  Licensing and Registration,Premises,Rents,141,16-May-16,1605-00278,0,320,R,Adel Methodist Church Trustees,No
Http://opendatacommunities.org/id/metropolitan-district-council/leeds,Leeds City Council,31/05/2016,Childrens Services,Learning Skills & Universal,Third Party Payments,Services Rendered By Voluntary Sector,505,16-May-16,1605-00279,0,1404,R,Adel Pre School,No
Http://opendatacommunities.org/id/metropolitan-district-council/leeds,Leeds City Council,31/05/2016,Childrens Services,Safeguarding Targeted & Specialist,Third Party Payments,Placement Support,550,10-May-16,1605-00280,0,192,R,Adel Quaker Meeting,No
Http://opendatacommunities.org/id/metropolitan-district-council/leeds,Leeds City Council,31/05/2016,Citizens and Communities,Elections  Licensing and Registration,Premises,Rents,141,16-May-16,1605-00281,0,618,R,Adel War Memorial Association,No
Http://opendatacommunities.org/id/metropolitan-district-council/leeds,Leeds City Council,31/05/2016,Adult Social Care,Services For Older People - 65 And Over,Third Party Payments,Residential,580,04-May-16,1605-00282,0,1173.68,R,Adeline Lodge,No
Http://opendatacommunities.org/id/metropolitan-district-council/leeds,Leeds City Council,31/05/2016,Adult Social Care,Services For Older People - 65 And Over,Third Party Payments,Residential,580,31-May-16,1605-00283,0,1173.68,R,Adeline Lodge,No
Http://opendatacommunities.org/id/metropolitan-district-council/leeds,Leeds City Council,31/05/2016,Adult Social Care,Services For Older People - 65 And Over,Third Party Payments,Nursing Home,570,04-May-16,1605-00284,0,1056.32,R,Aden House,No
Http://opendatacommunities.org/id/metropolitan-district-council/leeds,Leeds City Council,31/05/2016,Adult Social Care,Services For Older People - 65 And Over,Third Party Payments,Residential Care Dementia,571,04-May-16,1605-00285,0,1330.76,R,Aden House,No
Http://opendatacommunities.org/id/metropolitan-district-council/leeds,Leeds City Council,31/05/2016,Adult Social Care,Services For Older People - 65 And Over,Third Party Payments,Nursing Home,570,31-May-16,1605-00286,0,1056.32,R,Aden House,No
Http://opendatacommunities.org/id/metropolitan-district-council/leeds,Leeds City Council,31/05/2016,Adult Social Care,Services For Older People - 65 And Over,Third Party Payments,Residential Care Dementia,571,31-May-16,1605-00287,0,1330.76,R,Aden House,No
Http://opendatacommunities.org/id/metropolitan-district-council/leeds,Leeds City Council,31/05/2016,Environment & Housing,Leeds Building Services,Supplies and Services,Operational Materials,205,11-May-16,1605-00288,0,247.94,R,Adi Global,No
Http://opendatacommunities.org/id/metropolitan-district-council/leeds,Leeds City Council,31/05/2016,Environment & Housing,Leeds Building Services,Supplies and Services,Operational Materials,205,18-May-16,1605-00289,0,153.16,R,Adi Global,No
Http://opendatacommunities.org/id/metropolitan-district-council/leeds,Leeds City Council,31/05/2016,Environment & Housing,Leeds Building Services,Supplies and Services,Operational Materials,205,18-May-16,1605-00290,0,729,R,Adi Global,No
Http://opendatacommunities.org/id/metropolitan-district-council/leeds,Leeds City Council,31/05/2016,Environment & Housing,Leeds Building Services,Supplies and Services,Operational Materials,205,20-May-16,1605-00291,0,678.94,R,Adi Global,No
Http://opendatacommunities.org/id/metropolitan-district-council/leeds,Leeds City Council,31/05/2016,Environment & Housing,Leeds Building Services,Supplies and Services,Operational Materials,205,27-May-16,1605-00292,0,58.27,R,Adi Global,No
Http://opendatacommunities.org/id/metropolitan-district-council/leeds,Leeds City Council,31/05/2016,Environment & Housing,Community Safety  ,Supplies and Services,Other Hired And Contracted Services,265,08-Apr-16,1605-00293,0,28.57,R,Adi-Gardiner Ltd,Yes
Http://opendatacommunities.org/id/metropolitan-district-council/leeds,Leeds City Council,31/05/2016,Environment & Housing,Streetscene Environmental Services,Income,Penalties  Fines & Car Parking Charges,934,19-May-16,1605-00294,0,30,R,REDACTED PERSONAL DATA,No
Http://opendatacommunities.org/id/metropolitan-district-council/leeds,Leeds City Council,31/05/2016,Civic Enterprise Leeds,Commercial Services,Transport,Vehicle Spares,345,12-May-16,1605-00295,0,30,R,Adm Car Audio,No
Http://opendatacommunities.org/id/metropolitan-district-council/leeds,Leeds City Council,31/05/2016,Civic Enterprise Leeds,Commercial Services,Transport,Vehicle Spares,345,20-May-16,1605-00296,0,40,R,Adm Car Audio,No
Http://opendatacommunities.org/id/metropolitan-district-council/leeds,Leeds City Council,31/05/2016,Environment & Housing,Environmental Health,Capital,Other Costs,7,20-May-16,1605-00297,0,520,C,Admas Limited,No
Http://opendatacommunities.org/id/metropolitan-district-council/leeds,Leeds City Council,31/05/2016,Childrens Services,Safeguarding Targeted & Specialist,Third Party Payments,Independent Fostering Agencies,509,04-May-16,1605-00298,0,2945,R,Adolescent And Childrens Trust,No
Http://opendatacommunities.org/id/metropolitan-district-council/leeds,Leeds City Council,31/05/2016,Childrens Services,Safeguarding Targeted & Specialist,Third Party Payments,Independent Fostering Agencies,509,04-May-16,1605-00299,0,3100,R,Adolescent And Childrens Trust,No
Http://opendatacommunities.org/id/metropolitan-district-council/leeds,Leeds City Council,31/05/2016,Strategic Landlord,Housing Management,Premises,Premises Security Services,162,05-May-16,1605-00300,0,136.47,R,Adt Fire And Security Plc,No
Http://opendatacommunities.org/id/metropolitan-district-council/leeds,Leeds City Council,31/05/2016,Civic Enterprise Leeds,Corporate Property Management,Premises,Maintenance Of Buildings,101,24-May-16,1605-00301,0,148.44,R,Adt Fire And Security Plc,No
Http://opendatacommunities.org/id/metropolitan-district-council/leeds,Leeds City Council,31/05/2016,Civic Enterprise Leeds,Corporate Property Management,Premises,Maintenance Of Buildings,101,24-May-16,1605-00302,0,985.5,R,Adt Fire And Security Plc,No
Http://opendatacommunities.org/id/metropolitan-district-council/leeds,Leeds City Council,31/05/2016,Civic Enterprise Leeds,Corporate Property Management,Premises,Maintenance Of Buildings,101,24-May-16,1605-00303,0,1278.11,R,Adt Fire And Security Plc,No
Http://opendatacommunities.org/id/metropolitan-district-council/leeds,Leeds City Council,31/05/2016,Civic Enterprise Leeds,Corporate Property Management,Premises,Maintenance Of Buildings,101,24-May-16,1605-00304,0,659.66,R,Adt Fire And Security Plc,No
Http://opendatacommunities.org/id/metropolitan-district-council/leeds,Leeds City Council,31/05/2016,Civic Enterprise Leeds,Corporate Property Management,Premises,Maintenance Of Buildings,101,24-May-16,1605-00305,0,729.69,R,Adt Fire And Security Plc,No
Http://opendatacommunities.org/id/metropolitan-district-council/leeds,Leeds City Council,31/05/2016,Civic Enterprise Leeds,Corporate Property Management,Premises,Maintenance Of Buildings,101,24-May-16,1605-00306,0,1280.78,R,Adt Fire And Security Plc,No
Http://opendatacommunities.org/id/metropolitan-district-council/leeds,Leeds City Council as Accountable Body,31/05/2016,Social Services Pooled Budgets,Jcs For People With Learning Disabilitie,Third Party Payments,Sheltered Accommodation,569,04-May-16,1605-00307,0,1332.2,R,Adult Placement Services,No
Http://opendatacommunities.org/id/metropolitan-district-council/leeds,Leeds City Council as Accountable Body,31/05/2016,Social Services Pooled Budgets,Jcs For People With Learning Disabilitie,Third Party Payments,Sheltered Accommodation,569,04-May-16,1605-00308,0,823.81,R,Adult Placement Services,No
Http://opendatacommunities.org/id/metropolitan-district-council/leeds,Leeds City Council as Accountable Body,31/05/2016,Social Services Pooled Budgets,Jcs For People With Learning Disabilitie,Third Party Payments,Sheltered Accommodation,569,04-May-16,1605-00309,0,878.11,R,Adult Placement Services,No
Http://opendatacommunities.org/id/metropolitan-district-council/leeds,Leeds City Council,31/05/2016,Adult Social Care,Services For Adults Under 65 Mental/Dis,Third Party Payments,Nursing Home,570,04-May-16,1605-00310,0,1541.96,R,Adult Supported Living Ltd,No
Http://opendatacommunities.org/id/metropolitan-district-council/leeds,Leeds City Council,31/05/2016,Adult Social Care,Services For Adults Under 65 Mental/Dis,Third Party Payments,Nursing Home,570,31-May-16,1605-00311,0,1541.96,R,Adult Supported Living Ltd,No
Http://opendatacommunities.org/id/metropolitan-district-council/leeds,Leeds City Council,31/05/2016,City Development,Recreation,Supplies and Services,External Audit Fees,261,06-May-16,1605-00312,0,235,R,Advance Stocks Ltd,No
Http://opendatacommunities.org/id/metropolitan-district-council/leeds,Leeds City Council,31/05/2016,City Development,Recreation,Supplies and Services,External Audit Fees,261,06-May-16,1605-00313,0,85,R,Advance Stocks Ltd,No
Http://opendatacommunities.org/id/metropolitan-district-council/leeds,Leeds City Council,31/05/2016,City Development,Libraries  Arts & Heritage,Supplies and Services,External Audit Fees,261,06-May-16,1605-00314,0,75,R,Advance Stocks Ltd,No
Http://opendatacommunities.org/id/metropolitan-district-council/leeds,Leeds City Council,31/05/2016,City Development,Libraries  Arts & Heritage,Supplies and Services,External Audit Fees,261,27-May-16,1605-00315,0,85,R,Advance Stocks Ltd,No
Http://opendatacommunities.org/id/metropolitan-district-council/leeds,Leeds City Council,31/05/2016,City Development,Recreation,Supplies and Services,External Audit Fees,261,27-May-16,1605-00316,0,235,R,Advance Stocks Ltd,No
Http://opendatacommunities.org/id/metropolitan-district-council/leeds,Leeds City Council,31/05/2016,City Development,Recreation,Supplies and Services,External Audit Fees,261,27-May-16,1605-00317,0,85,R,Advance Stocks Ltd,No
Http://opendatacommunities.org/id/metropolitan-district-council/leeds,Leeds City Council,31/05/2016,Environment & Housing,Strategic Housing Support,Employees,Central Training,79,04-May-16,1605-00318,0,349.99,R,Advance Training Academy,No
Http://opendatacommunities.org/id/metropolitan-district-council/leeds,Leeds City Council,31/05/2016,Childrens Services,Safeguarding Targeted & Specialist,Support Services,Legal Disbursements,411,11-May-16,1605-00319,0,318.38,R,Advanced Child Care Assessments Ltd,No
Http://opendatacommunities.org/id/metropolitan-district-council/leeds,Leeds City Council as Accountable Body,31/05/2016,Social Services Pooled Budgets,Jcs For People With Learning Disabilitie,Third Party Payments,Residential,580,04-May-16,1605-00320,0,20213.48,R,Advitam Ltd,No
Http://opendatacommunities.org/id/metropolitan-district-council/leeds,Leeds City Council as Accountable Body,31/05/2016,Social Services Pooled Budgets,Jcs For People With Learning Disabilitie,Third Party Payments,Residential,580,31-May-16,1605-00321,0,20213.48,R,Advitam Ltd,No
Http://opendatacommunities.org/id/metropolitan-district-council/leeds,Leeds City Council,31/05/2016,Adult Social Care,Services For Older People - 65 And Over,Third Party Payments,Payments To Voluntary Organisations,561,10-May-16,1605-00322,0,83435.7,R,Advonet,No
Http://opendatacommunities.org/id/metropolitan-district-council/leeds,Leeds City Council,31/05/2016,Adult Social Care,Services For Adults Under 65 Mental/Dis,Third Party Payments,Payments To Voluntary Organisations,561,27-May-16,1605-00323,0,3052.02,R,Advonet,No
Http://opendatacommunities.org/id/metropolitan-district-council/leeds,Leeds City Council,31/05/2016,Adult Social Care,Services For Older People - 65 And Over,Third Party Payments,Payments To Voluntary Organisations,561,31-May-16,1605-00324,0,83435.7,R,Advonet,No
Http://opendatacommunities.org/id/metropolitan-district-council/leeds,Leeds City Council,31/05/2016,City Development,Economic Development,Capital,Other Costs,7,27-May-16,1605-00325,0,5433.7,C,Aecom Limited,No
Http://opendatacommunities.org/id/metropolitan-district-council/leeds,Leeds City Council,31/05/2016,City Development,Economic Development,Capital,Other Costs,7,27-May-16,1605-00326,0,10033,C,Aecom Limited,No
Http://opendatacommunities.org/id/metropolitan-district-council/leeds,Leeds City Council,31/05/2016,Environment & Housing,Leeds Building Services,Supplies and Services,Other Hired And Contracted Services,265,04-May-16,1605-00327,0,640,R,Aerial Satellite Link,No
Http://opendatacommunities.org/id/metropolitan-district-council/leeds,Leeds City Council,31/05/2016,City Development,Libraries  Arts & Heritage,Supplies and Services,Other Hired And Contracted Services,265,13-May-16,1605-00328,0,275,R,Aerial Satellite Link,No
Http://opendatacommunities.org/id/metropolitan-district-council/leeds,Leeds City Council as Accountable Body,31/05/2016,Social Services Pooled Budgets,Jcs For People With Learning Disabilitie,Third Party Payments,Home Care,568,03-May-16,1605-00329,0,360,R,Affinity Trust,No
Http://opendatacommunities.org/id/metropolitan-district-council/leeds,Leeds City Council as Accountable Body,31/05/2016,Social Services Pooled Budgets,Jcs For People With Learning Disabilitie,Third Party Payments,Home Care,568,03-May-16,1605-00330,0,1182.52,R,Affinity Trust,No
Http://opendatacommunities.org/id/metropolitan-district-council/leeds,Leeds City Council,31/05/2016,Adult Social Care,Services For Older People Under 65 P/Dis,Third Party Payments,Home Care,568,06-May-16,1605-00331,0,526.68,R,Affinity Trust,No
Http://opendatacommunities.org/id/metropolitan-district-council/leeds,Leeds City Council,31/05/2016,Adult Social Care,Services For Older People Under 65 P/Dis,Third Party Payments,Home Care,568,06-May-16,1605-00332,0,100.92,R,Affinity Trust,No
Http://opendatacommunities.org/id/metropolitan-district-council/leeds,Leeds City Council,31/05/2016,Adult Social Care,Services For Older People Under 65 P/Dis,Third Party Payments,Home Care,568,06-May-16,1605-00333,0,353.22,R,Affinity Trust,No
Http://opendatacommunities.org/id/metropolitan-district-council/leeds,Leeds City Council,31/05/2016,Adult Social Care,Services For Older People Under 65 P/Dis,Third Party Payments,Home Care,568,10-May-16,1605-00334,0,303.62,R,Affinity Trust,No
Http://opendatacommunities.org/id/metropolitan-district-council/leeds,Leeds City Council,31/05/2016,Adult Social Care,Services For Adults Under 65 Mental/Dis,Third Party Payments,Home Care,568,11-May-16,1605-00335,0,319.6,R,Affinity Trust,No
Http://opendatacommunities.org/id/metropolitan-district-council/leeds,Leeds City Council,31/05/2016,Adult Social Care,Services For Older People Under 65 P/Dis,Third Party Payments,Home Care,568,11-May-16,1605-00336,0,382.03,R,Affinity Trust,No
Http://opendatacommunities.org/id/metropolitan-district-council/leeds,Leeds City Council as Accountable Body,31/05/2016,Social Services Pooled Budgets,Jcs For People With Learning Disabilitie,Third Party Payments,Home Care,568,12-May-16,1605-00337,0,255.68,R,Affinity Trust,No
Http://opendatacommunities.org/id/metropolitan-district-council/leeds,Leeds City Council,31/05/2016,Childrens Services,Safeguarding Targeted & Specialist,Third Party Payments,Section 17,551,13-May-16,1605-00338,0,1792.5,R,Affinity Trust,No
Http://opendatacommunities.org/id/metropolitan-district-council/leeds,Leeds City Council,31/05/2016,Adult Social Care,Services For Older People Under 65 P/Dis,Third Party Payments,Home Care,568,13-May-16,1605-00339,0,543.32,R,Affinity Trust,No
Http://opendatacommunities.org/id/metropolitan-district-council/leeds,Leeds City Council,31/05/2016,Childrens Services,Safeguarding Targeted & Specialist,Third Party Payments,Section 17,551,13-May-16,1605-00340,0,4102.5,R,Affinity Trust,No
Http://opendatacommunities.org/id/metropolitan-district-council/leeds,Leeds City Council,31/05/2016,Adult Social Care,Services For Older People Under 65 P/Dis,Third Party Payments,Home Care,568,18-May-16,1605-00341,0,631.21,R,Affinity Trust,No
Http://opendatacommunities.org/id/metropolitan-district-council/leeds,Leeds City Council,31/05/2016,Adult Social Care,Services For Older People Under 65 P/Dis,Third Party Payments,Home Care,568,18-May-16,1605-00342,0,287.64,R,Affinity Trust,No
Http://opendatacommunities.org/id/metropolitan-district-council/leeds,Leeds City Council,31/05/2016,Adult Social Care,Services For Older People Under 65 P/Dis,Third Party Payments,Home Care,568,18-May-16,1605-00343,0,2198.16,R,Affinity Trust,No
Http://opendatacommunities.org/id/metropolitan-district-council/leeds,Leeds City Council,31/05/2016,Adult Social Care,Services For Older People Under 65 P/Dis,Third Party Payments,Home Care,568,18-May-16,1605-00344,0,198,R,Affinity Trust,No
Http://opendatacommunities.org/id/metropolitan-district-council/leeds,Leeds City Council,31/05/2016,Adult Social Care,Services For Older People Under 65 P/Dis,Third Party Payments,Home Care,568,25-May-16,1605-00345,0,-15.98,R,Affinity Trust,No
Http://opendatacommunities.org/id/metropolitan-district-council/leeds,Leeds City Council,31/05/2016,Adult Social Care,Services For Older People Under 65 P/Dis,Third Party Payments,Home Care,568,25-May-16,1605-00346,0,403.68,R,Affinity Trust,No
Http://opendatacommunities.org/id/metropolitan-district-council/leeds,Leeds City Council as Accountable Body,31/05/2016,Social Services Pooled Budgets,Jcs For People With Learning Disabilitie,Third Party Payments,Home Care,568,31-May-16,1605-00347,0,-2075.68,R,Affinity Trust,No
Http://opendatacommunities.org/id/metropolitan-district-council/leeds,Leeds City Council as Accountable Body,31/05/2016,Social Services Pooled Budgets,Jcs For People With Learning Disabilitie,Third Party Payments,Home Care,568,31-May-16,1605-00348,0,2565.11,R,Affinity Trust,No
Http://opendatacommunities.org/id/metropolitan-district-council/leeds,Leeds City Council as Accountable Body,31/05/2016,Social Services Pooled Budgets,Jcs For People With Learning Disabilitie,Third Party Payments,Sheltered Accommodation,569,04-May-16,1605-00349,0,135473.79,R,Affinity Trust North Divisional Office,No
Http://opendatacommunities.org/id/metropolitan-district-council/leeds,Leeds City Council as Accountable Body,31/05/2016,Social Services Pooled Budgets,Jcs For People With Learning Disabilitie,Third Party Payments,Residential,580,04-May-16,1605-00350,0,6193.32,R,Affinity Trust North Divisional Office,No
Http://opendatacommunities.org/id/metropolitan-district-council/leeds,Leeds City Council as Accountable Body,31/05/2016,Social Services Pooled Budgets,Jcs For People With Learning Disabilitie,Third Party Payments,Sheltered Accommodation,569,31-May-16,1605-00351,0,93381.37,R,Affinity Trust North Divisional Office,No
Http://opendatacommunities.org/id/metropolitan-district-council/leeds,Leeds City Council as Accountable Body,31/05/2016,Social Services Pooled Budgets,Jcs For People With Learning Disabilitie,Third Party Payments,Residential,580,31-May-16,1605-00352,0,6193.32,R,Affinity Trust North Divisional Office,No
Http://opendatacommunities.org/id/metropolitan-district-council/leeds,Leeds City Council,31/05/2016,Childrens Services,Safeguarding Targeted & Specialist,Third Party Payments,Payments To Voluntary Organisations,561,23-May-16,1605-00353,0,1995,R,After Adoption,No
Http://opendatacommunities.org/id/metropolitan-district-council/leeds,Leeds City Council,31/05/2016,Environment & Housing,SP Contracts & SECC,Third Party Payments,Supporting Ppl - Block Gross Chargeable,514,13-May-16,1605-00354,0,3957.68,R,Age Uk Leeds,No
Http://opendatacommunities.org/id/metropolitan-district-council/leeds,Leeds City Council,31/05/2016,City Development,Recreation,Supplies and Services,Other Hired And Contracted Services,265,24-May-16,1605-00355,0,894.48,R,Age Uk Leeds,No
Http://opendatacommunities.org/id/metropolitan-district-council/leeds,Leeds City Council,31/05/2016,City Development,Libraries  Arts & Heritage,Supplies and Services,Other Hired And Contracted Services,265,17-May-16,1605-00356,0,1700,R,Agency Group,No
Http://opendatacommunities.org/id/metropolitan-district-council/leeds,Leeds City Council,31/05/2016,City Development,Libraries  Arts & Heritage,Supplies and Services,Other Hired And Contracted Services,265,24-May-16,1605-00357,0,1200,R,Agency Group,No
Http://opendatacommunities.org/id/metropolitan-district-council/leeds,Leeds City Council,31/05/2016,City Development,Libraries  Arts & Heritage,Supplies and Services,Bought In Professional Services,277,04-May-16,1605-00358,0,1400,R,Agere Learning,No
Http://opendatacommunities.org/id/metropolitan-district-council/leeds,Leeds City Council,31/05/2016,Citizens and Communities,Elections  Licensing and Registration,Premises,Rents,141,19-May-16,1605-00359,0,50,R,REDACTED PERSONAL DATA,No
Http://opendatacommunities.org/id/metropolitan-district-council/leeds,Leeds City Council,31/05/2016,Adult Social Care,Services For Older People Under 65 P/Dis,Third Party Payments,Residential,580,04-May-16,1605-00360,0,5598.4,R,Agricola House,No
Http://opendatacommunities.org/id/metropolitan-district-council/leeds,Leeds City Council,31/05/2016,Adult Social Care,Services For Older People Under 65 P/Dis,Third Party Payments,Residential,580,31-May-16,1605-00361,0,5598.4,R,Agricola House,No
Http://opendatacommunities.org/id/metropolitan-district-council/leeds,Leeds City Council,31/05/2016,Childrens Services,Learning Skills & Universal,Supplies and Services,Teaching Materials,202,25-May-16,1605-00362,0,39.44,R,Aid Training & Operations Ltd,No
Http://opendatacommunities.org/id/metropolitan-district-council/leeds,Leeds City Council,31/05/2016,Childrens Services,Safeguarding Targeted & Specialist,Transfer Payments,16 Plus Top Up Allowance,625,20-May-16,1605-00363,0,60,R,REDACTED PERSONAL DATA,No
Http://opendatacommunities.org/id/metropolitan-district-council/leeds,Leeds City Council,31/05/2016,Childrens Services,Safeguarding Targeted & Specialist,Transfer Payments,16 Plus Top Up Allowance,625,26-May-16,1605-00364,0,20,R,REDACTED PERSONAL DATA,No
Http://opendatacommunities.org/id/metropolitan-district-council/leeds,Leeds City Council as Accountable Body,31/05/2016,Social Services Pooled Budgets,Leeds Community Equip Store Pooled Budgt,Supplies and Services,Other Equipment,203,06-May-16,1605-00365,0,-329.82,R,Aidapt Bathrooms Ltd,No
Http://opendatacommunities.org/id/metropolitan-district-council/leeds,Leeds City Council as Accountable Body,31/05/2016,Social Services Pooled Budgets,Leeds Community Equip Store Pooled Budgt,Supplies and Services,Other Equipment,203,06-May-16,1605-00366,0,365.4,R,Aidapt Bathrooms Ltd,No
Http://opendatacommunities.org/id/metropolitan-district-council/leeds,Leeds City Council as Accountable Body,31/05/2016,Social Services Pooled Budgets,Leeds Community Equip Store Pooled Budgt,Supplies and Services,Other Equipment,203,06-May-16,1605-00367,0,4145,R,Aidapt Bathrooms Ltd,No
Http://opendatacommunities.org/id/metropolitan-district-council/leeds,Leeds City Council as Accountable Body,31/05/2016,Social Services Pooled Budgets,Leeds Community Equip Store Pooled Budgt,Supplies and Services,Other Equipment,203,06-May-16,1605-00368,0,75,R,Aidapt Bathrooms Ltd,No
Http://opendatacommunities.org/id/metropolitan-district-council/leeds,Leeds City Council as Accountable Body,31/05/2016,Social Services Pooled Budgets,Leeds Community Equip Store Pooled Budgt,Supplies and Services,Other Equipment,203,16-May-16,1605-00369,0,2385,R,Aidapt Bathrooms Ltd,No
Http://opendatacommunities.org/id/metropolitan-district-council/leeds,Leeds City Council as Accountable Body,31/05/2016,Social Services Pooled Budgets,Leeds Community Equip Store Pooled Budgt,Supplies and Services,Other Equipment,203,16-May-16,1605-00370,0,258,R,Aidapt Bathrooms Ltd,No
Http://opendatacommunities.org/id/metropolitan-district-council/leeds,Leeds City Council as Accountable Body,31/05/2016,Social Services Pooled Budgets,Leeds Community Equip Store Pooled Budgt,Supplies and Services,Other Equipment,203,20-May-16,1605-00371,0,322.5,R,Aidapt Bathrooms Ltd,No
Http://opendatacommunities.org/id/metropolitan-district-council/leeds,Leeds City Council as Accountable Body,31/05/2016,Social Services Pooled Budgets,Leeds Community Equip Store Pooled Budgt,Supplies and Services,Other Equipment,203,20-May-16,1605-00372,0,261.9,R,Aidapt Bathrooms Ltd,No
Http://opendatacommunities.org/id/metropolitan-district-council/leeds,Leeds City Council as Accountable Body,31/05/2016,Social Services Pooled Budgets,Leeds Community Equip Store Pooled Budgt,Supplies and Services,Other Equipment,203,20-May-16,1605-00373,0,902.8,R,Aidapt Bathrooms Ltd,No
Http://opendatacommunities.org/id/metropolitan-district-council/leeds,Leeds City Council as Accountable Body,31/05/2016,Social Services Pooled Budgets,Leeds Community Equip Store Pooled Budgt,Supplies and Services,Other Equipment,203,27-May-16,1605-00374,0,449.4,R,Aidapt Bathrooms Ltd,No
Http://opendatacommunities.org/id/metropolitan-district-council/leeds,Leeds City Council as Accountable Body,31/05/2016,Social Services Pooled Budgets,Leeds Community Equip Store Pooled Budgt,Supplies and Services,Other Equipment,203,27-May-16,1605-00375,0,107.5,R,Aidapt Bathrooms Ltd,No
Http://opendatacommunities.org/id/metropolitan-district-council/leeds,Leeds City Council as Accountable Body,31/05/2016,Social Services Pooled Budgets,Jcs For People With Learning Disabilitie,Supplies and Services,Other Equipment,203,20-May-16,1605-00376,0,60,R,Aidservice Ltd,No
Http://opendatacommunities.org/id/metropolitan-district-council/leeds,Leeds City Council,31/05/2016,Childrens Services,Safeguarding Targeted & Specialist  ,Supplies and Services,Food & Drink,231,15-Apr-16,1605-00377,0,32.78,R,Air Balloon,Yes
Http://opendatacommunities.org/id/metropolitan-district-council/leeds,Leeds City Council,31/05/2016,Environment & Housing,Leeds Building Services,Supplies and Services,Operational Materials,205,04-May-16,1605-00378,0,46.1,R,Air Conditioning Accessories,No
Http://opendatacommunities.org/id/metropolitan-district-council/leeds,Leeds City Council,31/05/2016,Environment & Housing,Leeds Building Services,Supplies and Services,Operational Materials,205,19-May-16,1605-00379,0,341.42,R,Air Conditioning Accessories,No
Http://opendatacommunities.org/id/metropolitan-district-council/leeds,Leeds City Council,31/05/2016,Environment & Housing,Leeds Building Services,Supplies and Services,Operational Materials,205,27-May-16,1605-00380,0,161.55,R,Air Conditioning Accessories,No
Http://opendatacommunities.org/id/metropolitan-district-council/leeds,Leeds City Council,31/05/2016,Environment & Housing,Leeds Building Services,Supplies and Services,Operational Materials,205,27-May-16,1605-00381,0,52.32,R,Air Conditioning Accessories,No
Http://opendatacommunities.org/id/metropolitan-district-council/leeds,Leeds City Council,31/05/2016,Environment & Housing,Leeds Building Services,Supplies and Services,Operational Materials,205,27-May-16,1605-00382,0,28.05,R,Air Conditioning Accessories,No
Http://opendatacommunities.org/id/metropolitan-district-council/leeds,Leeds City Council,31/05/2016,Environment & Housing,Leeds Building Services,Supplies and Services,Operational Materials,205,31-May-16,1605-00383,0,33,R,Air Conditioning Accessories,No
Http://opendatacommunities.org/id/metropolitan-district-council/leeds,Leeds City Council,31/05/2016,Environment & Housing,Environmental Health,Supplies and Services,Other Hired And Contracted Services,265,13-May-16,1605-00384,0,13.63,R,Air Liquide Uk,No
Http://opendatacommunities.org/id/metropolitan-district-council/leeds,Leeds City Council,31/05/2016,Environment & Housing,Environmental Health,Supplies and Services,Other Hired And Contracted Services,265,13-May-16,1605-00385,0,62.58,R,Air Liquide Uk,No
Http://opendatacommunities.org/id/metropolitan-district-council/leeds,Leeds City Council,31/05/2016,Environment & Housing,Leeds Building Services,Supplies and Services,Operational Materials,205,20-May-16,1605-00386,0,159.72,R,Air Liquide Uk,No
Http://opendatacommunities.org/id/metropolitan-district-council/leeds,Leeds City Council,31/05/2016,Environment & Housing,Leeds Building Services,Supplies and Services,Operational Materials,205,20-May-16,1605-00387,0,42,R,Air Liquide Uk,No
Http://opendatacommunities.org/id/metropolitan-district-council/leeds,Leeds City Council,31/05/2016,Environment & Housing,Leeds Building Services,Supplies and Services,Operational Materials,205,27-May-16,1605-00388,0,163.1,R,Air Liquide Uk,No
Http://opendatacommunities.org/id/metropolitan-district-council/leeds,Leeds City Council,31/05/2016,Adult Social Care,Services For Adults Under 65 Mental/Dis,Third Party Payments,Residential,580,04-May-16,1605-00389,0,6028,R,Aire House,No
Http://opendatacommunities.org/id/metropolitan-district-council/leeds,Leeds City Council as Accountable Body,31/05/2016,Social Services Pooled Budgets,Jcs For People With Learning Disabilitie,Third Party Payments,Residential,580,04-May-16,1605-00390,0,3059.84,R,Aire House,No
Http://opendatacommunities.org/id/metropolitan-district-council/leeds,Leeds City Council,31/05/2016,Adult Social Care,Services For Adults Under 65 Mental/Dis,Third Party Payments,Residential,580,31-May-16,1605-00391,0,6028,R,Aire House,No
Http://opendatacommunities.org/id/metropolitan-district-council/leeds,Leeds City Council as Accountable Body,31/05/2016,Social Services Pooled Budgets,Jcs For People With Learning Disabilitie,Third Party Payments,Residential,580,31-May-16,1605-00392,0,3059.84,R,Aire House,No
Http://opendatacommunities.org/id/metropolitan-district-council/leeds,Leeds City Council,31/05/2016,Adult Social Care,Services For Older People - 65 And Over,Third Party Payments,Residential Care Dementia,571,04-May-16,1605-00393,0,2695.46,R,Aire View Residential Home,No
Http://opendatacommunities.org/id/metropolitan-district-council/leeds,Leeds City Council,31/05/2016,Adult Social Care,Services For Older People - 65 And Over,Third Party Payments,Residential,580,04-May-16,1605-00394,0,13764.73,R,Aire View Residential Home,No
Http://opendatacommunities.org/id/metropolitan-district-council/leeds,Leeds City Council,31/05/2016,Adult Social Care,Services For Older People - 65 And Over,Third Party Payments,Residential Care Dementia,571,31-May-16,1605-00395,0,42876.72,R,Aire View Residential Home,No
Http://opendatacommunities.org/id/metropolitan-district-council/leeds,Leeds City Council,31/05/2016,Adult Social Care,Services For Older People - 65 And Over,Third Party Payments,Residential,580,31-May-16,1605-00396,0,15062.39,R,Aire View Residential Home,No
Http://opendatacommunities.org/id/metropolitan-district-council/leeds,Leeds City Council,31/05/2016,Strategic Accounts,Miscellaneous,Supplies and Services,Non-Recurring Grants,227,16-May-16,1605-00397,0,400,R,Aireborough Civic Society,No
Http://opendatacommunities.org/id/metropolitan-district-council/leeds,Leeds City Council,31/05/2016,City Development,Recreation  ,Supplies and Services,Operational Furniture And Equipment,203,01-Apr-16,1605-00398,0,183.33,R,Aireborough Skip Hire,Yes
Http://opendatacommunities.org/id/metropolitan-district-council/leeds,Leeds City Council,31/05/2016,Childrens Services,Safeguarding Targeted & Specialist,Third Party Payments,Services Rendered By Voluntary Sector,505,17-May-16,1605-00399,0,28455,R,Aireborough Supported Activities Scheme,No
Http://opendatacommunities.org/id/metropolitan-district-council/leeds,Leeds City Council,31/05/2016,Adult Social Care,Services For Older People - 65 And Over,Third Party Payments,Residential Care Dementia,571,04-May-16,1605-00400,0,1919.76,R,Airedale (Goldsborough),No
Http://opendatacommunities.org/id/metropolitan-district-council/leeds,Leeds City Council,31/05/2016,Adult Social Care,Services For Older People Under 65 P/Dis,Third Party Payments,Residential,580,04-May-16,1605-00401,0,1891.68,R,Airedale (Goldsborough),No
Http://opendatacommunities.org/id/metropolitan-district-council/leeds,Leeds City Council,31/05/2016,Adult Social Care,Services For Older People - 65 And Over,Third Party Payments,Residential,580,04-May-16,1605-00402,0,19005.9,R,Airedale (Goldsborough),No
Http://opendatacommunities.org/id/metropolitan-district-council/leeds,Leeds City Council,31/05/2016,Adult Social Care,Services For Older People - 65 And Over,Third Party Payments,Residential Care Dementia,571,31-May-16,1605-00403,0,2028.66,R,Airedale (Goldsborough),No
Http://opendatacommunities.org/id/metropolitan-district-council/leeds,Leeds City Council,31/05/2016,Adult Social Care,Services For Older People Under 65 P/Dis,Third Party Payments,Residential,580,31-May-16,1605-00404,0,1891.68,R,Airedale (Goldsborough),No
Http://opendatacommunities.org/id/metropolitan-district-council/leeds,Leeds City Council,31/05/2016,Adult Social Care,Services For Older People - 65 And Over,Third Party Payments,Residential,580,31-May-16,1605-00405,0,15566.02,R,Airedale (Goldsborough),No
Http://opendatacommunities.org/id/metropolitan-district-council/leeds,Leeds City Council,31/05/2016,Civic Enterprise Leeds,Commercial Services,Supplies and Services,Operational Furniture And Equipment,203,05-May-16,1605-00406,0,3445,R,Airedale Catering Equipment Ltd,No
Http://opendatacommunities.org/id/metropolitan-district-council/leeds,Leeds City Council,31/05/2016,City Development,Economic Development,Supplies and Services,Grants To Businesses,243,26-May-16,1605-00407,0,600,R,Aireline Private Hire,No
Http://opendatacommunities.org/id/metropolitan-district-council/leeds,Leeds City Council,31/05/2016,City Development,Libraries  Arts & Heritage,Supplies and Services,Operational Furniture And Equipment,203,27-May-16,1605-00408,0,3042,R,Airquee Ltd,No
Http://opendatacommunities.org/id/metropolitan-district-council/leeds,Leeds City Council,31/05/2016,Environment & Housing,Community Safety,Supplies and Services,Bought In Professional Services,277,16-May-16,1605-00409,0,787.56,R,Airwave Solutions Ltd,No
Http://opendatacommunities.org/id/metropolitan-district-council/leeds,Leeds City Council,31/05/2016,Adult Social Care,Services For Adults Under 65 Mental/Dis,Third Party Payments,Fees - Level 4,520,06-May-16,1605-00410,0,175,R,Ait Mitra,No
Http://opendatacommunities.org/id/metropolitan-district-council/leeds,Leeds City Council,31/05/2016,Adult Social Care,Services For Adults Under 65 Mental/Dis,Third Party Payments,Fees - Level 4,520,06-May-16,1605-00411,0,175,R,Ait Mitra,No
Http://opendatacommunities.org/id/metropolitan-district-council/leeds,Leeds City Council,31/05/2016,Adult Social Care,Services For Adults Under 65 Mental/Dis,Third Party Payments,Fees - Level 4,520,10-May-16,1605-00412,0,187,R,Ait Mitra,No
Http://opendatacommunities.org/id/metropolitan-district-council/leeds,Leeds City Council,31/05/2016,Adult Social Care,Services For Adults Under 65 Mental/Dis,Third Party Payments,Fees - Level 4,520,10-May-16,1605-00413,0,175,R,Ait Mitra,No
Http://opendatacommunities.org/id/metropolitan-district-council/leeds,Leeds City Council,31/05/2016,Adult Social Care,Services For Adults Under 65 Mental/Dis,Third Party Payments,Fees - Level 4,520,10-May-16,1605-00414,0,175,R,Ait Mitra,No
Http://opendatacommunities.org/id/metropolitan-district-council/leeds,Leeds City Council,31/05/2016,Adult Social Care,Services For Adults Under 65 Mental/Dis,Third Party Payments,Fees - Level 4,520,13-May-16,1605-00415,0,175,R,Ait Mitra,No
Http://opendatacommunities.org/id/metropolitan-district-council/leeds,Leeds City Council,31/05/2016,Adult Social Care,Services For Adults Under 65 Mental/Dis,Third Party Payments,Fees - Level 4,520,13-May-16,1605-00416,0,175,R,Ait Mitra,No
Http://opendatacommunities.org/id/metropolitan-district-council/leeds,Leeds City Council,31/05/2016,Adult Social Care,Services For Adults Under 65 Mental/Dis,Third Party Payments,Fees - Level 4,520,13-May-16,1605-00417,0,175,R,Ait Mitra,No
Http://opendatacommunities.org/id/metropolitan-district-council/leeds,Leeds City Council,31/05/2016,Adult Social Care,Services For Adults Under 65 Mental/Dis,Third Party Payments,Fees - Level 4,520,13-May-16,1605-00418,0,175,R,Ait Mitra,No
Http://opendatacommunities.org/id/metropolitan-district-council/leeds,Leeds City Council,31/05/2016,Adult Social Care,Services For Adults Under 65 Mental/Dis,Third Party Payments,Fees - Level 4,520,16-May-16,1605-00419,0,175,R,Ait Mitra,No
Http://opendatacommunities.org/id/metropolitan-district-council/leeds,Leeds City Council,31/05/2016,Adult Social Care,Services For Adults Under 65 Mental/Dis,Third Party Payments,Fees - Level 4,520,16-May-16,1605-00420,0,175,R,Ait Mitra,No
Http://opendatacommunities.org/id/metropolitan-district-council/leeds,Leeds City Council,31/05/2016,Adult Social Care,Services For Adults Under 65 Mental/Dis,Third Party Payments,Fees - Level 4,520,16-May-16,1605-00421,0,175,R,Ait Mitra,No
Http://opendatacommunities.org/id/metropolitan-district-council/leeds,Leeds City Council,31/05/2016,Adult Social Care,Services For Adults Under 65 Mental/Dis,Third Party Payments,Fees - Level 4,520,19-May-16,1605-00422,0,175,R,Ait Mitra,No
Http://opendatacommunities.org/id/metropolitan-district-council/leeds,Leeds City Council,31/05/2016,Adult Social Care,Services For Adults Under 65 Mental/Dis,Third Party Payments,Fees - Level 4,520,24-May-16,1605-00423,0,175,R,Ait Mitra,No
Http://opendatacommunities.org/id/metropolitan-district-council/leeds,Leeds City Council,31/05/2016,Adult Social Care,Services For Adults Under 65 Mental/Dis,Third Party Payments,Fees - Level 4,520,24-May-16,1605-00424,0,261,R,Ait Mitra,No
Http://opendatacommunities.org/id/metropolitan-district-council/leeds,Leeds City Council,31/05/2016,Adult Social Care,Services For Adults Under 65 Mental/Dis,Third Party Payments,Fees - Level 4,520,24-May-16,1605-00425,0,175,R,Ait Mitra,No
Http://opendatacommunities.org/id/metropolitan-district-council/leeds,Leeds City Council,31/05/2016,Adult Social Care,Services For Adults Under 65 Mental/Dis,Third Party Payments,Fees - Level 4,520,24-May-16,1605-00426,0,175,R,Ait Mitra,No
Http://opendatacommunities.org/id/metropolitan-district-council/leeds,Leeds City Council,31/05/2016,Adult Social Care,Services For Adults Under 65 Mental/Dis,Third Party Payments,Fees - Level 4,520,24-May-16,1605-00427,0,175,R,Ait Mitra,No
Http://opendatacommunities.org/id/metropolitan-district-council/leeds,Leeds City Council,31/05/2016,Adult Social Care,Services For Adults Under 65 Mental/Dis,Third Party Payments,Fees - Level 4,520,24-May-16,1605-00428,0,175,R,Ait Mitra,No
Http://opendatacommunities.org/id/metropolitan-district-council/leeds,Leeds City Council,31/05/2016,Adult Social Care,Services For Adults Under 65 Mental/Dis,Third Party Payments,Fees - Level 4,520,24-May-16,1605-00429,0,175,R,Ait Mitra,No
Http://opendatacommunities.org/id/metropolitan-district-council/leeds,Leeds City Council,31/05/2016,Adult Social Care,Services For Adults Under 65 Mental/Dis,Third Party Payments,Fees - Level 4,520,24-May-16,1605-00430,0,175,R,Ait Mitra,No
Http://opendatacommunities.org/id/metropolitan-district-council/leeds,Leeds City Council,31/05/2016,Adult Social Care,Services For Adults Under 65 Mental/Dis,Third Party Payments,Fees - Level 4,520,24-May-16,1605-00431,0,175,R,Ait Mitra,No
Http://opendatacommunities.org/id/metropolitan-district-council/leeds,Leeds City Council,31/05/2016,Adult Social Care,Services For Adults Under 65 Mental/Dis,Third Party Payments,Fees - Level 4,520,26-May-16,1605-00432,0,261,R,Ait Mitra,No
Http://opendatacommunities.org/id/metropolitan-district-council/leeds,Leeds City Council,31/05/2016,Adult Social Care,Services For Adults Under 65 Mental/Dis,Third Party Payments,Fees - Level 4,520,26-May-16,1605-00433,0,175,R,Ait Mitra,No
Http://opendatacommunities.org/id/metropolitan-district-council/leeds,Leeds City Council,31/05/2016,Adult Social Care,Services For Adults Under 65 Mental/Dis,Third Party Payments,Fees - Level 4,520,26-May-16,1605-00434,0,175,R,Ait Mitra,No
Http://opendatacommunities.org/id/metropolitan-district-council/leeds,Leeds City Council,31/05/2016,Adult Social Care,Services For Adults Under 65 Mental/Dis,Third Party Payments,Fees - Level 4,520,26-May-16,1605-00435,0,175,R,Ait Mitra,No
Http://opendatacommunities.org/id/metropolitan-district-council/leeds,Leeds City Council,31/05/2016,Adult Social Care,Services For Adults Under 65 Mental/Dis,Third Party Payments,Fees - Level 4,520,26-May-16,1605-00436,0,175,R,Ait Mitra,No
Http://opendatacommunities.org/id/metropolitan-district-council/leeds,Leeds City Council,31/05/2016,Adult Social Care,Services For Adults Under 65 Mental/Dis,Third Party Payments,Fees - Level 4,520,26-May-16,1605-00437,0,175,R,Ait Mitra,No
Http://opendatacommunities.org/id/metropolitan-district-council/leeds,Leeds City Council,31/05/2016,Adult Social Care,Services For Adults Under 65 Mental/Dis,Third Party Payments,Fees - Level 4,520,26-May-16,1605-00438,0,175,R,Ait Mitra,No
Http://opendatacommunities.org/id/metropolitan-district-council/leeds,Leeds City Council,31/05/2016,Adult Social Care,Services For Adults Under 65 Mental/Dis,Third Party Payments,Fees - Level 4,520,26-May-16,1605-00439,0,175,R,Ait Mitra,No
Http://opendatacommunities.org/id/metropolitan-district-council/leeds,Leeds City Council,31/05/2016,Adult Social Care,Services For Adults Under 65 Mental/Dis,Third Party Payments,Fees - Level 4,520,26-May-16,1605-00440,0,175,R,Ait Mitra,No
Http://opendatacommunities.org/id/metropolitan-district-council/leeds,Leeds City Council,31/05/2016,Adult Social Care,Services For Adults Under 65 Mental/Dis,Third Party Payments,Fees - Level 4,520,26-May-16,1605-00441,0,175,R,Ait Mitra,No
Http://opendatacommunities.org/id/metropolitan-district-council/leeds,Leeds City Council,31/05/2016,Adult Social Care,Services For Adults Under 65 Mental/Dis,Third Party Payments,Fees - Level 4,520,26-May-16,1605-00442,0,175,R,Ait Mitra,No
Http://opendatacommunities.org/id/metropolitan-district-council/leeds,Leeds City Council,31/05/2016,Adult Social Care,Services For Adults Under 65 Mental/Dis,Third Party Payments,Fees - Level 4,520,27-May-16,1605-00443,0,175,R,Ait Mitra,No
Http://opendatacommunities.org/id/metropolitan-district-council/leeds,Leeds City Council,31/05/2016,Adult Social Care,Services For Adults Under 65 Mental/Dis,Third Party Payments,Fees - Level 4,520,27-May-16,1605-00444,0,175,R,Ait Mitra,No
Http://opendatacommunities.org/id/metropolitan-district-council/leeds,Leeds City Council as Accountable Body,31/05/2016,Social Services Pooled Budgets,Jcs For People With Learning Disabilitie,Third Party Payments,Residential,580,04-May-16,1605-00445,0,6173.24,R,Aitch Care Homes,No
Http://opendatacommunities.org/id/metropolitan-district-council/leeds,Leeds City Council as Accountable Body,31/05/2016,Social Services Pooled Budgets,Jcs For People With Learning Disabilitie,Third Party Payments,Residential,580,31-May-16,1605-00446,0,6173.24,R,Aitch Care Homes,No
Http://opendatacommunities.org/id/metropolitan-district-council/leeds,Leeds City Council,31/05/2016,Childrens Services,Safeguarding Targeted & Specialist,Employees,Agency Staff,8,04-May-16,1605-00447,0,1668.8,R,A-J Burke Limited,No
Http://opendatacommunities.org/id/metropolitan-district-council/leeds,Leeds City Council,31/05/2016,Adult Social Care,Services For Older People Under 65 P/Dis,Third Party Payments,Home Care,568,04-May-16,1605-00448,0,9313.5,R,Aj Social Care,No
Http://opendatacommunities.org/id/metropolitan-district-council/leeds,Leeds City Council,31/05/2016,Adult Social Care,Services For Older People - 65 And Over,Third Party Payments,Home Care,568,04-May-16,1605-00449,0,13849.41,R,Aj Social Care,No
Http://opendatacommunities.org/id/metropolitan-district-council/leeds,Leeds City Council,31/05/2016,Adult Social Care,Services For Older People Under 65 P/Dis,Third Party Payments,Home Care,568,27-May-16,1605-00450,0,8215.86,R,Aj Social Care,No
Http://opendatacommunities.org/id/metropolitan-district-council/leeds,Leeds City Council,31/05/2016,Adult Social Care,Services For Older People - 65 And Over,Third Party Payments,Home Care,568,27-May-16,1605-00451,0,15016.43,R,Aj Social Care,No
Http://opendatacommunities.org/id/metropolitan-district-council/leeds,Leeds City Council,31/05/2016,Adult Social Care,Services For Older People - 65 And Over,Third Party Payments,Home Care,568,27-May-16,1605-00452,0,23.56,R,Aj Social Care,No
Http://opendatacommunities.org/id/metropolitan-district-council/leeds,Leeds City Council,31/05/2016,Adult Social Care,Services For Older People - 65 And Over,Third Party Payments,Home Care,568,27-May-16,1605-00453,0,58.76,R,Aj Social Care,No
Http://opendatacommunities.org/id/metropolitan-district-council/leeds,Leeds City Council,31/05/2016,Environment & Housing,Leeds Building Services,Supplies and Services,Operational Furniture And Equipment,203,06-May-16,1605-00454,0,270,R,Ajm Fixings & Power Tools Ltd,No
Http://opendatacommunities.org/id/metropolitan-district-council/leeds,Leeds City Council,31/05/2016,Environment & Housing,Leeds Building Services,Supplies and Services,Stores - Central And Other Depots,5,06-May-16,1605-00455,0,553.98,R,Ajm Fixings & Power Tools Ltd,No
Http://opendatacommunities.org/id/metropolitan-district-council/leeds,Leeds City Council,31/05/2016,Environment & Housing,Leeds Building Services,Supplies and Services,Operational Furniture And Equipment,203,13-May-16,1605-00456,0,90.64,R,Ajm Fixings & Power Tools Ltd,No
Http://opendatacommunities.org/id/metropolitan-district-council/leeds,Leeds City Council,31/05/2016,Adult Social Care,Services For Older People - 65 And Over,Third Party Payments,Nursing Home,570,04-May-16,1605-00457,0,1261.04,R,Akari Care Ltd,No
Http://opendatacommunities.org/id/metropolitan-district-council/leeds,Leeds City Council,31/05/2016,Adult Social Care,Services For Older People - 65 And Over,Third Party Payments,Nursing Home,570,31-May-16,1605-00458,0,1261.04,R,Akari Care Ltd,No
Http://opendatacommunities.org/id/metropolitan-district-council/leeds,Leeds City Council,31/05/2016,Childrens Services,Safeguarding Targeted & Specialist,Supplies and Services,General Amenity For Clients/Residents,285,12-May-16,1605-00459,0,10.75,R,REDACTED PERSONAL DATA,No
Http://opendatacommunities.org/id/metropolitan-district-council/leeds,Leeds City Council,31/05/2016,Childrens Services,Safeguarding Targeted & Specialist,Transport,Public Transport Expenses,310,12-May-16,1605-00460,0,24.8,R,REDACTED PERSONAL DATA,No
Http://opendatacommunities.org/id/metropolitan-district-council/leeds,Leeds City Council,31/05/2016,Civic Enterprise Leeds,Commercial Services,Premises,Plant and Machinery,102,06-May-16,1605-00461,0,2040,R,Akua Uk Ltd,No
Http://opendatacommunities.org/id/metropolitan-district-council/leeds,Leeds City Council,31/05/2016,Civic Enterprise Leeds,Commercial Services,Premises,Plant and Machinery,102,06-May-16,1605-00462,0,248.2,R,Akua Uk Ltd,No
Http://opendatacommunities.org/id/metropolitan-district-council/leeds,Leeds City Council,31/05/2016,Civic Enterprise Leeds,Commercial Services,Premises,Plant and Machinery,102,06-May-16,1605-00463,0,386.54,R,Akua Uk Ltd,No
Http://opendatacommunities.org/id/metropolitan-district-council/leeds,Leeds City Council,31/05/2016,Civic Enterprise Leeds,Commercial Services,Premises,Plant and Machinery,102,06-May-16,1605-00464,0,63.98,R,Akua Uk Ltd,No
Http://opendatacommunities.org/id/metropolitan-district-council/leeds,Leeds City Council,31/05/2016,Civic Enterprise Leeds,Commercial Services,Premises,Plant and Machinery,102,06-May-16,1605-00465,0,227.5,R,Akua Uk Ltd,No
Http://opendatacommunities.org/id/metropolitan-district-council/leeds,Leeds City Council,31/05/2016,Childrens Services,Safeguarding Targeted & Specialist  ,Transfer Payments,Leaving Care Grants,635,20-Apr-16,1605-00466,0,50.94,R,Al Murad Diy Ltd,Yes
Http://opendatacommunities.org/id/metropolitan-district-council/leeds,Leeds City Council,31/05/2016,Central & Corporate,Democratic Services  ,Supplies and Services,Office Consumables,210,28-Apr-16,1605-00467,0,200,R,Alan Brown Flowers,Yes
Http://opendatacommunities.org/id/metropolitan-district-council/leeds,Leeds City Council,31/05/2016,Adult Social Care,Assessment And Care Management,Transfer Payments,Direct Payments,626,12-May-16,1605-00468,0,2001,R,REDACTED PERSONAL DATA,No
Http://opendatacommunities.org/id/metropolitan-district-council/leeds,Leeds City Council,31/05/2016,Environment & Housing,Waste Management,Transport,External Hire -Occasional,304,04-May-16,1605-00469,0,891,R,Alan Thompson Transport,No
Http://opendatacommunities.org/id/metropolitan-district-council/leeds,Leeds City Council,31/05/2016,Civic Enterprise Leeds,Commercial Services,Transport,Vehicle Spares,345,13-May-16,1605-00470,0,40.64,R,Albert Jagger Limited,No
Http://opendatacommunities.org/id/metropolitan-district-council/leeds,Leeds City Council,31/05/2016,Civic Enterprise Leeds,Commercial Services,Transport,Vehicle Spares,345,27-May-16,1605-00471,0,60.8,R,Albert Jagger Limited,No
Http://opendatacommunities.org/id/metropolitan-district-council/leeds,Leeds City Council,31/05/2016,Environment & Housing,Environmental Health,Supplies and Services,Other Hired And Contracted Services,265,12-May-16,1605-00472,0,204.42,R,Alcontrol Uk Ltd,No
Http://opendatacommunities.org/id/metropolitan-district-council/leeds,Leeds City Council,31/05/2016,Environment & Housing,Leeds Building Services,Supplies and Services,Memberships,226,31-May-16,1605-00473,0,4000,R,Alcumus Sypol Limited,No
Http://opendatacommunities.org/id/metropolitan-district-council/leeds,Leeds City Council,31/05/2016,Childrens Services,Safeguarding Targeted & Specialist  ,Supplies and Services,Operational Furniture And Equipment,203,12-Apr-16,1605-00474,0,43.9,R,Aldi,Yes
Http://opendatacommunities.org/id/metropolitan-district-council/leeds,Leeds City Council,31/05/2016,Childrens Services,Safeguarding Targeted & Specialist  ,Supplies and Services,Food & Drink,231,12-Apr-16,1605-00475,0,67.76,R,Aldi,Yes
Http://opendatacommunities.org/id/metropolitan-district-council/leeds,Leeds City Council,31/05/2016,Childrens Services,Learning Skills & Universal  ,Supplies and Services,Teaching Materials,202,21-Apr-16,1605-00476,0,33.3,R,Aldi,Yes
Http://opendatacommunities.org/id/metropolitan-district-council/leeds,Leeds City Council,31/05/2016,Citizens and Communities,Customer Access,Supplies and Services,Other Hired And Contracted Services,265,04-May-16,1605-00477,0,37.75,R,Alena Galiyeva,No
Http://opendatacommunities.org/id/metropolitan-district-council/leeds,Leeds City Council,31/05/2016,Central & Corporate,Legal Services,Support Services,Legal Disbursements,411,06-May-16,1605-00478,0,36,R,Alere Toxicology Plc,No
Http://opendatacommunities.org/id/metropolitan-district-council/leeds,Leeds City Council,31/05/2016,Childrens Services,Safeguarding Targeted & Specialist,Support Services,Legal Disbursements,411,06-May-16,1605-00479,0,270,R,Alex Taylor,No
Http://opendatacommunities.org/id/metropolitan-district-council/leeds,Leeds City Council,31/05/2016,Childrens Services,Safeguarding Targeted & Specialist,Support Services,Legal Disbursements,411,25-May-16,1605-00480,0,3727,R,Alex Taylor,No
Http://opendatacommunities.org/id/metropolitan-district-council/leeds,Leeds City Council,31/05/2016,Adult Social Care,Services For Older People - 65 And Over,Third Party Payments,Residential Care Dementia,571,04-May-16,1605-00481,0,13720.88,R,Alexander Residential Home,No
Http://opendatacommunities.org/id/metropolitan-district-council/leeds,Leeds City Council,31/05/2016,Adult Social Care,Services For Older People Under 65 P/Dis,Third Party Payments,Residential,580,04-May-16,1605-00482,0,285.18,R,Alexander Residential Home,No
Http://opendatacommunities.org/id/metropolitan-district-council/leeds,Leeds City Council,31/05/2016,Adult Social Care,Services For Older People - 65 And Over,Third Party Payments,Residential,580,04-May-16,1605-00483,0,10556.23,R,Alexander Residential Home,No
Http://opendatacommunities.org/id/metropolitan-district-council/leeds,Leeds City Council,31/05/2016,Adult Social Care,Services For Older People - 65 And Over,Third Party Payments,Residential Care Dementia,571,31-May-16,1605-00484,0,8055.79,R,Alexander Residential Home,No
Http://opendatacommunities.org/id/metropolitan-district-council/leeds,Leeds City Council,31/05/2016,Adult Social Care,Services For Older People Under 65 P/Dis,Third Party Payments,Residential,580,31-May-16,1605-00485,0,4890.14,R,Alexander Residential Home,No
Http://opendatacommunities.org/id/metropolitan-district-council/leeds,Leeds City Council,31/05/2016,Adult Social Care,Services For Older People - 65 And Over,Third Party Payments,Residential,580,31-May-16,1605-00486,0,11451.2,R,Alexander Residential Home,No
Http://opendatacommunities.org/id/metropolitan-district-council/leeds,Leeds City Council,31/05/2016,Citizens and Communities,Customer Access,Supplies and Services,Other Hired And Contracted Services,265,04-May-16,1605-00487,0,246,R,Alexandra Costenco,No
Http://opendatacommunities.org/id/metropolitan-district-council/leeds,Leeds City Council,31/05/2016,Adult Social Care,Services For Older People - 65 And Over,Third Party Payments,Residential Care Dementia,571,04-May-16,1605-00488,0,1395.28,R,Alexandra Court,No
Http://opendatacommunities.org/id/metropolitan-district-council/leeds,Leeds City Council,31/05/2016,Adult Social Care,Services For Older People - 65 And Over,Third Party Payments,Residential,580,04-May-16,1605-00489,0,6718.41,R,Alexandra Court,No
Http://opendatacommunities.org/id/metropolitan-district-council/leeds,Leeds City Council,31/05/2016,Adult Social Care,Services For Older People - 65 And Over,Third Party Payments,Residential Care Dementia,571,31-May-16,1605-00490,0,1395.28,R,Alexandra Court,No
Http://opendatacommunities.org/id/metropolitan-district-council/leeds,Leeds City Council,31/05/2016,Adult Social Care,Services For Older People - 65 And Over,Third Party Payments,Residential,580,31-May-16,1605-00491,0,8326.8,R,Alexandra Court,No
Http://opendatacommunities.org/id/metropolitan-district-council/leeds,Leeds City Council,31/05/2016,Citizens and Communities,Customer Access,Supplies and Services,Other Hired And Contracted Services,265,04-May-16,1605-00492,0,1109.75,R,Alexandra Hirst,No
Http://opendatacommunities.org/id/metropolitan-district-council/leeds,Leeds City Council,31/05/2016,Environment & Housing,Leeds Building Services,Supplies and Services,Other Hired And Contracted Services,265,05-May-16,1605-00493,0,4011,R,Alfred Bagnall & Sons (Leeds) Ltd,No
Http://opendatacommunities.org/id/metropolitan-district-council/leeds,Leeds City Council,31/05/2016,Environment & Housing,Leeds Building Services,Supplies and Services,Other Hired And Contracted Services,265,05-May-16,1605-00494,0,7234,R,Alfred Bagnall & Sons (Leeds) Ltd,No
Http://opendatacommunities.org/id/metropolitan-district-council/leeds,Leeds City Council,31/05/2016,Environment & Housing,Leeds Building Services,Supplies and Services,Other Hired And Contracted Services,265,06-May-16,1605-00495,0,9500,R,Alfred Bagnall & Sons (Leeds) Ltd,No
Http://opendatacommunities.org/id/metropolitan-district-council/leeds,Leeds City Council,31/05/2016,Environment & Housing,Leeds Building Services,Supplies and Services,Other Hired And Contracted Services,265,13-May-16,1605-00496,0,190,R,Alfred Bagnall & Sons (Leeds) Ltd,No
Http://opendatacommunities.org/id/metropolitan-district-council/leeds,Leeds City Council,31/05/2016,Environment & Housing,Leeds Building Services,Supplies and Services,Other Hired And Contracted Services,265,13-May-16,1605-00497,0,7752,R,Alfred Bagnall & Sons (Leeds) Ltd,No
Http://opendatacommunities.org/id/metropolitan-district-council/leeds,Leeds City Council,31/05/2016,Environment & Housing,Leeds Building Services,Supplies and Services,Other Hired And Contracted Services,265,17-May-16,1605-00498,0,290,R,Alfred Bagnall & Sons (Leeds) Ltd,No
Http://opendatacommunities.org/id/metropolitan-district-council/leeds,Leeds City Council,31/05/2016,City Development,Recreation,Supplies and Services,Other Hired And Contracted Services,265,20-May-16,1605-00499,0,4500,R,Alfred Bagnall & Sons (Leeds) Ltd,No
Http://opendatacommunities.org/id/metropolitan-district-council/leeds,Leeds City Council,31/05/2016,Environment & Housing,Leeds Building Services,Supplies and Services,Other Hired And Contracted Services,265,25-May-16,1605-00500,0,2450,R,Alfred Bagnall & Sons (Leeds) Ltd,No
Http://opendatacommunities.org/id/metropolitan-district-council/leeds,Leeds City Council,31/05/2016,City Development,Economic Development,Supplies and Services,Grants To Businesses,243,10-May-16,1605-00501,0,2500,R,Alia Take Away,No
Http://opendatacommunities.org/id/metropolitan-district-council/leeds,Leeds City Council,31/05/2016,Childrens Services,Safeguarding Targeted & Specialist,Third Party Payments,Section 17,551,05-May-16,1605-00502,0,53.9,R,REDACTED PERSONAL DATA,No
Http://opendatacommunities.org/id/metropolitan-district-council/leeds,Leeds City Council,31/05/2016,Childrens Services,Safeguarding Targeted & Specialist,Third Party Payments,Section 17,551,12-May-16,1605-00503,0,53.9,R,REDACTED PERSONAL DATA,No
Http://opendatacommunities.org/id/metropolitan-district-council/leeds,Leeds City Council,31/05/2016,Childrens Services,Safeguarding Targeted & Specialist,Third Party Payments,Section 17,551,19-May-16,1605-00504,0,53.9,R,REDACTED PERSONAL DATA,No
Http://opendatacommunities.org/id/metropolitan-district-council/leeds,Leeds City Council,31/05/2016,Childrens Services,Safeguarding Targeted & Specialist,Third Party Payments,Section 17,551,26-May-16,1605-00505,0,53.9,R,REDACTED PERSONAL DATA,No
Http://opendatacommunities.org/id/metropolitan-district-council/leeds,Leeds City Council,31/05/2016,Civic Enterprise Leeds,Commercial Services,Supplies and Services,Other Hired And Contracted Services,265,04-May-16,1605-00506,0,206.92,R,REDACTED PERSONAL DATA,No
Http://opendatacommunities.org/id/metropolitan-district-council/leeds,Leeds City Council,31/05/2016,Childrens Services,Safeguarding Targeted & Specialist,Third Party Payments,Section 17,551,16-May-16,1605-00507,0,171.36,R,REDACTED PERSONAL DATA,No
Http://opendatacommunities.org/id/metropolitan-district-council/leeds,Leeds City Council,31/05/2016,Environment & Housing,Leeds Building Services,Supplies and Services,Other Hired And Contracted Services,265,05-May-16,1605-00508,0,195,R,All Clear Solutions Ltd,No
Http://opendatacommunities.org/id/metropolitan-district-council/leeds,Leeds City Council,31/05/2016,Environment & Housing,Leeds Building Services,Supplies and Services,Other Hired And Contracted Services,265,18-May-16,1605-00509,0,195,R,All Clear Solutions Ltd,No
Http://opendatacommunities.org/id/metropolitan-district-council/leeds,Leeds City Council,31/05/2016,Environment & Housing,Leeds Building Services,Supplies and Services,Other Hired And Contracted Services,265,18-May-16,1605-00510,0,195,R,All Clear Solutions Ltd,No
Http://opendatacommunities.org/id/metropolitan-district-council/leeds,Leeds City Council,31/05/2016,Environment & Housing,Leeds Building Services,Supplies and Services,Other Hired And Contracted Services,265,18-May-16,1605-00511,0,195,R,All Clear Solutions Ltd,No
Http://opendatacommunities.org/id/metropolitan-district-council/leeds,Leeds City Council,31/05/2016,Environment & Housing,Leeds Building Services,Supplies and Services,Other Hired And Contracted Services,265,18-May-16,1605-00512,0,195,R,All Clear Solutions Ltd,No
Http://opendatacommunities.org/id/metropolitan-district-council/leeds,Leeds City Council,31/05/2016,Environment & Housing,Leeds Building Services,Supplies and Services,Other Hired And Contracted Services,265,18-May-16,1605-00513,0,450,R,All Clear Solutions Ltd,No
Http://opendatacommunities.org/id/metropolitan-district-council/leeds,Leeds City Council,31/05/2016,Environment & Housing,Leeds Building Services,Supplies and Services,Other Hired And Contracted Services,265,20-May-16,1605-00514,0,195,R,All Clear Solutions Ltd,No
Http://opendatacommunities.org/id/metropolitan-district-council/leeds,Leeds City Council,31/05/2016,Environment & Housing,Leeds Building Services,Supplies and Services,Other Hired And Contracted Services,265,20-May-16,1605-00515,0,195,R,All Clear Solutions Ltd,No
Http://opendatacommunities.org/id/metropolitan-district-council/leeds,Leeds City Council,31/05/2016,Environment & Housing,Leeds Building Services,Supplies and Services,Other Hired And Contracted Services,265,20-May-16,1605-00516,0,195,R,All Clear Solutions Ltd,No
Http://opendatacommunities.org/id/metropolitan-district-council/leeds,Leeds City Council,31/05/2016,Environment & Housing,Leeds Building Services,Supplies and Services,Other Hired And Contracted Services,265,20-May-16,1605-00517,0,250,R,All Clear Solutions Ltd,No
Http://opendatacommunities.org/id/metropolitan-district-council/leeds,Leeds City Council,31/05/2016,Environment & Housing,Leeds Building Services,Supplies and Services,Other Hired And Contracted Services,265,27-May-16,1605-00518,0,195,R,All Clear Solutions Ltd,No
Http://opendatacommunities.org/id/metropolitan-district-council/leeds,Leeds City Council,31/05/2016,Environment & Housing,Leeds Building Services,Supplies and Services,Other Hired And Contracted Services,265,27-May-16,1605-00519,0,250,R,All Clear Solutions Ltd,No
Http://opendatacommunities.org/id/metropolitan-district-council/leeds,Leeds City Council,31/05/2016,Citizens and Communities,Elections  Licensing and Registration,Premises,Rents,141,24-May-16,1605-00520,0,360,R,All Saints Parish Church,No
Http://opendatacommunities.org/id/metropolitan-district-council/leeds,Leeds City Council,31/05/2016,Civic Enterprise Leeds,Commercial Services,Supplies and Services,Postages,212,19-May-16,1605-00521,0,4.95,R,Allanda,No
Http://opendatacommunities.org/id/metropolitan-district-council/leeds,Leeds City Council,31/05/2016,Civic Enterprise Leeds,Commercial Services,Transport,Miscellaneous Transport Related Costs,324,19-May-16,1605-00522,0,35.94,R,Allanda,No
Http://opendatacommunities.org/id/metropolitan-district-council/leeds,Leeds City Council,31/05/2016,Civic Enterprise Leeds,Facilities Management,Supplies and Services,Office Furniture & Equipment,201,27-May-16,1605-00523,0,315,R,Allansound Communications,No
Http://opendatacommunities.org/id/metropolitan-district-council/leeds,Leeds City Council,31/05/2016,City Development,Recreation  ,Supplies and Services,Office Consumables,210,27-Apr-16,1605-00524,0,99.92,R,Allcam,Yes
Http://opendatacommunities.org/id/metropolitan-district-council/leeds,Leeds City Council as Accountable Body,31/05/2016,Social Services Pooled Budgets,Jcs For People With Learning Disabilitie,Third Party Payments,Sheltered Accommodation,569,04-May-16,1605-00525,0,16596.04,R,Allerton Avenue,No
Http://opendatacommunities.org/id/metropolitan-district-council/leeds,Leeds City Council as Accountable Body,31/05/2016,Social Services Pooled Budgets,Jcs For People With Learning Disabilitie,Third Party Payments,Sheltered Accommodation,569,31-May-16,1605-00526,0,16596.04,R,Allerton Avenue,No
Http://opendatacommunities.org/id/metropolitan-district-council/leeds,Leeds City Council,31/05/2016,Environment & Housing,Parks and Countryside,Supplies and Services,Operational Materials,205,27-May-16,1605-00527,0,10,R,Allflex Europe (Uk) Ltd,No
Http://opendatacommunities.org/id/metropolitan-district-council/leeds,Leeds City Council,31/05/2016,Central & Corporate,Finance,Supplies and Services,Bank Charges,263,03-May-16,1605-00528,0,-117.28,R,Alliance & Leicester Commercial Bank,No
Http://opendatacommunities.org/id/metropolitan-district-council/leeds,Leeds City Council,31/05/2016,Strategic Landlord,Housing Management,Supplies and Services,Other Hired And Contracted Services,265,05-May-16,1605-00529,0,283.75,R,Alliance & Leicester Commercial Bank,No
Http://opendatacommunities.org/id/metropolitan-district-council/leeds,Leeds City Council,31/05/2016,Central & Corporate,Finance,Supplies and Services,Bank Charges,263,05-May-16,1605-00530,0,3.04,R,Alliance & Leicester Commercial Bank,No
Http://opendatacommunities.org/id/metropolitan-district-council/leeds,Leeds City Council,31/05/2016,Central & Corporate,Finance,Supplies and Services,Bank Charges,263,05-May-16,1605-00531,0,303.5,R,Alliance & Leicester Commercial Bank,No
Http://opendatacommunities.org/id/metropolitan-district-council/leeds,Leeds City Council,31/05/2016,Central & Corporate,Finance,Supplies and Services,Bank Charges,263,05-May-16,1605-00532,0,814.98,R,Alliance & Leicester Commercial Bank,No
Http://opendatacommunities.org/id/metropolitan-district-council/leeds,Leeds City Council,31/05/2016,Central & Corporate,Finance,Supplies and Services,Bank Charges,263,05-May-16,1605-00533,0,100.14,R,Alliance & Leicester Commercial Bank,No
Http://opendatacommunities.org/id/metropolitan-district-council/leeds,Leeds City Council,31/05/2016,City Development,Highways,Supplies and Services,Other Hired And Contracted Services,265,03-May-16,1605-00534,0,949.9,R,Allied Exploration & Geotechnics Ltd,No
Http://opendatacommunities.org/id/metropolitan-district-council/leeds,Leeds City Council,31/05/2016,City Development,Highways,Supplies and Services,Other Hired And Contracted Services,265,03-May-16,1605-00535,0,349.1,R,Allied Exploration & Geotechnics Ltd,No
Http://opendatacommunities.org/id/metropolitan-district-council/leeds,Leeds City Council,31/05/2016,City Development,Highways,Supplies and Services,Other Hired And Contracted Services,265,03-May-16,1605-00536,0,1760.36,R,Allied Exploration & Geotechnics Ltd,No
Http://opendatacommunities.org/id/metropolitan-district-council/leeds,Leeds City Council,31/05/2016,City Development,Highways,Supplies and Services,Other Hired And Contracted Services,265,09-May-16,1605-00537,0,344.6,R,Allied Exploration & Geotechnics Ltd,No
Http://opendatacommunities.org/id/metropolitan-district-council/leeds,Leeds City Council,31/05/2016,City Development,Highways,Supplies and Services,Other Hired And Contracted Services,265,13-May-16,1605-00538,0,2183,R,Allied Exploration & Geotechnics Ltd,No
Http://opendatacommunities.org/id/metropolitan-district-council/leeds,Leeds City Council,31/05/2016,City Development,Highways,Supplies and Services,Other Hired And Contracted Services,265,13-May-16,1605-00539,0,7313.3,R,Allied Exploration & Geotechnics Ltd,No
Http://opendatacommunities.org/id/metropolitan-district-council/leeds,Leeds City Council,31/05/2016,City Development,Highways,Supplies and Services,Other Hired And Contracted Services,265,17-May-16,1605-00540,0,57.5,R,Allied Exploration & Geotechnics Ltd,No
Http://opendatacommunities.org/id/metropolitan-district-council/leeds,Leeds City Council,31/05/2016,City Development,Highways,Supplies and Services,Other Hired And Contracted Services,265,17-May-16,1605-00541,0,2474.15,R,Allied Exploration & Geotechnics Ltd,No
Http://opendatacommunities.org/id/metropolitan-district-council/leeds,Leeds City Council,31/05/2016,City Development,Highways,Supplies and Services,Other Hired And Contracted Services,265,23-May-16,1605-00542,0,8974.08,R,Allied Exploration & Geotechnics Ltd,No
Http://opendatacommunities.org/id/metropolitan-district-council/leeds,Leeds City Council,31/05/2016,City Development,Highways,Supplies and Services,Other Hired And Contracted Services,265,25-May-16,1605-00543,0,1526.4,R,Allied Exploration & Geotechnics Ltd,No
Http://opendatacommunities.org/id/metropolitan-district-council/leeds,Leeds City Council,31/05/2016,Adult Social Care,Other Generic Services,Third Party Payments,Home Care,568,06-May-16,1605-00544,0,16141.61,R,Allied Healthcare,No
Http://opendatacommunities.org/id/metropolitan-district-council/leeds,Leeds City Council,31/05/2016,Adult Social Care,Other Generic Services,Third Party Payments,Home Care,568,06-May-16,1605-00545,0,5986.19,R,Allied Healthcare,No
Http://opendatacommunities.org/id/metropolitan-district-council/leeds,Leeds City Council,31/05/2016,Adult Social Care,Services For Older People - 65 And Over,Third Party Payments,Home Care,568,06-May-16,1605-00546,0,428.74,R,Allied Healthcare,No
Http://opendatacommunities.org/id/metropolitan-district-council/leeds,Leeds City Council,31/05/2016,Adult Social Care,Services For Older People Under 65 P/Dis,Third Party Payments,Home Care,568,06-May-16,1605-00547,0,88.27,R,Allied Healthcare,No
Http://opendatacommunities.org/id/metropolitan-district-council/leeds,Leeds City Council,31/05/2016,Childrens Services,Safeguarding Targeted & Specialist,Third Party Payments,Services Rendered By Voluntary Sector,505,11-May-16,1605-00548,0,844.8,R,Allied Healthcare,No
Http://opendatacommunities.org/id/metropolitan-district-council/leeds,Leeds City Council,31/05/2016,Childrens Services,Safeguarding Targeted & Specialist,Third Party Payments,Services Rendered By Voluntary Sector,505,11-May-16,1605-00549,0,60.85,R,Allied Healthcare,No
Http://opendatacommunities.org/id/metropolitan-district-council/leeds,Leeds City Council,31/05/2016,Childrens Services,Safeguarding Targeted & Specialist,Third Party Payments,Services Rendered By Voluntary Sector,505,11-May-16,1605-00550,0,1025.2,R,Allied Healthcare,No
Http://opendatacommunities.org/id/metropolitan-district-council/leeds,Leeds City Council,31/05/2016,Childrens Services,Safeguarding Targeted & Specialist,Third Party Payments,Services Rendered By Voluntary Sector,505,11-May-16,1605-00551,0,788,R,Allied Healthcare,No
Http://opendatacommunities.org/id/metropolitan-district-council/leeds,Leeds City Council,31/05/2016,Childrens Services,Safeguarding Targeted & Specialist,Third Party Payments,Services Rendered By Voluntary Sector,505,11-May-16,1605-00552,0,1025.2,R,Allied Healthcare,No
Http://opendatacommunities.org/id/metropolitan-district-council/leeds,Leeds City Council,31/05/2016,Childrens Services,Safeguarding Targeted & Specialist,Third Party Payments,Services Rendered By Voluntary Sector,505,11-May-16,1605-00553,0,844.8,R,Allied Healthcare,No
Http://opendatacommunities.org/id/metropolitan-district-council/leeds,Leeds City Council,31/05/2016,Childrens Services,Safeguarding Targeted & Specialist,Third Party Payments,Services Rendered By Voluntary Sector,505,11-May-16,1605-00554,0,1025.2,R,Allied Healthcare,No
Http://opendatacommunities.org/id/metropolitan-district-council/leeds,Leeds City Council,31/05/2016,Adult Social Care,Other Generic Services,Third Party Payments,Home Care,568,12-May-16,1605-00555,0,16623.77,R,Allied Healthcare,No
Http://opendatacommunities.org/id/metropolitan-district-council/leeds,Leeds City Council,31/05/2016,Adult Social Care,Other Generic Services,Third Party Payments,Home Care,568,12-May-16,1605-00556,0,6235.82,R,Allied Healthcare,No
Http://opendatacommunities.org/id/metropolitan-district-council/leeds,Leeds City Council,31/05/2016,Childrens Services,Safeguarding Targeted & Specialist,Third Party Payments,Services Rendered By Voluntary Sector,505,12-May-16,1605-00557,0,830.22,R,Allied Healthcare,No
Http://opendatacommunities.org/id/metropolitan-district-council/leeds,Leeds City Council,31/05/2016,Childrens Services,Safeguarding Targeted & Specialist,Third Party Payments,Services Rendered By Voluntary Sector,505,12-May-16,1605-00558,0,795.54,R,Allied Healthcare,No
Http://opendatacommunities.org/id/metropolitan-district-council/leeds,Leeds City Council,31/05/2016,Childrens Services,Safeguarding Targeted & Specialist,Third Party Payments,Services Rendered By Voluntary Sector,505,12-May-16,1605-00559,0,844.8,R,Allied Healthcare,No
Http://opendatacommunities.org/id/metropolitan-district-council/leeds,Leeds City Council,31/05/2016,Childrens Services,Safeguarding Targeted & Specialist,Third Party Payments,Services Rendered By Voluntary Sector,505,12-May-16,1605-00560,0,1025.2,R,Allied Healthcare,No
Http://opendatacommunities.org/id/metropolitan-district-council/leeds,Leeds City Council,31/05/2016,Childrens Services,Safeguarding Targeted & Specialist,Third Party Payments,Services Rendered By Voluntary Sector,505,12-May-16,1605-00561,0,963.64,R,Allied Healthcare,No
Http://opendatacommunities.org/id/metropolitan-district-council/leeds,Leeds City Council,31/05/2016,Childrens Services,Safeguarding Targeted & Specialist,Third Party Payments,Services Rendered By Voluntary Sector,505,12-May-16,1605-00562,0,1025.2,R,Allied Healthcare,No
Http://opendatacommunities.org/id/metropolitan-district-council/leeds,Leeds City Council as Accountable Body,31/05/2016,Social Services Pooled Budgets,Jcs For People With Learning Disabilitie,Third Party Payments,Home Care,568,13-May-16,1605-00563,0,1178.53,R,Allied Healthcare,No
Http://opendatacommunities.org/id/metropolitan-district-council/leeds,Leeds City Council as Accountable Body,31/05/2016,Social Services Pooled Budgets,Jcs For People With Learning Disabilitie,Third Party Payments,Home Care,568,13-May-16,1605-00564,0,558.48,R,Allied Healthcare,No
Http://opendatacommunities.org/id/metropolitan-district-council/leeds,Leeds City Council as Accountable Body,31/05/2016,Social Services Pooled Budgets,Jcs For People With Learning Disabilitie,Third Party Payments,Home Care,568,13-May-16,1605-00565,0,15369.1,R,Allied Healthcare,No
Http://opendatacommunities.org/id/metropolitan-district-council/leeds,Leeds City Council as Accountable Body,31/05/2016,Social Services Pooled Budgets,Jcs For People With Learning Disabilitie,Third Party Payments,Home Care,568,13-May-16,1605-00566,0,451.8,R,Allied Healthcare,No
Http://opendatacommunities.org/id/metropolitan-district-council/leeds,Leeds City Council as Accountable Body,31/05/2016,Social Services Pooled Budgets,Jcs For People With Learning Disabilitie,Third Party Payments,Home Care,568,16-May-16,1605-00567,0,502,R,Allied Healthcare,No
Http://opendatacommunities.org/id/metropolitan-district-council/leeds,Leeds City Council as Accountable Body,31/05/2016,Social Services Pooled Budgets,Jcs For People With Learning Disabilitie,Third Party Payments,Home Care,568,18-May-16,1605-00568,0,98.2,R,Allied Healthcare,No
Http://opendatacommunities.org/id/metropolitan-district-council/leeds,Leeds City Council as Accountable Body,31/05/2016,Social Services Pooled Budgets,Jcs For People With Learning Disabilitie,Third Party Payments,Home Care,568,18-May-16,1605-00569,0,663.55,R,Allied Healthcare,No
Http://opendatacommunities.org/id/metropolitan-district-council/leeds,Leeds City Council as Accountable Body,31/05/2016,Social Services Pooled Budgets,Jcs For People With Learning Disabilitie,Third Party Payments,Home Care,568,18-May-16,1605-00570,0,594.47,R,Allied Healthcare,No
Http://opendatacommunities.org/id/metropolitan-district-council/leeds,Leeds City Council as Accountable Body,31/05/2016,Social Services Pooled Budgets,Jcs For People With Learning Disabilitie,Third Party Payments,Home Care,568,18-May-16,1605-00571,0,552.2,R,Allied Healthcare,No
Http://opendatacommunities.org/id/metropolitan-district-council/leeds,Leeds City Council as Accountable Body,31/05/2016,Social Services Pooled Budgets,Jcs For People With Learning Disabilitie,Third Party Payments,Home Care,568,18-May-16,1605-00572,0,35.63,R,Allied Healthcare,No
Http://opendatacommunities.org/id/metropolitan-district-council/leeds,Leeds City Council as Accountable Body,31/05/2016,Social Services Pooled Budgets,Jcs For People With Learning Disabilitie,Third Party Payments,Home Care,568,18-May-16,1605-00573,0,115.29,R,Allied Healthcare,No
Http://opendatacommunities.org/id/metropolitan-district-council/leeds,Leeds City Council,31/05/2016,Childrens Services,Safeguarding Targeted & Specialist,Third Party Payments,Services Rendered By Voluntary Sector,505,18-May-16,1605-00574,0,664.4,R,Allied Healthcare,No
Http://opendatacommunities.org/id/metropolitan-district-council/leeds,Leeds City Council as Accountable Body,31/05/2016,Social Services Pooled Budgets,Jcs For People With Learning Disabilitie,Third Party Payments,Home Care,568,18-May-16,1605-00575,0,967.74,R,Allied Healthcare,No
Http://opendatacommunities.org/id/metropolitan-district-council/leeds,Leeds City Council as Accountable Body,31/05/2016,Social Services Pooled Budgets,Jcs For People With Learning Disabilitie,Third Party Payments,Home Care,568,18-May-16,1605-00576,0,155.68,R,Allied Healthcare,No
Http://opendatacommunities.org/id/metropolitan-district-council/leeds,Leeds City Council as Accountable Body,31/05/2016,Social Services Pooled Budgets,Jcs For People With Learning Disabilitie,Third Party Payments,Home Care,568,18-May-16,1605-00577,0,15.53,R,Allied Healthcare,No
Http://opendatacommunities.org/id/metropolitan-district-council/leeds,Leeds City Council,31/05/2016,Adult Social Care,Services For Older People Under 65 P/Dis,Third Party Payments,Home Care,568,19-May-16,1605-00578,0,326.4,R,Allied Healthcare,No
Http://opendatacommunities.org/id/metropolitan-district-council/leeds,Leeds City Council as Accountable Body,31/05/2016,Social Services Pooled Budgets,Jcs For People With Learning Disabilitie,Third Party Payments,Home Care,568,20-May-16,1605-00579,0,78.56,R,Allied Healthcare,No
Http://opendatacommunities.org/id/metropolitan-district-council/leeds,Leeds City Council as Accountable Body,31/05/2016,Social Services Pooled Budgets,Jcs For People With Learning Disabilitie,Third Party Payments,Home Care,568,25-May-16,1605-00580,0,545.94,R,Allied Healthcare,No
Http://opendatacommunities.org/id/metropolitan-district-council/leeds,Leeds City Council as Accountable Body,31/05/2016,Social Services Pooled Budgets,Jcs For People With Learning Disabilitie,Third Party Payments,Home Care,568,27-May-16,1605-00581,0,564.75,R,Allied Healthcare,No
Http://opendatacommunities.org/id/metropolitan-district-council/leeds,Leeds City Council as Accountable Body,31/05/2016,Social Services Pooled Budgets,Jcs For People With Learning Disabilitie,Third Party Payments,Home Care,568,27-May-16,1605-00582,0,135.84,R,Allied Healthcare,No
Http://opendatacommunities.org/id/metropolitan-district-council/leeds,Leeds City Council as Accountable Body,31/05/2016,Social Services Pooled Budgets,Jcs For People With Learning Disabilitie,Third Party Payments,Home Care,568,27-May-16,1605-00583,0,16614.57,R,Allied Healthcare,No
Http://opendatacommunities.org/id/metropolitan-district-council/leeds,Leeds City Council,31/05/2016,Adult Social Care,Services For Older People Under 65 P/Dis,Third Party Payments,Home Care,568,27-May-16,1605-00584,0,9260.01,R,Allied Healthcare,No
Http://opendatacommunities.org/id/metropolitan-district-council/leeds,Leeds City Council,31/05/2016,Adult Social Care,Services For Older People - 65 And Over,Third Party Payments,Home Care,568,27-May-16,1605-00585,0,17862.29,R,Allied Healthcare,No
Http://opendatacommunities.org/id/metropolitan-district-council/leeds,Leeds City Council,31/05/2016,Adult Social Care,Services For Older People Under 65 P/Dis,Third Party Payments,Home Care,568,27-May-16,1605-00586,0,3250.48,R,Allied Healthcare,No
Http://opendatacommunities.org/id/metropolitan-district-council/leeds,Leeds City Council,31/05/2016,Adult Social Care,Services For Older People - 65 And Over,Third Party Payments,Home Care,568,27-May-16,1605-00587,0,19931.5,R,Allied Healthcare,No
Http://opendatacommunities.org/id/metropolitan-district-council/leeds,Leeds City Council,31/05/2016,Adult Social Care,Services For Older People Under 65 P/Dis,Third Party Payments,Home Care,568,27-May-16,1605-00588,0,2022.64,R,Allied Healthcare,No
Http://opendatacommunities.org/id/metropolitan-district-council/leeds,Leeds City Council,31/05/2016,Adult Social Care,Services For Older People - 65 And Over,Third Party Payments,Home Care,568,27-May-16,1605-00589,0,10445.5,R,Allied Healthcare,No
Http://opendatacommunities.org/id/metropolitan-district-council/leeds,Leeds City Council,31/05/2016,City Development,Planning & Sustainable Development,Supplies and Services,Computer Software & Equipment,214,20-May-16,1605-00590,0,1390,R,Allied Images Ltd,No
Http://opendatacommunities.org/id/metropolitan-district-council/leeds,Leeds City Council,31/05/2016,Central & Corporate,Democratic Services,Transport,Fuel (Non LCC Supplies),321,09-May-16,1605-00591,0,181.39,R,Allstar Business Solutions Ltd,No
Http://opendatacommunities.org/id/metropolitan-district-council/leeds,Leeds City Council,31/05/2016,Childrens Services,Learning Skills & Universal,Transport,Fuel (Non LCC Supplies),321,09-May-16,1605-00592,0,1575.52,R,Allstar Business Solutions Ltd,No
Http://opendatacommunities.org/id/metropolitan-district-council/leeds,Leeds City Council,31/05/2016,Environment & Housing,Parks and Countryside,Transport,Fuel (Non LCC Supplies),321,09-May-16,1605-00593,0,50.4,R,Allstar Business Solutions Ltd,No
Http://opendatacommunities.org/id/metropolitan-district-council/leeds,Leeds City Council,31/05/2016,City Development,Highways,Transport,Fuel (Non LCC Supplies),321,09-May-16,1605-00594,0,531.59,R,Allstar Business Solutions Ltd,No
Http://opendatacommunities.org/id/metropolitan-district-council/leeds,Leeds City Council,31/05/2016,Environment & Housing,Waste Management,Transport,Fuel (Non LCC Supplies),321,09-May-16,1605-00595,0,1.2,R,Allstar Business Solutions Ltd,No
Http://opendatacommunities.org/id/metropolitan-district-council/leeds,Leeds City Council,31/05/2016,Environment & Housing,Leeds Building Services,Transport,Fuel (Non LCC Supplies),321,13-May-16,1605-00596,0,31.68,R,Allstar Business Solutions Ltd,No
Http://opendatacommunities.org/id/metropolitan-district-council/leeds,Leeds City Council,31/05/2016,City Development,Recreation,Supplies and Services,Other Hired And Contracted Services,265,12-May-16,1605-00597,0,70.25,R,Alpha Awards Ltd,No
Http://opendatacommunities.org/id/metropolitan-district-council/leeds,Leeds City Council,31/05/2016,City Development,Recreation,Supplies and Services,Other Hired And Contracted Services,265,19-May-16,1605-00598,0,289.25,R,Alpha Awards Ltd,No
Http://opendatacommunities.org/id/metropolitan-district-council/leeds,Leeds City Council,31/05/2016,Childrens Services,Safeguarding Targeted & Specialist,Support Services,Legal Disbursements,411,03-May-16,1605-00599,0,110,R,Alpha Biolaboratories Limited,No
Http://opendatacommunities.org/id/metropolitan-district-council/leeds,Leeds City Council,31/05/2016,Childrens Services,Safeguarding Targeted & Specialist,Third Party Payments, Direct Work,549,04-May-16,1605-00600,0,594,R,Alpha Biolaboratories Limited,No
Http://opendatacommunities.org/id/metropolitan-district-council/leeds,Leeds City Council,31/05/2016,Childrens Services,Safeguarding Targeted & Specialist,Support Services,Legal Disbursements,411,13-May-16,1605-00601,0,390,R,Alpha Biolaboratories Limited,No
Http://opendatacommunities.org/id/metropolitan-district-council/leeds,Leeds City Council,31/05/2016,Childrens Services,Safeguarding Targeted & Specialist,Support Services,Legal Disbursements,411,20-May-16,1605-00602,0,136.25,R,Alpha Biolaboratories Limited,No
Http://opendatacommunities.org/id/metropolitan-district-council/leeds,Leeds City Council,31/05/2016,Childrens Services,Safeguarding Targeted & Specialist,Support Services,Legal Disbursements,411,20-May-16,1605-00603,0,440,R,Alpha Biolaboratories Limited,No
Http://opendatacommunities.org/id/metropolitan-district-council/leeds,Leeds City Council,31/05/2016,Citizens and Communities,Communities,Supplies and Services,Well Being Small Grants Projects,228,11-May-16,1605-00604,0,438.28,R,Altogether Armley,No
Http://opendatacommunities.org/id/metropolitan-district-council/leeds,Leeds City Council,31/05/2016,Environment & Housing,Leeds Building Services,Supplies and Services,Operational Materials,205,13-May-16,1605-00605,0,766.55,R,Alvin Morris Ltd,No
Http://opendatacommunities.org/id/metropolitan-district-council/leeds,Leeds City Council,31/05/2016,Citizens and Communities,Elections  Licensing and Registration,Premises,Rents,141,16-May-16,1605-00606,0,260,R,Alwoodley Community Association,No
Http://opendatacommunities.org/id/metropolitan-district-council/leeds,Leeds City Council,31/05/2016,Adult Social Care,Services For Older People - 65 And Over,Third Party Payments,Nursing Home,570,04-May-16,1605-00607,0,2878.64,R,Alwoodley Nursing Home,No
Http://opendatacommunities.org/id/metropolitan-district-council/leeds,Leeds City Council,31/05/2016,Adult Social Care,Services For Older People - 65 And Over,Third Party Payments,Nursing Home,570,31-May-16,1605-00608,0,2878.64,R,Alwoodley Nursing Home,No
Http://opendatacommunities.org/id/metropolitan-district-council/leeds,Leeds City Council,31/05/2016,City Development,Recreation,Income,Sporting & Other Recreational Fees,928,04-May-16,1605-00609,0,115.5,R,REDACTED PERSONAL DATA,No
Http://opendatacommunities.org/id/metropolitan-district-council/leeds,Leeds City Council,31/05/2016,Childrens Services,Partnership Development & Leadership,Employees,Training & Development,70,27-May-16,1605-00610,0,1322.2,R,REDACTED PERSONAL DATA,No
Http://opendatacommunities.org/id/metropolitan-district-council/leeds,Leeds City Council,31/05/2016,Insurance,Insurance,Supplies and Services,Insurance Claims,248,23-May-16,1605-00611,0,23.7,R,REDACTED PERSONAL DATA,No
Http://opendatacommunities.org/id/metropolitan-district-council/leeds,Leeds City Council,31/05/2016,Childrens Services,Safeguarding Targeted & Specialist,Third Party Payments,Section 17,551,26-May-16,1605-00612,0,480,R,REDACTED PERSONAL DATA,No
Http://opendatacommunities.org/id/metropolitan-district-council/leeds,Leeds City Council,31/05/2016,Childrens Services,Safeguarding Targeted & Specialist,Third Party Payments,Special Guardianship,558,26-May-16,1605-00613,0,295.5,R,REDACTED PERSONAL DATA,No
Http://opendatacommunities.org/id/metropolitan-district-council/leeds,Leeds City Council,31/05/2016,Childrens Services,Safeguarding Targeted & Specialist  ,Supplies and Services,Office Consumables,210,22-Apr-16,1605-00614,0,158.4,R,Amari Plastics Plc,Yes
Http://opendatacommunities.org/id/metropolitan-district-council/leeds,Leeds City Council,31/05/2016,City Development,Recreation,Supplies and Services,Other Hired And Contracted Services,265,13-May-16,1605-00615,0,300,R,Amateur Swimming Association,No
Http://opendatacommunities.org/id/metropolitan-district-council/leeds,Leeds City Council,31/05/2016,City Development,Recreation,Supplies and Services,Operational Furniture And Equipment,203,03-May-16,1605-00616,0,1796.99,R,Amazon Leisure Uk Ltd,No
Http://opendatacommunities.org/id/metropolitan-district-council/leeds,Leeds City Council,31/05/2016,City Development,Recreation,Supplies and Services,Operational Furniture And Equipment,203,05-May-16,1605-00617,0,661.04,R,Amazon Leisure Uk Ltd,No
Http://opendatacommunities.org/id/metropolitan-district-council/leeds,Leeds City Council,31/05/2016,City Development,Recreation,Supplies and Services,Operational Furniture And Equipment,203,06-May-16,1605-00618,0,603.9,R,Amazon Leisure Uk Ltd,No
Http://opendatacommunities.org/id/metropolitan-district-council/leeds,Leeds City Council,31/05/2016,City Development,Recreation,Supplies and Services,Operational Furniture And Equipment,203,10-May-16,1605-00619,0,107.6,R,Amazon Leisure Uk Ltd,No
Http://opendatacommunities.org/id/metropolitan-district-council/leeds,Leeds City Council,31/05/2016,City Development,Recreation,Supplies and Services,Operational Furniture And Equipment,203,11-May-16,1605-00620,0,28.87,R,Amazon Leisure Uk Ltd,No
Http://opendatacommunities.org/id/metropolitan-district-council/leeds,Leeds City Council,31/05/2016,City Development,Recreation,Supplies and Services,Operational Furniture And Equipment,203,11-May-16,1605-00621,0,59.08,R,Amazon Leisure Uk Ltd,No
Http://opendatacommunities.org/id/metropolitan-district-council/leeds,Leeds City Council,31/05/2016,City Development,Recreation,Supplies and Services,Operational Furniture And Equipment,203,12-May-16,1605-00622,0,361.93,R,Amazon Leisure Uk Ltd,No
Http://opendatacommunities.org/id/metropolitan-district-council/leeds,Leeds City Council,31/05/2016,City Development,Recreation,Supplies and Services,Operational Furniture And Equipment,203,12-May-16,1605-00623,0,312.22,R,Amazon Leisure Uk Ltd,No
Http://opendatacommunities.org/id/metropolitan-district-council/leeds,Leeds City Council,31/05/2016,City Development,Recreation,Supplies and Services,Operational Furniture And Equipment,203,13-May-16,1605-00624,0,50.88,R,Amazon Leisure Uk Ltd,No
Http://opendatacommunities.org/id/metropolitan-district-council/leeds,Leeds City Council,31/05/2016,City Development,Recreation,Supplies and Services,Operational Furniture And Equipment,203,13-May-16,1605-00625,0,296.74,R,Amazon Leisure Uk Ltd,No
Http://opendatacommunities.org/id/metropolitan-district-council/leeds,Leeds City Council,31/05/2016,City Development,Recreation,Supplies and Services,Operational Furniture And Equipment,203,18-May-16,1605-00626,0,788.16,R,Amazon Leisure Uk Ltd,No
Http://opendatacommunities.org/id/metropolitan-district-council/leeds,Leeds City Council,31/05/2016,City Development,Recreation,Supplies and Services,Operational Furniture And Equipment,203,18-May-16,1605-00627,0,998.72,R,Amazon Leisure Uk Ltd,No
Http://opendatacommunities.org/id/metropolitan-district-council/leeds,Leeds City Council,31/05/2016,City Development,Recreation,Supplies and Services,Operational Furniture And Equipment,203,18-May-16,1605-00628,0,984.21,R,Amazon Leisure Uk Ltd,No
Http://opendatacommunities.org/id/metropolitan-district-council/leeds,Leeds City Council,31/05/2016,City Development,Recreation,Supplies and Services,Operational Furniture And Equipment,203,27-May-16,1605-00629,0,-3.75,R,Amazon Leisure Uk Ltd,No
Http://opendatacommunities.org/id/metropolitan-district-council/leeds,Leeds City Council,31/05/2016,City Development,Recreation,Supplies and Services,Operational Furniture And Equipment,203,27-May-16,1605-00630,0,150,R,Amazon Leisure Uk Ltd,No
Http://opendatacommunities.org/id/metropolitan-district-council/leeds,Leeds City Council,31/05/2016,City Development,Recreation,Supplies and Services,Operational Furniture And Equipment,203,27-May-16,1605-00631,0,-105,R,Amazon Leisure Uk Ltd,No
Http://opendatacommunities.org/id/metropolitan-district-council/leeds,Leeds City Council,31/05/2016,City Development,Recreation,Supplies and Services,Operational Furniture And Equipment,203,27-May-16,1605-00632,0,365.99,R,Amazon Leisure Uk Ltd,No
Http://opendatacommunities.org/id/metropolitan-district-council/leeds,Leeds City Council,31/05/2016,City Development,Libraries  Arts & Heritage  ,Supplies and Services,Office Consumables,210,01-Apr-16,1605-00633,0,438.54,R,Amazon Mktplace Pmts,Yes
Http://opendatacommunities.org/id/metropolitan-district-council/leeds,Leeds City Council,31/05/2016,Childrens Services,Learning Skills & Universal  ,Supplies and Services,Teaching Furniture & Equipment,207,04-Apr-16,1605-00634,0,2.28,R,Amazon Svcs Europe sar,Yes
Http://opendatacommunities.org/id/metropolitan-district-council/leeds,Leeds City Council,31/05/2016,Childrens Services,Partnership Development & Leadership  ,Premises,First Aid Requisites,128,12-Apr-16,1605-00635,0,16.75,R,Amazon Svcs Europe sar,Yes
Http://opendatacommunities.org/id/metropolitan-district-council/leeds,Leeds City Council,31/05/2016,Adult Social Care,Services For Older People - 65 And Over  ,Supplies and Services,Office Furniture & Equipment,201,14-Apr-16,1605-00636,0,3.32,R,Amazon Svcs Europe sar,Yes
Http://opendatacommunities.org/id/metropolitan-district-council/leeds,Leeds City Council,31/05/2016,City Development,Recreation  ,Supplies and Services,Operational Furniture And Equipment,203,21-Apr-16,1605-00637,0,8.32,R,Amazon Svcs Europe sar,Yes
Http://opendatacommunities.org/id/metropolitan-district-council/leeds,Leeds City Council,31/05/2016,Environment & Housing,Parks And Countryside  ,Supplies and Services,Office Consumables,210,26-Apr-16,1605-00638,0,9.82,R,Amazon Svcs Europe sar,Yes
Http://opendatacommunities.org/id/metropolitan-district-council/leeds,Leeds City Council,31/05/2016,City Development,Highways  ,Supplies and Services,Office Consumables,210,26-Apr-16,1605-00639,0,131.67,R,Amazon Svcs Europe sar,Yes
Http://opendatacommunities.org/id/metropolitan-district-council/leeds,Leeds City Council,31/05/2016,Childrens Services,Safeguarding Targeted & Specialist  ,Supplies and Services,Crockery  Cutlery & Utensils,221,31-Mar-16,1605-00640,0,7.99,R,Amazon UK Marketplace,Yes
Http://opendatacommunities.org/id/metropolitan-district-council/leeds,Leeds City Council,31/05/2016,Central & Corporate,Finance  ,Supplies and Services,Office Furniture & Equipment,201,31-Mar-16,1605-00641,0,3.71,R,Amazon UK Marketplace,Yes
Http://opendatacommunities.org/id/metropolitan-district-council/leeds,Leeds City Council,31/05/2016,Childrens Services,Learning Skills & Universal  ,Supplies and Services,Teaching Furniture & Equipment,207,31-Mar-16,1605-00642,0,5.05,R,Amazon UK Marketplace,Yes
Http://opendatacommunities.org/id/metropolitan-district-council/leeds,Leeds City Council,31/05/2016,Childrens Services,Safeguarding Targeted & Specialist  ,Supplies and Services,Crockery  Cutlery & Utensils,221,31-Mar-16,1605-00643,0,21.92,R,Amazon UK Marketplace,Yes
Http://opendatacommunities.org/id/metropolitan-district-council/leeds,Leeds City Council,31/05/2016,Childrens Services,Partnership Development & Leadership  ,Employees,Best Value Training,70,31-Mar-16,1605-00644,0,52.15,R,Amazon UK Marketplace,Yes
Http://opendatacommunities.org/id/metropolitan-district-council/leeds,Leeds City Council,31/05/2016,Childrens Services,Learning Skills & Universal  ,Supplies and Services,Teaching Furniture & Equipment,207,31-Mar-16,1605-00645,0,2.81,R,Amazon UK Marketplace,Yes
Http://opendatacommunities.org/id/metropolitan-district-council/leeds,Leeds City Council,31/05/2016,Childrens Services,Learning Skills & Universal  ,Supplies and Services,Teaching Furniture & Equipment,207,31-Mar-16,1605-00646,0,2.81,R,Amazon UK Marketplace,Yes
Http://opendatacommunities.org/id/metropolitan-district-council/leeds,Leeds City Council,31/05/2016,Childrens Services,Learning Skills & Universal  ,Supplies and Services,Teaching Furniture & Equipment,207,31-Mar-16,1605-00647,0,2.81,R,Amazon UK Marketplace,Yes
Http://opendatacommunities.org/id/metropolitan-district-council/leeds,Leeds City Council,31/05/2016,City Development,Libraries  Arts & Heritage  ,Supplies and Services,Operational Furniture And Equipment,203,31-Mar-16,1605-00648,0,39.98,R,Amazon UK Marketplace,Yes
Http://opendatacommunities.org/id/metropolitan-district-council/leeds,Leeds City Council,31/05/2016,Childrens Services,Safeguarding Targeted & Specialist  ,Supplies and Services,Crockery  Cutlery & Utensils,221,31-Mar-16,1605-00649,0,9,R,Amazon UK Marketplace,Yes
Http://opendatacommunities.org/id/metropolitan-district-council/leeds,Leeds City Council,31/05/2016,Childrens Services,Safeguarding Targeted & Specialist  ,Supplies and Services,Other Hired And Contracted Services,265,31-Mar-16,1605-00650,0,14.99,R,Amazon UK Marketplace,Yes
Http://opendatacommunities.org/id/metropolitan-district-council/leeds,Leeds City Council,31/05/2016,Childrens Services,Learning Skills & Universal  ,Third Party Payments,Services Rendered By Other Organisations,511,31-Mar-16,1605-00651,0,27.8,R,Amazon UK Marketplace,Yes
Http://opendatacommunities.org/id/metropolitan-district-council/leeds,Leeds City Council,31/05/2016,Childrens Services,Learning Skills & Universal  ,Supplies and Services,Teaching Furniture & Equipment,207,31-Mar-16,1605-00652,0,35.5,R,Amazon UK Marketplace,Yes
Http://opendatacommunities.org/id/metropolitan-district-council/leeds,Leeds City Council,31/05/2016,Childrens Services,Learning Skills & Universal  ,Supplies and Services,Teaching Furniture & Equipment,207,31-Mar-16,1605-00653,0,12.79,R,Amazon UK Marketplace,Yes
Http://opendatacommunities.org/id/metropolitan-district-council/leeds,Leeds City Council,31/05/2016,Adult Social Care,Other Adult Services  ,Supplies and Services,Office Consumables,210,01-Apr-16,1605-00654,0,37.93,R,Amazon UK Marketplace,Yes
Http://opendatacommunities.org/id/metropolitan-district-council/leeds,Leeds City Council,31/05/2016,Childrens Services,Learning Skills & Universal  ,Supplies and Services,Teaching Furniture & Equipment,207,01-Apr-16,1605-00655,0,2.81,R,Amazon UK Marketplace,Yes
Http://opendatacommunities.org/id/metropolitan-district-council/leeds,Leeds City Council,31/05/2016,Childrens Services,Learning Skills & Universal  ,Third Party Payments,Services Rendered By Other Organisations,511,01-Apr-16,1605-00656,0,29.19,R,Amazon UK Marketplace,Yes
Http://opendatacommunities.org/id/metropolitan-district-council/leeds,Leeds City Council,31/05/2016,Childrens Services,Learning Skills & Universal  ,Supplies and Services,Teaching Furniture & Equipment,207,01-Apr-16,1605-00657,0,21.76,R,Amazon UK Marketplace,Yes
Http://opendatacommunities.org/id/metropolitan-district-council/leeds,Leeds City Council,31/05/2016,Childrens Services,Learning Skills & Universal  ,Supplies and Services,Teaching Furniture & Equipment,207,01-Apr-16,1605-00658,0,56.84,R,Amazon UK Marketplace,Yes
Http://opendatacommunities.org/id/metropolitan-district-council/leeds,Leeds City Council,31/05/2016,Childrens Services,Safeguarding Targeted & Specialist  ,Supplies and Services,Operational Furniture And Equipment,203,01-Apr-16,1605-00659,0,5.82,R,Amazon UK Marketplace,Yes
Http://opendatacommunities.org/id/metropolitan-district-council/leeds,Leeds City Council,31/05/2016,Childrens Services,Learning Skills & Universal  ,Supplies and Services,Teaching Furniture & Equipment,207,01-Apr-16,1605-00660,0,4.96,R,Amazon UK Marketplace,Yes
Http://opendatacommunities.org/id/metropolitan-district-council/leeds,Leeds City Council,31/05/2016,Childrens Services,Partnership Development & Leadership  ,Employees,Best Value Training,70,01-Apr-16,1605-00661,0,132.78,R,Amazon UK Marketplace,Yes
Http://opendatacommunities.org/id/metropolitan-district-council/leeds,Leeds City Council,31/05/2016,Childrens Services,Partnership Development & Leadership  ,Supplies and Services,Office Consumables,210,01-Apr-16,1605-00662,0,6.93,R,Amazon UK Marketplace,Yes
Http://opendatacommunities.org/id/metropolitan-district-council/leeds,Leeds City Council,31/05/2016,Childrens Services,Learning Skills & Universal  ,Supplies and Services,Teaching Furniture & Equipment,207,01-Apr-16,1605-00663,0,9.91,R,Amazon UK Marketplace,Yes
Http://opendatacommunities.org/id/metropolitan-district-council/leeds,Leeds City Council,31/05/2016,Adult Social Care,Other Adult Services  ,Supplies and Services,Office Consumables,210,01-Apr-16,1605-00664,0,121.37,R,Amazon UK Marketplace,Yes
Http://opendatacommunities.org/id/metropolitan-district-council/leeds,Leeds City Council,31/05/2016,Childrens Services,Safeguarding Targeted & Specialist  ,Supplies and Services,Crockery  Cutlery & Utensils,221,01-Apr-16,1605-00665,0,25.82,R,Amazon UK Marketplace,Yes
Http://opendatacommunities.org/id/metropolitan-district-council/leeds,Leeds City Council,31/05/2016,Childrens Services,Learning Skills & Universal  ,Supplies and Services,Teaching Furniture & Equipment,207,01-Apr-16,1605-00666,0,3.8,R,Amazon UK Marketplace,Yes
Http://opendatacommunities.org/id/metropolitan-district-council/leeds,Leeds City Council,31/05/2016,Central & Corporate,Technology  ,Supplies and Services,Computer Software & Equipment,214,01-Apr-16,1605-00667,0,2198,R,Amazon UK Marketplace,Yes
Http://opendatacommunities.org/id/metropolitan-district-council/leeds,Leeds City Council,31/05/2016,Childrens Services,Learning Skills & Universal  ,Supplies and Services,Teaching Furniture & Equipment,207,01-Apr-16,1605-00668,0,17.5,R,Amazon UK Marketplace,Yes
Http://opendatacommunities.org/id/metropolitan-district-council/leeds,Leeds City Council,31/05/2016,Childrens Services,Learning Skills & Universal  ,Supplies and Services,Teaching Furniture & Equipment,207,02-Apr-16,1605-00669,0,7.09,R,Amazon UK Marketplace,Yes
Http://opendatacommunities.org/id/metropolitan-district-council/leeds,Leeds City Council,31/05/2016,Childrens Services,Learning Skills & Universal  ,Supplies and Services,Teaching Furniture & Equipment,207,02-Apr-16,1605-00670,0,17.05,R,Amazon UK Marketplace,Yes
Http://opendatacommunities.org/id/metropolitan-district-council/leeds,Leeds City Council,31/05/2016,Childrens Services,Learning Skills & Universal  ,Supplies and Services,Teaching Furniture & Equipment,207,02-Apr-16,1605-00671,0,2.81,R,Amazon UK Marketplace,Yes
Http://opendatacommunities.org/id/metropolitan-district-council/leeds,Leeds City Council,31/05/2016,Citizens And Communities,Communities  ,Supplies and Services,Office Consumables,210,02-Apr-16,1605-00672,0,13.42,R,Amazon UK Marketplace,Yes
Http://opendatacommunities.org/id/metropolitan-district-council/leeds,Leeds City Council,31/05/2016,Childrens Services,Learning Skills & Universal  ,Supplies and Services,Teaching Furniture & Equipment,207,03-Apr-16,1605-00673,0,44.76,R,Amazon UK Marketplace,Yes
Http://opendatacommunities.org/id/metropolitan-district-council/leeds,Leeds City Council,31/05/2016,Childrens Services,Learning Skills & Universal  ,Supplies and Services,Teaching Furniture & Equipment,207,03-Apr-16,1605-00674,0,9.79,R,Amazon UK Marketplace,Yes
Http://opendatacommunities.org/id/metropolitan-district-council/leeds,Leeds City Council,31/05/2016,Childrens Services,Learning Skills & Universal  ,Supplies and Services,Teaching Furniture & Equipment,207,04-Apr-16,1605-00675,0,9.89,R,Amazon UK Marketplace,Yes
Http://opendatacommunities.org/id/metropolitan-district-council/leeds,Leeds City Council,31/05/2016,Childrens Services,Learning Skills & Universal  ,Supplies and Services,Teaching Furniture & Equipment,207,04-Apr-16,1605-00676,0,127.48,R,Amazon UK Marketplace,Yes
Http://opendatacommunities.org/id/metropolitan-district-council/leeds,Leeds City Council,31/05/2016,Childrens Services,Learning Skills & Universal  ,Supplies and Services,Teaching Furniture & Equipment,207,04-Apr-16,1605-00677,0,8.99,R,Amazon UK Marketplace,Yes
Http://opendatacommunities.org/id/metropolitan-district-council/leeds,Leeds City Council,31/05/2016,Childrens Services,Learning Skills & Universal  ,Supplies and Services,Teaching Furniture & Equipment,207,04-Apr-16,1605-00678,0,17.57,R,Amazon UK Marketplace,Yes
Http://opendatacommunities.org/id/metropolitan-district-council/leeds,Leeds City Council,31/05/2016,Civic Enterprise Leeds,Business Support Centre  ,Supplies and Services,Office Furniture & Equipment,201,04-Apr-16,1605-00679,0,19.67,R,Amazon UK Marketplace,Yes
Http://opendatacommunities.org/id/metropolitan-district-council/leeds,Leeds City Council,31/05/2016,Childrens Services,Learning Skills & Universal  ,Supplies and Services,Teaching Furniture & Equipment,207,04-Apr-16,1605-00680,0,123.45,R,Amazon UK Marketplace,Yes
Http://opendatacommunities.org/id/metropolitan-district-council/leeds,Leeds City Council,31/05/2016,Childrens Services,Learning Skills & Universal  ,Supplies and Services,Teaching Furniture & Equipment,207,04-Apr-16,1605-00681,0,12.79,R,Amazon UK Marketplace,Yes
Http://opendatacommunities.org/id/metropolitan-district-council/leeds,Leeds City Council,31/05/2016,Childrens Services,Learning Skills & Universal  ,Supplies and Services,Teaching Furniture & Equipment,207,04-Apr-16,1605-00682,0,5.06,R,Amazon UK Marketplace,Yes
Http://opendatacommunities.org/id/metropolitan-district-council/leeds,Leeds City Council,31/05/2016,Childrens Services,Learning Skills & Universal  ,Supplies and Services,Teaching Furniture & Equipment,207,04-Apr-16,1605-00683,0,2.55,R,Amazon UK Marketplace,Yes
Http://opendatacommunities.org/id/metropolitan-district-council/leeds,Leeds City Council,31/05/2016,Childrens Services,Learning Skills & Universal  ,Supplies and Services,Teaching Furniture & Equipment,207,04-Apr-16,1605-00684,0,106.18,R,Amazon UK Marketplace,Yes
Http://opendatacommunities.org/id/metropolitan-district-council/leeds,Leeds City Council,31/05/2016,Adult Social Care,Services For Older People - 65 And Over  ,Premises,First Aid Requisites,128,04-Apr-16,1605-00685,0,16.91,R,Amazon UK Marketplace,Yes
Http://opendatacommunities.org/id/metropolitan-district-council/leeds,Leeds City Council,31/05/2016,Childrens Services,Learning Skills & Universal  ,Supplies and Services,Teaching Furniture & Equipment,207,04-Apr-16,1605-00686,0,2.8,R,Amazon UK Marketplace,Yes
Http://opendatacommunities.org/id/metropolitan-district-council/leeds,Leeds City Council,31/05/2016,Childrens Services,Learning Skills & Universal  ,Supplies and Services,Teaching Furniture & Equipment,207,04-Apr-16,1605-00687,0,2.81,R,Amazon UK Marketplace,Yes
Http://opendatacommunities.org/id/metropolitan-district-council/leeds,Leeds City Council,31/05/2016,Childrens Services,Safeguarding Targeted & Specialist  ,Third Party Payments,Placement Support,550,05-Apr-16,1605-00688,0,286.99,R,Amazon UK Marketplace,Yes
Http://opendatacommunities.org/id/metropolitan-district-council/leeds,Leeds City Council,31/05/2016,Civic Enterprise Leeds,Commercial Services  ,Supplies and Services,Office Furniture & Equipment,201,05-Apr-16,1605-00689,0,172.5,R,Amazon UK Marketplace,Yes
Http://opendatacommunities.org/id/metropolitan-district-council/leeds,Leeds City Council,31/05/2016,Childrens Services,Learning Skills & Universal  ,Supplies and Services,Teaching Furniture & Equipment,207,05-Apr-16,1605-00690,0,9.1,R,Amazon UK Marketplace,Yes
Http://opendatacommunities.org/id/metropolitan-district-council/leeds,Leeds City Council,31/05/2016,City Development,Libraries  Arts & Heritage  ,Supplies and Services,Operational Materials,205,05-Apr-16,1605-00691,0,9.49,R,Amazon UK Marketplace,Yes
Http://opendatacommunities.org/id/metropolitan-district-council/leeds,Leeds City Council,31/05/2016,Central & Corporate,Technology  ,Supplies and Services,Computer Software & Equipment,214,05-Apr-16,1605-00692,0,248.47,R,Amazon UK Marketplace,Yes
Http://opendatacommunities.org/id/metropolitan-district-council/leeds,Leeds City Council,31/05/2016,Adult Social Care,Services For Adults Under 65 Learn/Dis  ,Supplies and Services,Office Furniture & Equipment,201,05-Apr-16,1605-00693,0,299.5,R,Amazon UK Marketplace,Yes
Http://opendatacommunities.org/id/metropolitan-district-council/leeds,Leeds City Council,31/05/2016,Childrens Services,Partnership Development & Leadership  ,Employees,Best Value Training,70,06-Apr-16,1605-00694,0,22.57,R,Amazon UK Marketplace,Yes
Http://opendatacommunities.org/id/metropolitan-district-council/leeds,Leeds City Council,31/05/2016,Childrens Services,Learning Skills & Universal  ,Supplies and Services,Teaching Furniture & Equipment,207,06-Apr-16,1605-00695,0,9.79,R,Amazon UK Marketplace,Yes
Http://opendatacommunities.org/id/metropolitan-district-council/leeds,Leeds City Council,31/05/2016,Environment & Housing,Environmental Action (South)  ,Supplies and Services,Operational Furniture And Equipment,203,06-Apr-16,1605-00696,0,195.94,R,Amazon UK Marketplace,Yes
Http://opendatacommunities.org/id/metropolitan-district-council/leeds,Leeds City Council,31/05/2016,Citizens And Communities,Elections  Licensing And Registration  ,Supplies and Services,Office Consumables,210,06-Apr-16,1605-00697,0,4.62,R,Amazon UK Marketplace,Yes
Http://opendatacommunities.org/id/metropolitan-district-council/leeds,Leeds City Council,31/05/2016,City Development,Libraries  Arts & Heritage  ,Supplies and Services,Operational Materials,205,06-Apr-16,1605-00698,0,7.98,R,Amazon UK Marketplace,Yes
Http://opendatacommunities.org/id/metropolitan-district-council/leeds,Leeds City Council,31/05/2016,Childrens Services,Safeguarding Targeted & Specialist  ,Supplies and Services,Operational Furniture And Equipment,203,07-Apr-16,1605-00699,0,19.95,R,Amazon UK Marketplace,Yes
Http://opendatacommunities.org/id/metropolitan-district-council/leeds,Leeds City Council,31/05/2016,City Development,Libraries  Arts & Heritage  ,Supplies and Services,Operational Materials,205,07-Apr-16,1605-00700,0,10.63,R,Amazon UK Marketplace,Yes
Http://opendatacommunities.org/id/metropolitan-district-council/leeds,Leeds City Council,31/05/2016,City Development,Libraries  Arts & Heritage  ,Supplies and Services,Operational Materials,205,07-Apr-16,1605-00701,0,12.69,R,Amazon UK Marketplace,Yes
Http://opendatacommunities.org/id/metropolitan-district-council/leeds,Leeds City Council,31/05/2016,Childrens Services,Learning Skills & Universal  ,Supplies and Services,Office Consumables,210,07-Apr-16,1605-00702,0,9.79,R,Amazon UK Marketplace,Yes
Http://opendatacommunities.org/id/metropolitan-district-council/leeds,Leeds City Council,31/05/2016,Childrens Services,Partnership Development & Leadership  ,Employees,Best Value Training,70,07-Apr-16,1605-00703,0,4.25,R,Amazon UK Marketplace,Yes
Http://opendatacommunities.org/id/metropolitan-district-council/leeds,Leeds City Council,31/05/2016,Childrens Services,Learning Skills & Universal  ,Supplies and Services,Books & Audio-Visual Materials,206,07-Apr-16,1605-00704,0,109.78,R,Amazon UK Marketplace,Yes
Http://opendatacommunities.org/id/metropolitan-district-council/leeds,Leeds City Council,31/05/2016,Strategic Landlord,Housing Management  ,Supplies and Services,Operational Furniture And Equipment,203,08-Apr-16,1605-00705,0,79.98,R,Amazon UK Marketplace,Yes
Http://opendatacommunities.org/id/metropolitan-district-council/leeds,Leeds City Council,31/05/2016,Childrens Services,Partnership Development & Leadership  ,Supplies and Services,Computer Software & Equipment,214,08-Apr-16,1605-00706,0,59.8,R,Amazon UK Marketplace,Yes
Http://opendatacommunities.org/id/metropolitan-district-council/leeds,Leeds City Council,31/05/2016,Strategic Landlord,Housing Management  ,Supplies and Services,Operational Furniture And Equipment,203,08-Apr-16,1605-00707,0,12.99,R,Amazon UK Marketplace,Yes
Http://opendatacommunities.org/id/metropolitan-district-council/leeds,Leeds City Council,31/05/2016,Strategic Landlord,Housing Management  ,Supplies and Services,Operational Furniture And Equipment,203,09-Apr-16,1605-00708,0,169.6,R,Amazon UK Marketplace,Yes
Http://opendatacommunities.org/id/metropolitan-district-council/leeds,Leeds City Council,31/05/2016,Strategic Landlord,Housing Management  ,Supplies and Services,Operational Furniture And Equipment,203,09-Apr-16,1605-00709,0,50.94,R,Amazon UK Marketplace,Yes
Http://opendatacommunities.org/id/metropolitan-district-council/leeds,Leeds City Council,31/05/2016,Strategic Landlord,Housing Management  ,Supplies and Services,Operational Furniture And Equipment,203,09-Apr-16,1605-00710,0,50.93,R,Amazon UK Marketplace,Yes
Http://opendatacommunities.org/id/metropolitan-district-council/leeds,Leeds City Council,31/05/2016,Citizens And Communities,Benefits  Wlefare And Poverty  ,Supplies and Services,Office Consumables,210,10-Apr-16,1605-00711,0,3.76,R,Amazon UK Marketplace,Yes
Http://opendatacommunities.org/id/metropolitan-district-council/leeds,Leeds City Council,31/05/2016,Strategic Landlord,Housing Management  ,Supplies and Services,Operational Furniture And Equipment,203,11-Apr-16,1605-00712,0,30.22,R,Amazon UK Marketplace,Yes
Http://opendatacommunities.org/id/metropolitan-district-council/leeds,Leeds City Council,31/05/2016,City Development,Libraries  Arts & Heritage  ,Supplies and Services,Operational Materials,205,11-Apr-16,1605-00713,0,9.42,R,Amazon UK Marketplace,Yes
Http://opendatacommunities.org/id/metropolitan-district-council/leeds,Leeds City Council,31/05/2016,Environment & Housing,Environmental Action (South)  ,Supplies and Services,Operational Furniture And Equipment,203,11-Apr-16,1605-00714,0,5.85,R,Amazon UK Marketplace,Yes
Http://opendatacommunities.org/id/metropolitan-district-council/leeds,Leeds City Council,31/05/2016,Childrens Services,Safeguarding Targeted & Specialist  ,Supplies and Services,Operational Furniture And Equipment,203,11-Apr-16,1605-00715,0,17.26,R,Amazon UK Marketplace,Yes
Http://opendatacommunities.org/id/metropolitan-district-council/leeds,Leeds City Council,31/05/2016,Childrens Services,Safeguarding Targeted & Specialist  ,Supplies and Services,Operational Furniture And Equipment,203,11-Apr-16,1605-00716,0,33.27,R,Amazon UK Marketplace,Yes
Http://opendatacommunities.org/id/metropolitan-district-council/leeds,Leeds City Council,31/05/2016,Environment & Housing,Parks And Countryside  ,Supplies and Services,Teaching Materials,202,12-Apr-16,1605-00717,0,15.16,R,Amazon UK Marketplace,Yes
Http://opendatacommunities.org/id/metropolitan-district-council/leeds,Leeds City Council,31/05/2016,Environment & Housing,Parks And Countryside  ,Supplies and Services,Teaching Materials,202,12-Apr-16,1605-00718,0,15.07,R,Amazon UK Marketplace,Yes
Http://opendatacommunities.org/id/metropolitan-district-council/leeds,Leeds City Council,31/05/2016,Strategic Landlord,Housing Management  ,Supplies and Services,Other Hired And Contracted Services,265,12-Apr-16,1605-00719,0,29.82,R,Amazon UK Marketplace,Yes
Http://opendatacommunities.org/id/metropolitan-district-council/leeds,Leeds City Council,31/05/2016,City Development,Libraries  Arts & Heritage  ,Supplies and Services,Operational Materials,205,12-Apr-16,1605-00720,0,32.97,R,Amazon UK Marketplace,Yes
Http://opendatacommunities.org/id/metropolitan-district-council/leeds,Leeds City Council,31/05/2016,Childrens Services,Learning Skills & Universal  ,Supplies and Services,Teaching Materials,202,13-Apr-16,1605-00721,0,10.82,R,Amazon UK Marketplace,Yes
Http://opendatacommunities.org/id/metropolitan-district-council/leeds,Leeds City Council,31/05/2016,City Development,Libraries  Arts & Heritage  ,Supplies and Services,Computer Software & Equipment,214,13-Apr-16,1605-00722,0,86.25,R,Amazon UK Marketplace,Yes
Http://opendatacommunities.org/id/metropolitan-district-council/leeds,Leeds City Council,31/05/2016,Public Health,Public Health  ,Supplies and Services,Teaching Materials,202,13-Apr-16,1605-00723,0,48.58,R,Amazon UK Marketplace,Yes
Http://opendatacommunities.org/id/metropolitan-district-council/leeds,Leeds City Council,31/05/2016,City Development,Libraries  Arts & Heritage  ,Supplies and Services,Computer Software & Equipment,214,13-Apr-16,1605-00724,0,19.17,R,Amazon UK Marketplace,Yes
Http://opendatacommunities.org/id/metropolitan-district-council/leeds,Leeds City Council,31/05/2016,Environment & Housing,Parks And Countryside  ,Supplies and Services,Books & Audio-Visual Materials,206,13-Apr-16,1605-00725,0,42.32,R,Amazon UK Marketplace,Yes
Http://opendatacommunities.org/id/metropolitan-district-council/leeds,Leeds City Council,31/05/2016,Strategic Landlord,Housing Management  ,Supplies and Services,Operational Furniture And Equipment,203,13-Apr-16,1605-00726,0,209.99,R,Amazon UK Marketplace,Yes
Http://opendatacommunities.org/id/metropolitan-district-council/leeds,Leeds City Council,31/05/2016,City Development,Libraries  Arts & Heritage  ,Supplies and Services,Computer Software & Equipment,214,13-Apr-16,1605-00727,0,27.99,R,Amazon UK Marketplace,Yes
Http://opendatacommunities.org/id/metropolitan-district-council/leeds,Leeds City Council,31/05/2016,Environment & Housing,Parks And Countryside  ,Supplies and Services,Teaching Materials,202,13-Apr-16,1605-00728,0,206.25,R,Amazon UK Marketplace,Yes
Http://opendatacommunities.org/id/metropolitan-district-council/leeds,Leeds City Council,31/05/2016,Childrens Services,Learning Skills & Universal  ,Supplies and Services,Teaching Materials,202,13-Apr-16,1605-00729,0,5.82,R,Amazon UK Marketplace,Yes
Http://opendatacommunities.org/id/metropolitan-district-council/leeds,Leeds City Council,31/05/2016,City Development,Libraries  Arts & Heritage  ,Supplies and Services,Computer Software & Equipment,214,14-Apr-16,1605-00730,0,6.8,R,Amazon UK Marketplace,Yes
Http://opendatacommunities.org/id/metropolitan-district-council/leeds,Leeds City Council,31/05/2016,Central & Corporate,Technology  ,Supplies and Services,Office Consumables,210,14-Apr-16,1605-00731,0,16.98,R,Amazon UK Marketplace,Yes
Http://opendatacommunities.org/id/metropolitan-district-council/leeds,Leeds City Council,31/05/2016,City Development,Libraries  Arts & Heritage  ,Supplies and Services,Computer Software & Equipment,214,14-Apr-16,1605-00732,0,113.88,R,Amazon UK Marketplace,Yes
Http://opendatacommunities.org/id/metropolitan-district-council/leeds,Leeds City Council,31/05/2016,Environment & Housing,Community Safety  ,Supplies and Services,Other Hired And Contracted Services,265,14-Apr-16,1605-00733,0,22.99,R,Amazon UK Marketplace,Yes
Http://opendatacommunities.org/id/metropolitan-district-council/leeds,Leeds City Council,31/05/2016,City Development,Recreation  ,Supplies and Services,Operational Furniture And Equipment,203,15-Apr-16,1605-00734,0,60.59,R,Amazon UK Marketplace,Yes
Http://opendatacommunities.org/id/metropolitan-district-council/leeds,Leeds City Council,31/05/2016,Childrens Services,Partnership Development & Leadership  ,Supplies and Services,Books & Audio-Visual Materials,206,15-Apr-16,1605-00735,0,12.35,R,Amazon UK Marketplace,Yes
Http://opendatacommunities.org/id/metropolitan-district-council/leeds,Leeds City Council,31/05/2016,Childrens Services,Safeguarding Targeted & Specialist  ,Supplies and Services,Books & Audio-Visual Materials,206,15-Apr-16,1605-00736,0,11.99,R,Amazon UK Marketplace,Yes
Http://opendatacommunities.org/id/metropolitan-district-council/leeds,Leeds City Council,31/05/2016,City Development,Libraries  Arts & Heritage  ,Supplies and Services,Computer Software & Equipment,214,15-Apr-16,1605-00737,0,67.72,R,Amazon UK Marketplace,Yes
Http://opendatacommunities.org/id/metropolitan-district-council/leeds,Leeds City Council,31/05/2016,City Development,Libraries  Arts & Heritage  ,Supplies and Services,Computer Software & Equipment,214,15-Apr-16,1605-00738,0,3.39,R,Amazon UK Marketplace,Yes
Http://opendatacommunities.org/id/metropolitan-district-council/leeds,Leeds City Council,31/05/2016,City Development,Libraries  Arts & Heritage  ,Supplies and Services,Operational Materials,205,15-Apr-16,1605-00739,0,9.5,R,Amazon UK Marketplace,Yes
Http://opendatacommunities.org/id/metropolitan-district-council/leeds,Leeds City Council,31/05/2016,Environment & Housing,Parks And Countryside  ,Supplies and Services,Operational Materials,205,15-Apr-16,1605-00740,0,65.79,R,Amazon UK Marketplace,Yes
Http://opendatacommunities.org/id/metropolitan-district-council/leeds,Leeds City Council,31/05/2016,City Development,Recreation  ,Supplies and Services,Operational Furniture And Equipment,203,15-Apr-16,1605-00741,0,31.64,R,Amazon UK Marketplace,Yes
Http://opendatacommunities.org/id/metropolitan-district-council/leeds,Leeds City Council,31/05/2016,Public Health,Public Health  ,Supplies and Services,Teaching Materials,202,15-Apr-16,1605-00742,0,13.79,R,Amazon UK Marketplace,Yes
Http://opendatacommunities.org/id/metropolitan-district-council/leeds,Leeds City Council,31/05/2016,Adult Social Care,Services For Older People - 65 And Over  ,Supplies and Services,Books & Audio-Visual Materials,206,18-Apr-16,1605-00743,0,12,R,Amazon UK Marketplace,Yes
Http://opendatacommunities.org/id/metropolitan-district-council/leeds,Leeds City Council,31/05/2016,Citizens And Communities,Communities  ,Supplies and Services,Computer Software & Equipment,214,18-Apr-16,1605-00744,0,15.23,R,Amazon UK Marketplace,Yes
Http://opendatacommunities.org/id/metropolitan-district-council/leeds,Leeds City Council,31/05/2016,Citizens And Communities,Customer Access  ,Supplies and Services,Office Consumables,210,18-Apr-16,1605-00745,0,4.99,R,Amazon UK Marketplace,Yes
Http://opendatacommunities.org/id/metropolitan-district-council/leeds,Leeds City Council,31/05/2016,Citizens And Communities,Customer Access  ,Supplies and Services,Office Furniture & Equipment,201,18-Apr-16,1605-00746,0,60.83,R,Amazon UK Marketplace,Yes
Http://opendatacommunities.org/id/metropolitan-district-council/leeds,Leeds City Council,31/05/2016,City Development,Libraries  Arts & Heritage  ,Supplies and Services,Books & Audio-Visual Materials,206,19-Apr-16,1605-00747,0,6.51,R,Amazon UK Marketplace,Yes
Http://opendatacommunities.org/id/metropolitan-district-council/leeds,Leeds City Council,31/05/2016,Civic Enterprise Leeds,Commercial Services  ,Supplies and Services,Office Furniture & Equipment,201,19-Apr-16,1605-00748,0,34.08,R,Amazon UK Marketplace,Yes
Http://opendatacommunities.org/id/metropolitan-district-council/leeds,Leeds City Council,31/05/2016,Childrens Services,Safeguarding Targeted & Specialist  ,Supplies and Services,General Amenity For Clients/Residents,285,19-Apr-16,1605-00749,0,2.79,R,Amazon UK Marketplace,Yes
Http://opendatacommunities.org/id/metropolitan-district-council/leeds,Leeds City Council,31/05/2016,Civic Enterprise Leeds,Facilities Management  ,Supplies and Services,Operational Materials,205,19-Apr-16,1605-00750,0,3.25,R,Amazon UK Marketplace,Yes
Http://opendatacommunities.org/id/metropolitan-district-council/leeds,Leeds City Council,31/05/2016,City Development,Libraries  Arts & Heritage  ,Supplies and Services,Teaching Materials,202,19-Apr-16,1605-00751,0,29.59,R,Amazon UK Marketplace,Yes
Http://opendatacommunities.org/id/metropolitan-district-council/leeds,Leeds City Council,31/05/2016,City Development,Libraries  Arts & Heritage  ,Supplies and Services,Books & Audio-Visual Materials,206,19-Apr-16,1605-00752,0,36.55,R,Amazon UK Marketplace,Yes
Http://opendatacommunities.org/id/metropolitan-district-council/leeds,Leeds City Council,31/05/2016,Central & Corporate,Pppu And Procurement  ,Supplies and Services,Office Consumables,210,20-Apr-16,1605-00753,0,17.38,R,Amazon UK Marketplace,Yes
Http://opendatacommunities.org/id/metropolitan-district-council/leeds,Leeds City Council,31/05/2016,City Development,Libraries  Arts & Heritage  ,Supplies and Services,Books & Audio-Visual Materials,206,20-Apr-16,1605-00754,0,17.89,R,Amazon UK Marketplace,Yes
Http://opendatacommunities.org/id/metropolitan-district-council/leeds,Leeds City Council,31/05/2016,Childrens Services,Safeguarding Targeted & Specialist  ,Supplies and Services,Books & Audio-Visual Materials,206,20-Apr-16,1605-00755,0,66.95,R,Amazon UK Marketplace,Yes
Http://opendatacommunities.org/id/metropolitan-district-council/leeds,Leeds City Council,31/05/2016,Childrens Services,Learning Skills & Universal  ,Supplies and Services,Operational Furniture And Equipment,203,20-Apr-16,1605-00756,0,37.05,R,Amazon UK Marketplace,Yes
Http://opendatacommunities.org/id/metropolitan-district-council/leeds,Leeds City Council,31/05/2016,City Development,Libraries  Arts & Heritage  ,Supplies and Services,Teaching Materials,202,20-Apr-16,1605-00757,0,13.76,R,Amazon UK Marketplace,Yes
Http://opendatacommunities.org/id/metropolitan-district-council/leeds,Leeds City Council,31/05/2016,Childrens Services,Safeguarding Targeted & Specialist  ,Supplies and Services,Crockery  Cutlery & Utensils,221,20-Apr-16,1605-00758,0,9.42,R,Amazon UK Marketplace,Yes
Http://opendatacommunities.org/id/metropolitan-district-council/leeds,Leeds City Council,31/05/2016,Childrens Services,Learning Skills & Universal  ,Supplies and Services,Operational Furniture And Equipment,203,20-Apr-16,1605-00759,0,27.31,R,Amazon UK Marketplace,Yes
Http://opendatacommunities.org/id/metropolitan-district-council/leeds,Leeds City Council,31/05/2016,Childrens Services,Safeguarding Targeted & Specialist  ,Supplies and Services,Books & Audio-Visual Materials,206,20-Apr-16,1605-00760,0,28.98,R,Amazon UK Marketplace,Yes
Http://opendatacommunities.org/id/metropolitan-district-council/leeds,Leeds City Council,31/05/2016,Childrens Services,Safeguarding Targeted & Specialist  ,Supplies and Services,General Amenity For Clients/Residents,285,20-Apr-16,1605-00761,0,1.68,R,Amazon UK Marketplace,Yes
Http://opendatacommunities.org/id/metropolitan-district-council/leeds,Leeds City Council,31/05/2016,Strategic Landlord,Housing Management  ,Supplies and Services,Operational Furniture And Equipment,203,20-Apr-16,1605-00762,0,406,R,Amazon UK Marketplace,Yes
Http://opendatacommunities.org/id/metropolitan-district-council/leeds,Leeds City Council,31/05/2016,Citizens And Communities,Customer Access  ,Supplies and Services,Operational Materials,205,21-Apr-16,1605-00763,0,14.99,R,Amazon UK Marketplace,Yes
Http://opendatacommunities.org/id/metropolitan-district-council/leeds,Leeds City Council,31/05/2016,Civic Enterprise Leeds,Business Support Centre  ,Supplies and Services,Office Consumables,210,21-Apr-16,1605-00764,0,10,R,Amazon UK Marketplace,Yes
Http://opendatacommunities.org/id/metropolitan-district-council/leeds,Leeds City Council,31/05/2016,Citizens And Communities,Customer Access  ,Supplies and Services,Operational Materials,205,21-Apr-16,1605-00765,0,24.97,R,Amazon UK Marketplace,Yes
Http://opendatacommunities.org/id/metropolitan-district-council/leeds,Leeds City Council,31/05/2016,Childrens Services,Learning Skills & Universal  ,Supplies and Services,Telephones,213,21-Apr-16,1605-00766,0,8.24,R,Amazon UK Marketplace,Yes
Http://opendatacommunities.org/id/metropolitan-district-council/leeds,Leeds City Council,31/05/2016,Environment & Housing,Streetscene Environmental Services  ,Supplies and Services,Operational Furniture And Equipment,203,21-Apr-16,1605-00767,0,107.2,R,Amazon UK Marketplace,Yes
Http://opendatacommunities.org/id/metropolitan-district-council/leeds,Leeds City Council,31/05/2016,City Development,Recreation  ,Supplies and Services,Operational Materials,205,21-Apr-16,1605-00768,0,9.8,R,Amazon UK Marketplace,Yes
Http://opendatacommunities.org/id/metropolitan-district-council/leeds,Leeds City Council,31/05/2016,Citizens And Communities,Benefits  Wlefare And Poverty  ,Supplies and Services,Office Furniture & Equipment,201,21-Apr-16,1605-00769,0,69.97,R,Amazon UK Marketplace,Yes
Http://opendatacommunities.org/id/metropolitan-district-council/leeds,Leeds City Council,31/05/2016,City Development,Libraries  Arts & Heritage  ,Supplies and Services,Office Consumables,210,22-Apr-16,1605-00770,0,7.11,R,Amazon UK Marketplace,Yes
Http://opendatacommunities.org/id/metropolitan-district-council/leeds,Leeds City Council,31/05/2016,City Development,Libraries  Arts & Heritage  ,Supplies and Services,Office Consumables,210,23-Apr-16,1605-00771,0,36.96,R,Amazon UK Marketplace,Yes
Http://opendatacommunities.org/id/metropolitan-district-council/leeds,Leeds City Council,31/05/2016,City Development,Libraries  Arts & Heritage  ,Supplies and Services,Office Consumables,210,23-Apr-16,1605-00772,0,5.5,R,Amazon UK Marketplace,Yes
Http://opendatacommunities.org/id/metropolitan-district-council/leeds,Leeds City Council,31/05/2016,City Development,Economic Development  ,Supplies and Services,Office Consumables,210,24-Apr-16,1605-00773,0,10.61,R,Amazon UK Marketplace,Yes
Http://opendatacommunities.org/id/metropolitan-district-council/leeds,Leeds City Council,31/05/2016,City Development,Economic Development  ,Supplies and Services,Office Consumables,210,25-Apr-16,1605-00774,0,139.52,R,Amazon UK Marketplace,Yes
Http://opendatacommunities.org/id/metropolitan-district-council/leeds,Leeds City Council,31/05/2016,Citizens And Communities,Customer Access  ,Supplies and Services,Office Consumables,210,26-Apr-16,1605-00775,0,6.46,R,Amazon UK Marketplace,Yes
Http://opendatacommunities.org/id/metropolitan-district-council/leeds,Leeds City Council,31/05/2016,Environment & Housing,Parks And Countryside  ,Supplies and Services,Office Consumables,210,26-Apr-16,1605-00776,0,29.96,R,Amazon UK Marketplace,Yes
Http://opendatacommunities.org/id/metropolitan-district-council/leeds,Leeds City Council,31/05/2016,Citizens And Communities,Customer Access  ,Supplies and Services,Office Consumables,210,26-Apr-16,1605-00777,0,39,R,Amazon UK Marketplace,Yes
Http://opendatacommunities.org/id/metropolitan-district-council/leeds,Leeds City Council,31/05/2016,Citizens And Communities,Benefits  Wlefare And Poverty  ,Supplies and Services,Office Consumables,210,26-Apr-16,1605-00778,0,10.82,R,Amazon UK Marketplace,Yes
Http://opendatacommunities.org/id/metropolitan-district-council/leeds,Leeds City Council,31/05/2016,Childrens Services,Safeguarding Targeted & Specialist  ,Supplies and Services,Office Consumables,210,26-Apr-16,1605-00779,0,38.84,R,Amazon UK Marketplace,Yes
